Body Name,Body,Supplier,Transaction Number,Payment Date,Amount,Directorate,Organisational Unit,Cost Centre/Detail Code,Cost Centre Description,Detail Code Description
Ashfield District Council,37UB,Davinhulme Security Dogs,V1017894,09/02/2023,511.50,Housing & Assets 2,Supplies & Services,C00264/D200008,FHS Fund,Payments to Contractors External
Ashfield District Council,37UB,Gleeds Building Surveying Ltd,V1019459,23/02/2023,3239.55,Place & Communities 2,Supplies & Services,C00264/D200008,FHS Fund,Payments to Contractors External
Ashfield District Council,37UB,Gleeds Building Surveying Ltd,V1019466,23/02/2023,660.00,Place & Communities 2,Supplies & Services,C00265/D200008,FHS Fund,Payments to Contractors External
Ashfield District Council,37UB,Guy Taylor Associates,V1018627,16/02/2023,15011.82,Place & Communities 2,Supplies & Services,C00266/D200008,FHS Fund,Payments to Contractors External
Ashfield District Council,37UB,Kinver Business Solutions Ltd,V1017901,09/02/2023,1280.00,Place & Communities 2,Supplies & Services,C00264/D201019,FHS Fund,Project Management Fees
Ashfield District Council,37UB,Kinver Business Solutions Ltd,V1017901,09/02/2023,1280.00,Place & Communities 2,Supplies & Services,C00265/D201019,FHS Fund,Project Management Fees
Ashfield District Council,37UB,Kinver Business Solutions Ltd,V1017901,09/02/2023,1280.00,Place & Communities 2,Supplies & Services,C00263/D201019,FHS Fund,Project Management Fees
Ashfield District Council,37UB,Stage Right Theatre Consultant,V1017519,02/02/2023,2927.00,Place & Communities 2,Supplies & Services,C00263/D200008,FHS Fund,Payments to Contractors External
Ashfield District Council,37UB,Daisy Telecoms Ltd,V1018291,16/02/2023,234.00,R & B Transformation 2,Supplies & Services,C00265/D200008,FHS Fund,Payments to Contractors External
Ashfield District Council,37UB,Greenacre Recruitment Limited,V1018164,09/02/2023,2550.00,Chief Executive 2,Supplies & Services,C00235/D200008,General Fund,Payments to Contractors External
Ashfield District Council,37UB,Greenacre Recruitment Limited,V1018165,09/02/2023,2550.00,Chief Executive 2,Supplies & Services,C00235/D200008,General Fund,Payments to Contractors External
Ashfield District Council,37UB,Greenacre Recruitment Limited,V1018549,16/02/2023,2850.00,Chief Executive 2,Supplies & Services,C00235/D200008,General Fund,Payments to Contractors External
Ashfield District Council,37UB,Greenacre Recruitment Limited,V1019322,16/02/2023,1950.00,Chief Executive 2,Supplies & Services,C00235/D200008,General Fund,Payments to Contractors External
Ashfield District Council,37UB,Asbestos GRP Labs Ltd,V1018519,09/02/2023,130.00,Housing & Assets 2,Supplies & Services,G00002001/D200008,General Fund,Payments to Contractors External
Ashfield District Council,37UB,Bronbury Services Ltd,V1019384,23/02/2023,6540.00,Housing & Assets 2,Supplies & Services,G00002001/D200008,General Fund,Payments to Contractors External
Ashfield District Council,37UB,Bronbury Services Ltd,V1019384,23/02/2023,6540.00,Housing & Assets 2,Supplies & Services,G00002001/D200008,General Fund,Payments to Contractors External
Ashfield District Council,37UB,D Cresswell & Son (Electricians) Ltd,V1018263,09/02/2023,4773.00,Housing & Assets 2,Supplies & Services,G00002001/D200008,General Fund,Payments to Contractors External
Ashfield District Council,37UB,D Cresswell & Son (Electricians) Ltd,V1018517,09/02/2023,4187.00,Housing & Assets 2,Supplies & Services,G00002001/D200008,General Fund,Payments to Contractors External
Ashfield District Council,37UB,Etac,V1018529,09/02/2023,4803.24,Housing & Assets 2,Supplies & Services,G00002001/D200008,General Fund,Payments to Contractors External
Ashfield District Council,37UB,Lindum Group Limited,V1018589,16/02/2023,7845.97,Housing & Assets 2,Supplies & Services,C00269/D200008,General Fund,Payments to Contractors External
Ashfield District Council,37UB,Matthews & Tannert Ltd,V1018174,09/02/2023,-2250.00,Housing & Assets 2,Supplies & Services,G00002002/D200008,General Fund,Payments to Contractors External
Ashfield District Council,37UB,Matthews & Tannert Ltd,V1018207,09/02/2023,3250.00,Housing & Assets 2,Supplies & Services,G00002002/D200008,General Fund,Payments to Contractors External
Ashfield District Council,37UB,Matthews & Tannert Ltd,V1018208,09/02/2023,2420.00,Housing & Assets 2,Supplies & Services,G00002002/D200008,General Fund,Payments to Contractors External
Ashfield District Council,37UB,Matthews & Tannert Ltd,V1018555,16/02/2023,3306.00,Housing & Assets 2,Supplies & Services,G00002002/D200008,General Fund,Payments to Contractors External
Ashfield District Council,37UB,Matthews & Tannert Ltd,V1018556,16/02/2023,740.00,Housing & Assets 2,Supplies & Services,G00002002/D200008,General Fund,Payments to Contractors External
Ashfield District Council,37UB,Matthews & Tannert Ltd,V1018716,16/02/2023,3350.00,Housing & Assets 2,Supplies & Services,G00002002/D200008,General Fund,Payments to Contractors External
Ashfield District Council,37UB,Obam Lift Services Ltd,V1018715,16/02/2023,5235.00,Housing & Assets 2,Supplies & Services,G00002001/D200008,General Fund,Payments to Contractors External
Ashfield District Council,37UB,PB Property Developments,V1017881,02/02/2023,13345.60,Housing & Assets 2,Supplies & Services,G00002001/D200008,General Fund,Payments to Contractors External
Ashfield District Council,37UB,PB Property Developments,V1017882,02/02/2023,10346.00,Housing & Assets 2,Supplies & Services,G00002002/D200008,General Fund,Payments to Contractors External
Ashfield District Council,37UB,T Grant & Son Ltd,V1018520,09/02/2023,5201.00,Housing & Assets 2,Supplies & Services,G00002001/D200008,General Fund,Payments to Contractors External
Ashfield District Council,37UB,Ven Construction,V1018259,09/02/2023,18051.00,Housing & Assets 2,Supplies & Services,G00002001/D200008,General Fund,Payments to Contractors External
Ashfield District Council,37UB,Freeths LLP,V1017518,02/02/2023,1849.70,Legal & Governance 2,Supplies & Services,C00235/D200004,General Fund,Legal Expenses
Ashfield District Council,37UB,AA Projects Ltd,V1018781,16/02/2023,2500.00,Place & Communities 2,Supplies & Services,C00235/D200008,General Fund,Payments to Contractors External
Ashfield District Council,37UB,Agrovista UK Ltd,V1019401,23/02/2023,2438.10,Place & Communities 2,Supplies & Services,C00258010/D200008,General Fund,Payments to Contractors External
Ashfield District Council,37UB,Andy Dean Business Solutions Ltd,V1018521,09/02/2023,2724.60,Place & Communities 2,Supplies & Services,c00255003/D200008,General Fund,Payments to Contractors External
Ashfield District Council,37UB,Andy Dean Business Solutions Ltd,V1020075,23/02/2023,2298.65,Place & Communities 2,Supplies & Services,c00255003/D200008,General Fund,Payments to Contractors External
Ashfield District Council,37UB,Armsons Barlow,V1020074,23/02/2023,500.00,Place & Communities 2,Supplies & Services,C00255003/D200008,General Fund,Payments to Contractors External
Ashfield District Council,37UB,Barcham Trees PLC,V1018576,16/02/2023,5595.00,Place & Communities 2,Supplies & Services,C00258010/D200008,General Fund,Payments to Contractors External
Ashfield District Council,37UB,Bloom Procurement Services,V1017575,02/02/2023,23673.00,Place & Communities 2,Supplies & Services,C00255003/D201020,General Fund,Design Fees
Ashfield District Council,37UB,Browne Jacobson LLP,V1017430,02/02/2023,1785.60,Place & Communities 2,Supplies & Services,c00255014/D200008,General Fund,Payments to Contractors External
Ashfield District Council,37UB,Faithful & Gould Ltd,V1011821,09/02/2023,8769.92,Place & Communities 2,Supplies & Services,C00235/d200008,General Fund,Payments to Contractors External
Ashfield District Council,37UB,Faithful & Gould Ltd,V1012526,09/02/2023,4384.96,Place & Communities 2,Supplies & Services,C00235/d200008,General Fund,Payments to Contractors External
Ashfield District Council,37UB,Guy Taylor Associates,V1018627,16/02/2023,20979.18,Place & Communities 2,Supplies & Services,C00255012/D200008,General Fund,Payments to Contractors External
Ashfield District Council,37UB,Hickton Consultants,V1017925,09/02/2023,1536.00,Place & Communities 2,Supplies & Services,C00262/D200008,General Fund,Payments to Contractors External
Ashfield District Council,37UB,Johnsons of Whixley Ltd,V1019480,23/02/2023,1167.00,Place & Communities 2,Supplies & Services,C00258010/D200008,General Fund,Payments to Contractors External
Ashfield District Council,37UB,Johnsons of Whixley Ltd,V1019480,23/02/2023,4366.86,Place & Communities 2,Supplies & Services,C00258010/D200008,General Fund,Payments to Contractors External
Ashfield District Council,37UB,Keep Britain Tidy,V1018169,09/02/2023,424.00,Place & Communities 2,Supplies & Services,C00258/D200008,General Fund,Payments to Contractors External
Ashfield District Council,37UB,Kier Construction - North and Scotland,V1017920,09/02/2023,31316.74,Place & Communities 2,Supplies & Services,C00235/D200008,General Fund,Payments to Contractors External
Ashfield District Council,37UB,Kier Construction - North and Scotland,V1018707,16/02/2023,282560.65,Place & Communities 2,Supplies & Services,C00262/D200008,General Fund,Payments to Contractors External
Ashfield District Council,37UB,Kinver Business Solutions Ltd,V1017900,09/02/2023,1280.00,Place & Communities 2,Supplies & Services,C00255008/D201019,General Fund,Project Management Fees
Ashfield District Council,37UB,Kinver Business Solutions Ltd,V1017900,09/02/2023,1280.00,Place & Communities 2,Supplies & Services,C00255001/D201019,General Fund,Project Management Fees
Ashfield District Council,37UB,Kinver Business Solutions Ltd,V1017900,09/02/2023,1280.00,Place & Communities 2,Supplies & Services,C00255002/D201019,General Fund,Project Management Fees
Ashfield District Council,37UB,Kinver Business Solutions Ltd,V1017900,09/02/2023,1280.00,Place & Communities 2,Supplies & Services,C00255006/D201019,General Fund,Project Management Fees
Ashfield District Council,37UB,Kinver Business Solutions Ltd,V1017900,09/02/2023,1280.00,Place & Communities 2,Supplies & Services,C00255017/D201019,General Fund,Project Management Fees
Ashfield District Council,37UB,Kinver Business Solutions Ltd,V1017900,09/02/2023,1280.00,Place & Communities 2,Supplies & Services,C00255011/D201019,General Fund,Project Management Fees
Ashfield District Council,37UB,Kinver Business Solutions Ltd,V1017900,09/02/2023,1280.00,Place & Communities 2,Supplies & Services,C00255013/D201019,General Fund,Project Management Fees
Ashfield District Council,37UB,Mace Limited,V1017921,09/02/2023,16271.37,Place & Communities 2,Supplies & Services,C00255001/D200008,General Fund,Payments to Contractors External
Ashfield District Council,37UB,Mace Limited,V1017921,09/02/2023,29999.99,Place & Communities 2,Supplies & Services,C00269/D200008,General Fund,Payments to Contractors External
Ashfield District Council,37UB,Mace Limited,V1017922,09/02/2023,13824.00,Place & Communities 2,Supplies & Services,C00255003/D200008,General Fund,Payments to Contractors External
Ashfield District Council,37UB,Morgan Sindall Construction & Infrastructure Ltd,V1018516,09/02/2023,7586.48,Place & Communities 2,Supplies & Services,C00255008/D201020,General Fund,Design Fees
Ashfield District Council,37UB,National Grid,V1019478,23/02/2023,712.77,Place & Communities 2,Supplies & Services,C00255008/D200008,General Fund,Payments to Contractors External
Ashfield District Council,37UB,Perfect Circle JV Ltd,V1018202,09/02/2023,13764.30,Place & Communities 2,Supplies & Services,C00255008/D201019,General Fund,Project Management Fees
Ashfield District Council,37UB,Perfect Circle JV Ltd,V1019380,23/02/2023,5000.00,Place & Communities 2,Supplies & Services,C00255008/D200008,General Fund,Payments to Contractors External
Ashfield District Council,37UB,Pi SQ Ltd,V1017486,02/02/2023,13989.50,Place & Communities 2,Supplies & Services,C00235/D200008,General Fund,Payments to Contractors External
Ashfield District Council,37UB,Rodgers Leask Limited,V1018192,09/02/2023,650.00,Place & Communities 2,Supplies & Services,C00255003/D200008,General Fund,Payments to Contractors External
Ashfield District Council,37UB,Terberg Matec UK,V1018611,16/02/2023,187964.00,Place & Communities 2,Supplies & Services,G00010001/D001001,General Fund,Equipment Purchase
Ashfield District Council,37UB,Terberg Matec UK,V1018617,16/02/2023,195499.00,Place & Communities 2,Supplies & Services,G00010001/D001001,General Fund,Equipment Purchase
Ashfield District Council,37UB,Terberg Matec UK,V1018619,16/02/2023,195499.00,Place & Communities 2,Supplies & Services,G00010001/D001001,General Fund,Equipment Purchase
Ashfield District Council,37UB,Terberg Matec UK,V1018620,16/02/2023,195499.00,Place & Communities 2,Supplies & Services,G00010001/D001001,General Fund,Equipment Purchase
Ashfield District Council,37UB,Terberg Matec UK,V1018621,16/02/2023,195499.00,Place & Communities 2,Supplies & Services,G00010001/D001001,General Fund,Equipment Purchase
Ashfield District Council,37UB,Terberg Matec UK,V1018628,16/02/2023,355.00,Place & Communities 2,Supplies & Services,G00010001/D001001,General Fund,Equipment Purchase
Ashfield District Council,37UB,Terberg Matec UK,V1018629,16/02/2023,639.00,Place & Communities 2,Supplies & Services,G00010001/D001001,General Fund,Equipment Purchase
Ashfield District Council,37UB,Terberg Matec UK,V1018630,16/02/2023,639.00,Place & Communities 2,Supplies & Services,G00010001/D001001,General Fund,Equipment Purchase
Ashfield District Council,37UB,Terberg Matec UK,V1018631,16/02/2023,627.00,Place & Communities 2,Supplies & Services,G00010001/D001001,General Fund,Equipment Purchase
Ashfield District Council,37UB,Terberg Matec UK,V1018632,16/02/2023,627.00,Place & Communities 2,Supplies & Services,G00010001/D001001,General Fund,Equipment Purchase
Ashfield District Council,37UB,Vivid Resourcing,V1016068,02/02/2023,1170.00,Place & Communities 2,Supplies & Services,C00255004/D200008,General Fund,Payments to Contractors External
Ashfield District Council,37UB,Dell Products,V1017561,02/02/2023,746.03,R & B Transformation 2,Supplies & Services,C00244/D200008,General Fund,Payments to Contractors External
Ashfield District Council,37UB,Dell Products,V1019347,23/02/2023,727.88,R & B Transformation 2,Supplies & Services,C00244/D200008,General Fund,Payments to Contractors External
Ashfield District Council,37UB,Dell Products,V1019426,23/02/2023,2992.95,R & B Transformation 2,Supplies & Services,C00244/D200008,General Fund,Payments to Contractors External
Ashfield District Council,37UB,Informed Recruitment Limited,V1017487,09/02/2023,1100.00,R & B Transformation 2,Supplies & Services,C00255016/D201019,General Fund,Project Management Fees
Ashfield District Council,37UB,Informed Recruitment Limited,V1018215,09/02/2023,1100.00,R & B Transformation 2,Supplies & Services,C00255016/D201019,General Fund,Project Management Fees
Ashfield District Council,37UB,Informed Recruitment Limited,V1018710,16/02/2023,1100.00,R & B Transformation 2,Supplies & Services,C00255016/D201019,General Fund,Project Management Fees
Ashfield District Council,37UB,Summit Creative Ltd,V1018266,09/02/2023,64.44,R & B Transformation 2,Supplies & Services,C00255008/D200008,General Fund,Payments to Contractors External
Ashfield District Council,37UB,Cadent Gas Limited,V1018246,09/02/2023,357.00,Housing & Assets 2,Supplies & Services,G00450009/D200008,HRA Decent Homes,Payments to Contractors External
Ashfield District Council,37UB,J Tomlinson Ltd,V1018736,16/02/2023,107016.72,Housing & Assets 2,Supplies & Services,G00450004/D200008,HRA Decent Homes,Payments to Contractors External
Ashfield District Council,37UB,J Tomlinson Ltd,V1018736,16/02/2023,123449.68,Housing & Assets 2,Supplies & Services,G00450001/D200008,HRA Decent Homes,Payments to Contractors External
Ashfield District Council,37UB,J Tomlinson Ltd,V1018736,16/02/2023,35962.32,Housing & Assets 2,Supplies & Services,G00450008/D200008,HRA Decent Homes,Payments to Contractors External
Ashfield District Council,37UB,J Tomlinson Ltd,V1018736,16/02/2023,21162.08,Housing & Assets 2,Supplies & Services,G00470001/D200008,HRA Decent Homes,Payments to Contractors External
Ashfield District Council,37UB,J Tomlinson Ltd,V1018736,16/02/2023,7539.81,Housing & Assets 2,Supplies & Services,G00450005/D200008,HRA Decent Homes,Payments to Contractors External
Ashfield District Council,37UB,J Tomlinson Ltd,V1018736,16/02/2023,327266.92,Housing & Assets 2,Supplies & Services,G00450006/D200008,HRA Decent Homes,Payments to Contractors External
Ashfield District Council,37UB,J Tomlinson Ltd,V1018736,16/02/2023,353687.16,Housing & Assets 2,Supplies & Services,G00460006/D200008,HRA Decent Homes,Payments to Contractors External
Ashfield District Council,37UB,Wilko Limited,V1017606,02/02/2023,200.00,Housing & Assets 2,Supplies & Services,G00450003/D200033,HRA Decent Homes,Decoration Vouchers
Ashfield District Council,37UB,Wilko Limited,V1017608,02/02/2023,70.83,Housing & Assets 2,Supplies & Services,G00450003/D200033,HRA Decent Homes,Decoration Vouchers
Ashfield District Council,37UB,Wilko Limited,V1017609,02/02/2023,123.33,Housing & Assets 2,Supplies & Services,G00450003/D200033,HRA Decent Homes,Decoration Vouchers
Ashfield District Council,37UB,Wilko Limited,V1017610,02/02/2023,62.50,Housing & Assets 2,Supplies & Services,G00450003/D200033,HRA Decent Homes,Decoration Vouchers
Ashfield District Council,37UB,Wilko Limited,V1017611,02/02/2023,62.50,Housing & Assets 2,Supplies & Services,G00450003/D200033,HRA Decent Homes,Decoration Vouchers
Ashfield District Council,37UB,Wilko Limited,V1017612,02/02/2023,50.00,Housing & Assets 2,Supplies & Services,G00450003/D200033,HRA Decent Homes,Decoration Vouchers
Ashfield District Council,37UB,Wilko Limited,V1017613,02/02/2023,41.67,Housing & Assets 2,Supplies & Services,G00450003/D200033,HRA Decent Homes,Decoration Vouchers
Ashfield District Council,37UB,Wilko Limited,V1017614,02/02/2023,50.83,Housing & Assets 2,Supplies & Services,G00450003/D200033,HRA Decent Homes,Decoration Vouchers
Ashfield District Council,37UB,Wilko Limited,V1017615,02/02/2023,100.00,Housing & Assets 2,Supplies & Services,G00450003/D200033,HRA Decent Homes,Decoration Vouchers
Ashfield District Council,37UB,Wilko Limited,V1017616,02/02/2023,204.17,Housing & Assets 2,Supplies & Services,G00450003/D200033,HRA Decent Homes,Decoration Vouchers
Ashfield District Council,37UB,Wilko Limited,V1017880,02/02/2023,62.50,Housing & Assets 2,Supplies & Services,G00450003/D200033,HRA Decent Homes,Decoration Vouchers
Ashfield District Council,37UB,Wilko Limited,V1018522,09/02/2023,61.42,Housing & Assets 2,Supplies & Services,G00450003/D200033,HRA Decent Homes,Decoration Vouchers
Ashfield District Council,37UB,Wilko Limited,V1018523,09/02/2023,62.50,Housing & Assets 2,Supplies & Services,G00450003/D200033,HRA Decent Homes,Decoration Vouchers
Ashfield District Council,37UB,Wilko Limited,V1019301,16/02/2023,249.17,Housing & Assets 2,Supplies & Services,G00450003/D200033,HRA Decent Homes,Decoration Vouchers
Ashfield District Council,37UB,Wilko Limited,V1019302,16/02/2023,124.17,Housing & Assets 2,Supplies & Services,G00450003/D200033,HRA Decent Homes,Decoration Vouchers
Ashfield District Council,37UB,Wilko Limited,V1019303,16/02/2023,38.33,Housing & Assets 2,Supplies & Services,G00450003/D200033,HRA Decent Homes,Decoration Vouchers
Ashfield District Council,37UB,Wilko Limited,V1019304,16/02/2023,50.00,Housing & Assets 2,Supplies & Services,G00450003/D200033,HRA Decent Homes,Decoration Vouchers
Ashfield District Council,37UB,Wilko Limited,V1019305,16/02/2023,66.67,Housing & Assets 2,Supplies & Services,G00450003/D200033,HRA Decent Homes,Decoration Vouchers
Ashfield District Council,37UB,Wilko Limited,V1019306,16/02/2023,137.50,Housing & Assets 2,Supplies & Services,G00450003/D200033,HRA Decent Homes,Decoration Vouchers
Ashfield District Council,37UB,Wilko Limited,V1019307,16/02/2023,131.08,Housing & Assets 2,Supplies & Services,G00450003/D200033,HRA Decent Homes,Decoration Vouchers
Ashfield District Council,37UB,Wilko Limited,V1019307,16/02/2023,2.14,Housing & Assets 2,Supplies & Services,G00450003/D200033,HRA Decent Homes,Decoration Vouchers
Ashfield District Council,37UB,Wilko Limited,V1019308,16/02/2023,71.42,Housing & Assets 2,Supplies & Services,G00450003/D200033,HRA Decent Homes,Decoration Vouchers
Ashfield District Council,37UB,Wilko Limited,V1019309,16/02/2023,45.00,Housing & Assets 2,Supplies & Services,G00450003/D200033,HRA Decent Homes,Decoration Vouchers
Ashfield District Council,37UB,Wilko Limited,V1019310,16/02/2023,62.50,Housing & Assets 2,Supplies & Services,G00450003/D200033,HRA Decent Homes,Decoration Vouchers
Ashfield District Council,37UB,Wilko Limited,V1019311,16/02/2023,66.67,Housing & Assets 2,Supplies & Services,G00450003/D200033,HRA Decent Homes,Decoration Vouchers
Ashfield District Council,37UB,Wilko Limited,V1019312,16/02/2023,132.29,Housing & Assets 2,Supplies & Services,G00450003/D200033,HRA Decent Homes,Decoration Vouchers
Ashfield District Council,37UB,Wilko Limited,V1019313,16/02/2023,62.37,Housing & Assets 2,Supplies & Services,G00450003/D200033,HRA Decent Homes,Decoration Vouchers
Ashfield District Council,37UB,Wilko Limited,V1019321,16/02/2023,100.00,Housing & Assets 2,Supplies & Services,G00450003/D200033,HRA Decent Homes,Decoration Vouchers
Ashfield District Council,37UB,Lindum Group Limited,V1017551,02/02/2023,135408.36,Housing & Assets 2,Supplies & Services,G00931/D200008,HRA General,Payments to Contractors External
Ashfield District Council,37UB,Lindum Group Limited,V1017552,02/02/2023,173819.56,Housing & Assets 2,Supplies & Services,C00280/D200008,HRA General,Payments to Contractors External
Ashfield District Council,37UB,Lindum Group Limited,V1017924,09/02/2023,201255.60,Housing & Assets 2,Supplies & Services,C00282/D200008,HRA General,Payments to Contractors External
Ashfield District Council,37UB,Rider Levett Bucknall UK Ltd,V1017415,02/02/2023,2475.00,Housing & Assets 2,Supplies & Services,C00282/D200008,HRA General,Payments to Contractors External
Ashfield District Council,37UB,Rider Levett Bucknall UK Ltd,V1017416,02/02/2023,3000.00,Housing & Assets 2,Supplies & Services,C00280/D200008,HRA General,Payments to Contractors External
Ashfield District Council,37UB,Rider Levett Bucknall UK Ltd,V1017417,02/02/2023,2100.00,Housing & Assets 2,Supplies & Services,G00931/D200008,HRA General,Payments to Contractors External
Ashfield District Council,37UB,Bevan Brittan,V1018248,09/02/2023,6.00,Legal & Governance 2,Supplies & Services,C00249/D200004,HRA General,Legal Expenses
Ashfield District Council,37UB,Bevan Brittan,V1018248,09/02/2023,735.70,Legal & Governance 2,Supplies & Services,C00249/D200004,HRA General,Legal Expenses
Ashfield District Council,37UB,Amazon Payments UK Ltd,V1018317,09/02/2023,339.16,R & B Transformation 2,Supplies & Services,G00930/D200008,HRA General,Payments to Contractors External
Ashfield District Council,37UB,Amazon Payments UK Ltd,V1018494,09/02/2023,32.58,R & B Transformation 2,Supplies & Services,G00930/D200008,HRA General,Payments to Contractors External
Ashfield District Council,37UB,Dell Products,V1017561,02/02/2023,746.03,R & B Transformation 2,Supplies & Services,G00930/D200008,HRA General,Payments to Contractors External
Ashfield District Council,37UB,Dell Products,V1019347,23/02/2023,1091.82,R & B Transformation 2,Supplies & Services,G00930/D200008,HRA General,Payments to Contractors External
Ashfield District Council,37UB,Dell Products,V1019425,23/02/2023,2992.95,R & B Transformation 2,Supplies & Services,G00930/D200008,HRA General,Payments to Contractors External
Ashfield District Council,37UB,Mobile Mini UK T/A Mr Box Ltd,V1019515,23/02/2023,3860.00,Place & Communities 2,Supplies & Services,C00243/D200008,Hucknall Area,Payments to Contractors External
Ashfield District Council,37UB,Geoinvestigate Ltd,V1018254,09/02/2023,425.00,Housing & Assets 2,Supplies & Services,C00277/D200008,Rural Area,Payments to Contractors External
Ashfield District Council,37UB,Cornus Limited,V1018586,16/02/2023,1950.00,Place & Communities 2,Supplies & Services,N00111/D200008,Sutton Area,Payments to Contractors External
Ashfield District Council,37UB,Mazars LLP,V1017899,09/02/2023,13272.00,R & B Transformation 2,Supplies & Services,A01003/D201008,Democratic Core,Audit Fees
Ashfield District Council,37UB,Arden Winch & Co Ltd,V1019843,28/02/2023,231.40,Housing & Assets 2,Supplies & Services,T35026/D200008,Housing Stock Accounts,Payments to Contractors External
Ashfield District Council,37UB,B & H Plastics Ltd,V1017824,06/02/2023,754.16,Housing & Assets 2,Supplies & Services,T35026/D200008,Housing Stock Accounts,Payments to Contractors External
Ashfield District Council,37UB,Burbage Iron Craft Ltd t/a Cannock Gates Ltd,V1019844,28/02/2023,630.00,Housing & Assets 2,Supplies & Services,T35026/D200008,Housing Stock Accounts,Payments to Contractors External
Ashfield District Council,37UB,Burbage Iron Craft Ltd t/a Cannock Gates Ltd,V1019844,28/02/2023,596.00,Housing & Assets 2,Supplies & Services,T35026/D200008,Housing Stock Accounts,Payments to Contractors External
Ashfield District Council,37UB,City Plumbing Supplies Holdings Ltd,V1017828,06/02/2023,235.76,Housing & Assets 2,Supplies & Services,T35026/D200008,Housing Stock Accounts,Payments to Contractors External
Ashfield District Council,37UB,City Plumbing Supplies Holdings Ltd,V1017830,06/02/2023,375.24,Housing & Assets 2,Supplies & Services,T35026/D200008,Housing Stock Accounts,Payments to Contractors External
Ashfield District Council,37UB,City Plumbing Supplies Holdings Ltd,V1017968,14/02/2023,107.00,Housing & Assets 2,Supplies & Services,T35026/D200008,Housing Stock Accounts,Payments to Contractors External
Ashfield District Council,37UB,City Plumbing Supplies Holdings Ltd,V1018823,20/02/2023,332.52,Housing & Assets 2,Supplies & Services,T35026/D200008,Housing Stock Accounts,Payments to Contractors External
Ashfield District Council,37UB,City Plumbing Supplies Holdings Ltd,V1018824,20/02/2023,66.45,Housing & Assets 2,Supplies & Services,T35026/D200008,Housing Stock Accounts,Payments to Contractors External
Ashfield District Council,37UB,City Plumbing Supplies Holdings Ltd,V1018824,20/02/2023,14.80,Housing & Assets 2,Supplies & Services,T35026/D200008,Housing Stock Accounts,Payments to Contractors External
Ashfield District Council,37UB,City Plumbing Supplies Holdings Ltd,V1018825,20/02/2023,31.27,Housing & Assets 2,Supplies & Services,T35026/D200008,Housing Stock Accounts,Payments to Contractors External
Ashfield District Council,37UB,City Plumbing Supplies Holdings Ltd,V1018826,20/02/2023,857.22,Housing & Assets 2,Supplies & Services,T35026/D200008,Housing Stock Accounts,Payments to Contractors External
Ashfield District Council,37UB,City Plumbing Supplies Holdings Ltd,V1018827,20/02/2023,343.97,Housing & Assets 2,Supplies & Services,T35026/D200008,Housing Stock Accounts,Payments to Contractors External
Ashfield District Council,37UB,City Plumbing Supplies Holdings Ltd,V1018828,20/02/2023,214.95,Housing & Assets 2,Supplies & Services,T35026/D200008,Housing Stock Accounts,Payments to Contractors External
Ashfield District Council,37UB,City Plumbing Supplies Holdings Ltd,V1019869,28/02/2023,21.00,Housing & Assets 2,Supplies & Services,T35026/D200008,Housing Stock Accounts,Payments to Contractors External
Ashfield District Council,37UB,City Plumbing Supplies Holdings Ltd,V1019869,28/02/2023,83.50,Housing & Assets 2,Supplies & Services,T35026/D200008,Housing Stock Accounts,Payments to Contractors External
Ashfield District Council,37UB,City Plumbing Supplies Holdings Ltd,V1019870,28/02/2023,96.84,Housing & Assets 2,Supplies & Services,T35026/D200008,Housing Stock Accounts,Payments to Contractors External
Ashfield District Council,37UB,City Plumbing Supplies Holdings Ltd,V1019871,28/02/2023,23.04,Housing & Assets 2,Supplies & Services,T35026/D200008,Housing Stock Accounts,Payments to Contractors External
Ashfield District Council,37UB,City Plumbing Supplies Holdings Ltd,V1019872,28/02/2023,41.00,Housing & Assets 2,Supplies & Services,T35026/D200008,Housing Stock Accounts,Payments to Contractors External
Ashfield District Council,37UB,City Plumbing Supplies Holdings Ltd,V1019872,28/02/2023,59.40,Housing & Assets 2,Supplies & Services,T35026/D200008,Housing Stock Accounts,Payments to Contractors External
Ashfield District Council,37UB,City Plumbing Supplies Holdings Ltd,V1019872,28/02/2023,130.70,Housing & Assets 2,Supplies & Services,T35026/D200008,Housing Stock Accounts,Payments to Contractors External
Ashfield District Council,37UB,Crown Paints Limited,V1018388,14/02/2023,26.00,Housing & Assets 2,Supplies & Services,T35026/D200008,Housing Stock Accounts,Payments to Contractors External
Ashfield District Council,37UB,Crown Paints Limited,V1018829,20/02/2023,155.80,Housing & Assets 2,Supplies & Services,T35026/D200008,Housing Stock Accounts,Payments to Contractors External
Ashfield District Council,37UB,Door-Stop International Ltd,V1017831,06/02/2023,442.13,Housing & Assets 2,Supplies & Services,T35026/D200008,Housing Stock Accounts,Payments to Contractors External
Ashfield District Council,37UB,Door-Stop International Ltd,V1017969,14/02/2023,463.21,Housing & Assets 2,Supplies & Services,T35026/D200008,Housing Stock Accounts,Payments to Contractors External
Ashfield District Council,37UB,Door-Stop International Ltd,V1017970,14/02/2023,463.21,Housing & Assets 2,Supplies & Services,T35026/D200008,Housing Stock Accounts,Payments to Contractors External
Ashfield District Council,37UB,Door-Stop International Ltd,V1019557,28/02/2023,214.47,Housing & Assets 2,Supplies & Services,T35026/D200008,Housing Stock Accounts,Payments to Contractors External
Ashfield District Council,37UB,Door-Stop International Ltd,V1019557,28/02/2023,23.83,Housing & Assets 2,Supplies & Services,T35026/D200008,Housing Stock Accounts,Payments to Contractors External
Ashfield District Council,37UB,Door-Stop International Ltd,V1019879,28/02/2023,421.13,Housing & Assets 2,Supplies & Services,T35026/D200008,Housing Stock Accounts,Payments to Contractors External
Ashfield District Council,37UB,Door-Stop International Ltd,V1019880,28/02/2023,507.66,Housing & Assets 2,Supplies & Services,T35026/D200008,Housing Stock Accounts,Payments to Contractors External
Ashfield District Council,37UB,Door-Stop International Ltd,V1019882,28/02/2023,450.13,Housing & Assets 2,Supplies & Services,T35026/D200008,Housing Stock Accounts,Payments to Contractors External
Ashfield District Council,37UB,Door-Stop International Ltd,V1019883,28/02/2023,499.53,Housing & Assets 2,Supplies & Services,T35026/D200008,Housing Stock Accounts,Payments to Contractors External
Ashfield District Council,37UB,Edwards Metal Windows,V1017972,14/02/2023,144.00,Housing & Assets 2,Supplies & Services,T35026/D200008,Housing Stock Accounts,Payments to Contractors External
Ashfield District Council,37UB,Evolve Corporate Ltd t/a PK Safety,V1019890,28/02/2023,390.00,Housing & Assets 2,Supplies & Services,T35026/D200008,Housing Stock Accounts,Payments to Contractors External
Ashfield District Council,37UB,Evolve Corporate Ltd t/a PK Safety,V1019890,28/02/2023,315.00,Housing & Assets 2,Supplies & Services,T35026/D200008,Housing Stock Accounts,Payments to Contractors External
Ashfield District Council,37UB,Evolve Corporate Ltd t/a PK Safety,V1019890,28/02/2023,315.00,Housing & Assets 2,Supplies & Services,T35026/D200008,Housing Stock Accounts,Payments to Contractors External
Ashfield District Council,37UB,Greenham Trading Ltd,V1017641,06/02/2023,-19.51,Housing & Assets 2,Supplies & Services,T35026/D200008,Housing Stock Accounts,Payments to Contractors External
Ashfield District Council,37UB,Greenham Trading Ltd,V1017832,06/02/2023,156.08,Housing & Assets 2,Supplies & Services,T35026/D200008,Housing Stock Accounts,Payments to Contractors External
Ashfield District Council,37UB,Greenham Trading Ltd,V1018389,14/02/2023,118.40,Housing & Assets 2,Supplies & Services,T35026/D200008,Housing Stock Accounts,Payments to Contractors External
Ashfield District Council,37UB,Huws Gray Limited,V1017845,06/02/2023,13.37,Housing & Assets 2,Supplies & Services,T35026/D200008,Housing Stock Accounts,Payments to Contractors External
Ashfield District Council,37UB,Huws Gray Limited,V1017845,06/02/2023,14.10,Housing & Assets 2,Supplies & Services,T35026/D200008,Housing Stock Accounts,Payments to Contractors External
Ashfield District Council,37UB,Huws Gray Limited,V1017845,06/02/2023,23.36,Housing & Assets 2,Supplies & Services,T35026/D200008,Housing Stock Accounts,Payments to Contractors External
Ashfield District Council,37UB,Huws Gray Limited,V1017845,06/02/2023,1.25,Housing & Assets 2,Supplies & Services,T35026/D200008,Housing Stock Accounts,Payments to Contractors External
Ashfield District Council,37UB,Huws Gray Limited,V1017845,06/02/2023,4.80,Housing & Assets 2,Supplies & Services,T35026/D200008,Housing Stock Accounts,Payments to Contractors External
Ashfield District Council,37UB,Huws Gray Limited,V1017845,06/02/2023,10.22,Housing & Assets 2,Supplies & Services,T35026/D200008,Housing Stock Accounts,Payments to Contractors External
Ashfield District Council,37UB,Huws Gray Limited,V1018041,06/02/2023,122.32,Housing & Assets 2,Supplies & Services,T35026/D200008,Housing Stock Accounts,Payments to Contractors External
Ashfield District Council,37UB,Huws Gray Limited,V1017940,14/02/2023,14.40,Housing & Assets 2,Supplies & Services,T35026/D200008,Housing Stock Accounts,Payments to Contractors External
Ashfield District Council,37UB,Huws Gray Limited,V1017941,14/02/2023,93.00,Housing & Assets 2,Supplies & Services,T35026/D200008,Housing Stock Accounts,Payments to Contractors External
Ashfield District Council,37UB,Huws Gray Limited,V1017941,14/02/2023,25.05,Housing & Assets 2,Supplies & Services,T35026/D200008,Housing Stock Accounts,Payments to Contractors External
Ashfield District Council,37UB,Huws Gray Limited,V1017984,14/02/2023,80.46,Housing & Assets 2,Supplies & Services,T35026/D200008,Housing Stock Accounts,Payments to Contractors External
Ashfield District Council,37UB,Huws Gray Limited,V1017984,14/02/2023,9.68,Housing & Assets 2,Supplies & Services,T35026/D200008,Housing Stock Accounts,Payments to Contractors External
Ashfield District Council,37UB,Huws Gray Limited,V1017985,14/02/2023,95.25,Housing & Assets 2,Supplies & Services,T35026/D200008,Housing Stock Accounts,Payments to Contractors External
Ashfield District Council,37UB,Huws Gray Limited,V1017986,14/02/2023,530.00,Housing & Assets 2,Supplies & Services,T35026/D200008,Housing Stock Accounts,Payments to Contractors External
Ashfield District Council,37UB,Huws Gray Limited,V1017987,14/02/2023,17.60,Housing & Assets 2,Supplies & Services,T35026/D200008,Housing Stock Accounts,Payments to Contractors External
Ashfield District Council,37UB,Huws Gray Limited,V1017988,14/02/2023,316.50,Housing & Assets 2,Supplies & Services,T35026/D200008,Housing Stock Accounts,Payments to Contractors External
Ashfield District Council,37UB,Huws Gray Limited,V1017988,14/02/2023,73.40,Housing & Assets 2,Supplies & Services,T35026/D200008,Housing Stock Accounts,Payments to Contractors External
Ashfield District Council,37UB,Huws Gray Limited,V1017989,14/02/2023,199.20,Housing & Assets 2,Supplies & Services,T35026/D200008,Housing Stock Accounts,Payments to Contractors External
Ashfield District Council,37UB,Huws Gray Limited,V1017990,14/02/2023,9.44,Housing & Assets 2,Supplies & Services,T35026/D200008,Housing Stock Accounts,Payments to Contractors External
Ashfield District Council,37UB,Huws Gray Limited,V1017991,14/02/2023,31.82,Housing & Assets 2,Supplies & Services,T35026/D200008,Housing Stock Accounts,Payments to Contractors External
Ashfield District Council,37UB,Huws Gray Limited,V1017992,14/02/2023,422.24,Housing & Assets 2,Supplies & Services,T35026/D200008,Housing Stock Accounts,Payments to Contractors External
Ashfield District Council,37UB,Huws Gray Limited,V1017993,14/02/2023,145.20,Housing & Assets 2,Supplies & Services,T35026/D200008,Housing Stock Accounts,Payments to Contractors External
Ashfield District Council,37UB,Huws Gray Limited,V1017994,14/02/2023,132.16,Housing & Assets 2,Supplies & Services,T35026/D200008,Housing Stock Accounts,Payments to Contractors External
Ashfield District Council,37UB,Huws Gray Limited,V1017995,14/02/2023,321.93,Housing & Assets 2,Supplies & Services,T35026/D200008,Housing Stock Accounts,Payments to Contractors External
Ashfield District Council,37UB,Huws Gray Limited,V1017997,14/02/2023,195.44,Housing & Assets 2,Supplies & Services,T35026/D200008,Housing Stock Accounts,Payments to Contractors External
Ashfield District Council,37UB,Huws Gray Limited,V1017998,14/02/2023,95.25,Housing & Assets 2,Supplies & Services,T35026/D200008,Housing Stock Accounts,Payments to Contractors External
Ashfield District Council,37UB,Huws Gray Limited,V1018000,14/02/2023,486.30,Housing & Assets 2,Supplies & Services,T35026/D200008,Housing Stock Accounts,Payments to Contractors External
Ashfield District Council,37UB,Huws Gray Limited,V1018000,14/02/2023,36.75,Housing & Assets 2,Supplies & Services,T35026/D200008,Housing Stock Accounts,Payments to Contractors External
Ashfield District Council,37UB,Huws Gray Limited,V1018000,14/02/2023,919.80,Housing & Assets 2,Supplies & Services,T35026/D200008,Housing Stock Accounts,Payments to Contractors External
Ashfield District Council,37UB,Huws Gray Limited,V1018001,14/02/2023,62.25,Housing & Assets 2,Supplies & Services,T35026/D200008,Housing Stock Accounts,Payments to Contractors External
Ashfield District Council,37UB,Huws Gray Limited,V1018002,14/02/2023,93.00,Housing & Assets 2,Supplies & Services,T35026/D200008,Housing Stock Accounts,Payments to Contractors External
Ashfield District Council,37UB,Huws Gray Limited,V1018003,14/02/2023,82.16,Housing & Assets 2,Supplies & Services,T35026/D200008,Housing Stock Accounts,Payments to Contractors External
Ashfield District Council,37UB,Huws Gray Limited,V1018004,14/02/2023,530.00,Housing & Assets 2,Supplies & Services,T35026/D200008,Housing Stock Accounts,Payments to Contractors External
Ashfield District Council,37UB,Huws Gray Limited,V1018004,14/02/2023,318.00,Housing & Assets 2,Supplies & Services,T35026/D200008,Housing Stock Accounts,Payments to Contractors External
Ashfield District Council,37UB,Huws Gray Limited,V1018399,14/02/2023,48.37,Housing & Assets 2,Supplies & Services,T35026/D200008,Housing Stock Accounts,Payments to Contractors External
Ashfield District Council,37UB,Huws Gray Limited,V1018406,14/02/2023,122.50,Housing & Assets 2,Supplies & Services,T35026/D200008,Housing Stock Accounts,Payments to Contractors External
Ashfield District Council,37UB,Huws Gray Limited,V1018409,14/02/2023,372.00,Housing & Assets 2,Supplies & Services,T35026/D200008,Housing Stock Accounts,Payments to Contractors External
Ashfield District Council,37UB,Huws Gray Limited,V1018411,14/02/2023,63.24,Housing & Assets 2,Supplies & Services,T35026/D200008,Housing Stock Accounts,Payments to Contractors External
Ashfield District Council,37UB,Huws Gray Limited,V1018411,14/02/2023,397.00,Housing & Assets 2,Supplies & Services,T35026/D200008,Housing Stock Accounts,Payments to Contractors External
Ashfield District Council,37UB,Huws Gray Limited,V1018411,14/02/2023,314.20,Housing & Assets 2,Supplies & Services,T35026/D200008,Housing Stock Accounts,Payments to Contractors External
Ashfield District Council,37UB,Huws Gray Limited,V1018411,14/02/2023,64.00,Housing & Assets 2,Supplies & Services,T35026/D200008,Housing Stock Accounts,Payments to Contractors External
Ashfield District Council,37UB,Huws Gray Limited,V1018412,14/02/2023,47.43,Housing & Assets 2,Supplies & Services,T35026/D200008,Housing Stock Accounts,Payments to Contractors External
Ashfield District Council,37UB,Huws Gray Limited,V1018791,28/02/2023,-51.63,Housing & Assets 2,Supplies & Services,T35026/D200008,Housing Stock Accounts,Payments to Contractors External
Ashfield District Council,37UB,Huws Gray Limited,V1018792,28/02/2023,-34.42,Housing & Assets 2,Supplies & Services,T35026/D200008,Housing Stock Accounts,Payments to Contractors External
Ashfield District Council,37UB,Huws Gray Limited,V1019549,28/02/2023,-150.88,Housing & Assets 2,Supplies & Services,T35026/D200008,Housing Stock Accounts,Payments to Contractors External
Ashfield District Council,37UB,Huws Gray Limited,V1019558,28/02/2023,139.93,Housing & Assets 2,Supplies & Services,T35026/D200008,Housing Stock Accounts,Payments to Contractors External
Ashfield District Council,37UB,Huws Gray Limited,V1019559,28/02/2023,537.00,Housing & Assets 2,Supplies & Services,T35026/D200008,Housing Stock Accounts,Payments to Contractors External
Ashfield District Council,37UB,Huws Gray Limited,V1019559,28/02/2023,243.15,Housing & Assets 2,Supplies & Services,T35026/D200008,Housing Stock Accounts,Payments to Contractors External
Ashfield District Council,37UB,Huws Gray Limited,V1019559,28/02/2023,597.87,Housing & Assets 2,Supplies & Services,T35026/D200008,Housing Stock Accounts,Payments to Contractors External
Ashfield District Council,37UB,Huws Gray Limited,V1019589,28/02/2023,17.21,Housing & Assets 2,Supplies & Services,T35026/D200008,Housing Stock Accounts,Payments to Contractors External
Ashfield District Council,37UB,Huws Gray Limited,V1019609,28/02/2023,12.51,Housing & Assets 2,Supplies & Services,T35026/D200008,Housing Stock Accounts,Payments to Contractors External
Ashfield District Council,37UB,Huws Gray Limited,V1019609,28/02/2023,11.68,Housing & Assets 2,Supplies & Services,T35026/D200008,Housing Stock Accounts,Payments to Contractors External
Ashfield District Council,37UB,Huws Gray Limited,V1019609,28/02/2023,116.00,Housing & Assets 2,Supplies & Services,T35026/D200008,Housing Stock Accounts,Payments to Contractors External
Ashfield District Council,37UB,Huws Gray Limited,V1019609,28/02/2023,9.92,Housing & Assets 2,Supplies & Services,T35026/D200008,Housing Stock Accounts,Payments to Contractors External
Ashfield District Council,37UB,Huws Gray Limited,V1019609,28/02/2023,74.46,Housing & Assets 2,Supplies & Services,T35026/D200008,Housing Stock Accounts,Payments to Contractors External
Ashfield District Council,37UB,Huws Gray Limited,V1019609,28/02/2023,313.52,Housing & Assets 2,Supplies & Services,T35026/D200008,Housing Stock Accounts,Payments to Contractors External
Ashfield District Council,37UB,Huws Gray Limited,V1019918,28/02/2023,17.50,Housing & Assets 2,Supplies & Services,T35026/D200008,Housing Stock Accounts,Payments to Contractors External
Ashfield District Council,37UB,Huws Gray Limited,V1019919,28/02/2023,20.10,Housing & Assets 2,Supplies & Services,T35026/D200008,Housing Stock Accounts,Payments to Contractors External
Ashfield District Council,37UB,Huws Gray Limited,V1019919,28/02/2023,162.42,Housing & Assets 2,Supplies & Services,T35026/D200008,Housing Stock Accounts,Payments to Contractors External
Ashfield District Council,37UB,Huws Gray Limited,V1019920,28/02/2023,295.68,Housing & Assets 2,Supplies & Services,T35026/D200008,Housing Stock Accounts,Payments to Contractors External
Ashfield District Council,37UB,Huws Gray Limited,V1019921,28/02/2023,48.00,Housing & Assets 2,Supplies & Services,T35026/D200008,Housing Stock Accounts,Payments to Contractors External
Ashfield District Council,37UB,Huws Gray Limited,V1019922,28/02/2023,969.00,Housing & Assets 2,Supplies & Services,T35026/D200008,Housing Stock Accounts,Payments to Contractors External
Ashfield District Council,37UB,Huws Gray Limited,V1019923,28/02/2023,60.21,Housing & Assets 2,Supplies & Services,T35026/D200008,Housing Stock Accounts,Payments to Contractors External
Ashfield District Council,37UB,Huws Gray Limited,V1019924,28/02/2023,135.50,Housing & Assets 2,Supplies & Services,T35026/D200008,Housing Stock Accounts,Payments to Contractors External
Ashfield District Council,37UB,Huws Gray Limited,V1019926,28/02/2023,203.95,Housing & Assets 2,Supplies & Services,T35026/D200008,Housing Stock Accounts,Payments to Contractors External
Ashfield District Council,37UB,Huws Gray Limited,V1019926,28/02/2023,280.80,Housing & Assets 2,Supplies & Services,T35026/D200008,Housing Stock Accounts,Payments to Contractors External
Ashfield District Council,37UB,Huws Gray Limited,V1019926,28/02/2023,222.67,Housing & Assets 2,Supplies & Services,T35026/D200008,Housing Stock Accounts,Payments to Contractors External
Ashfield District Council,37UB,Huws Gray Limited,V1019927,28/02/2023,317.20,Housing & Assets 2,Supplies & Services,T35026/D200008,Housing Stock Accounts,Payments to Contractors External
Ashfield District Council,37UB,Huws Gray Limited,V1019928,28/02/2023,15.52,Housing & Assets 2,Supplies & Services,T35026/D200008,Housing Stock Accounts,Payments to Contractors External
Ashfield District Council,37UB,Huws Gray Limited,V1019929,28/02/2023,154.50,Housing & Assets 2,Supplies & Services,T35026/D200008,Housing Stock Accounts,Payments to Contractors External
Ashfield District Council,37UB,Huws Gray Limited,V1019930,28/02/2023,3.72,Housing & Assets 2,Supplies & Services,T35026/D200008,Housing Stock Accounts,Payments to Contractors External
Ashfield District Council,37UB,Huws Gray Limited,V1019930,28/02/2023,95.80,Housing & Assets 2,Supplies & Services,T35026/D200008,Housing Stock Accounts,Payments to Contractors External
Ashfield District Council,37UB,Huws Gray Limited,V1019933,28/02/2023,14.07,Housing & Assets 2,Supplies & Services,T35026/D200008,Housing Stock Accounts,Payments to Contractors External
Ashfield District Council,37UB,Huws Gray Limited,V1019934,28/02/2023,57.88,Housing & Assets 2,Supplies & Services,T35026/D200008,Housing Stock Accounts,Payments to Contractors External
Ashfield District Council,37UB,Huws Gray Limited,V1019935,28/02/2023,71.25,Housing & Assets 2,Supplies & Services,T35026/D200008,Housing Stock Accounts,Payments to Contractors External
Ashfield District Council,37UB,Huws Gray Limited,V1019935,28/02/2023,142.50,Housing & Assets 2,Supplies & Services,T35026/D200008,Housing Stock Accounts,Payments to Contractors External
Ashfield District Council,37UB,Huws Gray Limited,V1019936,28/02/2023,253.20,Housing & Assets 2,Supplies & Services,T35026/D200008,Housing Stock Accounts,Payments to Contractors External
Ashfield District Council,37UB,Huws Gray Limited,V1019938,28/02/2023,443.52,Housing & Assets 2,Supplies & Services,T35026/D200008,Housing Stock Accounts,Payments to Contractors External
Ashfield District Council,37UB,Huws Gray Limited,V1019939,28/02/2023,5.04,Housing & Assets 2,Supplies & Services,T35026/D200008,Housing Stock Accounts,Payments to Contractors External
Ashfield District Council,37UB,Huws Gray Limited,V1019941,28/02/2023,15.10,Housing & Assets 2,Supplies & Services,T35026/D200008,Housing Stock Accounts,Payments to Contractors External
Ashfield District Council,37UB,Huws Gray Limited,V1019943,28/02/2023,16.70,Housing & Assets 2,Supplies & Services,T35026/D200008,Housing Stock Accounts,Payments to Contractors External
Ashfield District Council,37UB,Huws Gray Limited,V1019943,28/02/2023,279.00,Housing & Assets 2,Supplies & Services,T35026/D200008,Housing Stock Accounts,Payments to Contractors External
Ashfield District Council,37UB,Huws Gray Limited,V1019944,28/02/2023,48.36,Housing & Assets 2,Supplies & Services,T35026/D200008,Housing Stock Accounts,Payments to Contractors External
Ashfield District Council,37UB,Huws Gray Limited,V1019946,28/02/2023,206.07,Housing & Assets 2,Supplies & Services,T35026/D200008,Housing Stock Accounts,Payments to Contractors External
Ashfield District Council,37UB,Huws Gray Limited,V1019947,28/02/2023,40.80,Housing & Assets 2,Supplies & Services,T35026/D200008,Housing Stock Accounts,Payments to Contractors External
Ashfield District Council,37UB,Huws Gray Limited,V1019948,28/02/2023,530.00,Housing & Assets 2,Supplies & Services,T35026/D200008,Housing Stock Accounts,Payments to Contractors External
Ashfield District Council,37UB,Huws Gray Limited,V1019949,28/02/2023,22.90,Housing & Assets 2,Supplies & Services,T35026/D200008,Housing Stock Accounts,Payments to Contractors External
Ashfield District Council,37UB,Huws Gray Limited,V1019950,28/02/2023,344.00,Housing & Assets 2,Supplies & Services,T35026/D200008,Housing Stock Accounts,Payments to Contractors External
Ashfield District Council,37UB,Huws Gray Limited,V1019951,28/02/2023,15.52,Housing & Assets 2,Supplies & Services,T35026/D200008,Housing Stock Accounts,Payments to Contractors External
Ashfield District Council,37UB,Huws Gray Limited,V1019951,28/02/2023,12.25,Housing & Assets 2,Supplies & Services,T35026/D200008,Housing Stock Accounts,Payments to Contractors External
Ashfield District Council,37UB,Huws Gray Limited,V1019952,28/02/2023,108.53,Housing & Assets 2,Supplies & Services,T35026/D200008,Housing Stock Accounts,Payments to Contractors External
Ashfield District Council,37UB,Huws Gray Limited,V1019952,28/02/2023,110.88,Housing & Assets 2,Supplies & Services,T35026/D200008,Housing Stock Accounts,Payments to Contractors External
Ashfield District Council,37UB,Huws Gray Limited,V1019955,28/02/2023,231.50,Housing & Assets 2,Supplies & Services,T35026/D200008,Housing Stock Accounts,Payments to Contractors External
Ashfield District Council,37UB,Huws Gray Limited,V1019955,28/02/2023,200.00,Housing & Assets 2,Supplies & Services,T35026/D200008,Housing Stock Accounts,Payments to Contractors External
Ashfield District Council,37UB,Magnet Ltd,V1017833,06/02/2023,866.70,Housing & Assets 2,Supplies & Services,T35026/D200008,Housing Stock Accounts,Payments to Contractors External
Ashfield District Council,37UB,Magnet Ltd,V1017833,06/02/2023,288.90,Housing & Assets 2,Supplies & Services,T35026/D200008,Housing Stock Accounts,Payments to Contractors External
Ashfield District Council,37UB,Magnet Ltd,V1017833,06/02/2023,337.05,Housing & Assets 2,Supplies & Services,T35026/D200008,Housing Stock Accounts,Payments to Contractors External
Ashfield District Council,37UB,Nationwide Hygiene Supplies Limited,V1017644,14/02/2023,-92.82,Housing & Assets 2,Supplies & Services,T35026/D200008,Housing Stock Accounts,Payments to Contractors External
Ashfield District Council,37UB,Nationwide Hygiene Supplies Limited,V1018459,14/02/2023,106.24,Housing & Assets 2,Supplies & Services,T35026/D200008,Housing Stock Accounts,Payments to Contractors External
Ashfield District Council,37UB,Office Depot UK Limited,V1017834,06/02/2023,7.53,Housing & Assets 2,Supplies & Services,T35026/D200008,Housing Stock Accounts,Payments to Contractors External
Ashfield District Council,37UB,Office Depot UK Limited,V1017834,06/02/2023,30.83,Housing & Assets 2,Supplies & Services,T35026/D200008,Housing Stock Accounts,Payments to Contractors External
Ashfield District Council,37UB,Office Depot UK Limited,V1017834,06/02/2023,12.45,Housing & Assets 2,Supplies & Services,T35026/D200008,Housing Stock Accounts,Payments to Contractors External
Ashfield District Council,37UB,Office Depot UK Limited,V1017834,06/02/2023,20.67,Housing & Assets 2,Supplies & Services,T35026/D200008,Housing Stock Accounts,Payments to Contractors External
Ashfield District Council,37UB,Office Depot UK Limited,V1018390,14/02/2023,10.38,Housing & Assets 2,Supplies & Services,T35026/D200008,Housing Stock Accounts,Payments to Contractors External
Ashfield District Council,37UB,Office Depot UK Limited,V1018391,14/02/2023,31.36,Housing & Assets 2,Supplies & Services,T35026/D200008,Housing Stock Accounts,Payments to Contractors External
Ashfield District Council,37UB,Office Depot UK Limited,V1018831,20/02/2023,6.31,Housing & Assets 2,Supplies & Services,T35026/D200008,Housing Stock Accounts,Payments to Contractors External
Ashfield District Council,37UB,Office Depot UK Limited,V1019889,28/02/2023,12.74,Housing & Assets 2,Supplies & Services,T35026/D200008,Housing Stock Accounts,Payments to Contractors External
Ashfield District Council,37UB,Permadoor,V1017835,06/02/2023,942.69,Housing & Assets 2,Supplies & Services,T35026/D200008,Housing Stock Accounts,Payments to Contractors External
Ashfield District Council,37UB,PWS (Protective Wear Supplies) Limited,V1017836,06/02/2023,36.72,Housing & Assets 2,Supplies & Services,T35026/D200008,Housing Stock Accounts,Payments to Contractors External
Ashfield District Council,37UB,PWS (Protective Wear Supplies) Limited,V1017836,06/02/2023,31.80,Housing & Assets 2,Supplies & Services,T35026/D200008,Housing Stock Accounts,Payments to Contractors External
Ashfield District Council,37UB,PWS (Protective Wear Supplies) Limited,V1017837,06/02/2023,65.25,Housing & Assets 2,Supplies & Services,T35026/D200008,Housing Stock Accounts,Payments to Contractors External
Ashfield District Council,37UB,PWS (Protective Wear Supplies) Limited,V1017838,06/02/2023,57.60,Housing & Assets 2,Supplies & Services,T35026/D200008,Housing Stock Accounts,Payments to Contractors External
Ashfield District Council,37UB,PWS (Protective Wear Supplies) Limited,V1017838,06/02/2023,32.40,Housing & Assets 2,Supplies & Services,T35026/D200008,Housing Stock Accounts,Payments to Contractors External
Ashfield District Council,37UB,PWS (Protective Wear Supplies) Limited,V1017839,06/02/2023,9.85,Housing & Assets 2,Supplies & Services,T35026/D200008,Housing Stock Accounts,Payments to Contractors External
Ashfield District Council,37UB,PWS (Protective Wear Supplies) Limited,V1017973,14/02/2023,85.44,Housing & Assets 2,Supplies & Services,T35026/D200008,Housing Stock Accounts,Payments to Contractors External
Ashfield District Council,37UB,PWS (Protective Wear Supplies) Limited,V1017973,14/02/2023,71.10,Housing & Assets 2,Supplies & Services,T35026/D200008,Housing Stock Accounts,Payments to Contractors External
Ashfield District Council,37UB,PWS (Protective Wear Supplies) Limited,V1017973,14/02/2023,85.44,Housing & Assets 2,Supplies & Services,T35026/D200008,Housing Stock Accounts,Payments to Contractors External
Ashfield District Council,37UB,PWS (Protective Wear Supplies) Limited,V1017974,14/02/2023,178.72,Housing & Assets 2,Supplies & Services,T35026/D200008,Housing Stock Accounts,Payments to Contractors External
Ashfield District Council,37UB,PWS (Protective Wear Supplies) Limited,V1018392,14/02/2023,19.42,Housing & Assets 2,Supplies & Services,T35026/D200008,Housing Stock Accounts,Payments to Contractors External
Ashfield District Council,37UB,PWS (Protective Wear Supplies) Limited,V1018392,14/02/2023,38.84,Housing & Assets 2,Supplies & Services,T35026/D200008,Housing Stock Accounts,Payments to Contractors External
Ashfield District Council,37UB,PWS (Protective Wear Supplies) Limited,V1018392,14/02/2023,19.42,Housing & Assets 2,Supplies & Services,T35026/D200008,Housing Stock Accounts,Payments to Contractors External
Ashfield District Council,37UB,PWS (Protective Wear Supplies) Limited,V1018393,14/02/2023,26.10,Housing & Assets 2,Supplies & Services,T35026/D200008,Housing Stock Accounts,Payments to Contractors External
Ashfield District Council,37UB,PWS (Protective Wear Supplies) Limited,V1018393,14/02/2023,14.40,Housing & Assets 2,Supplies & Services,T35026/D200008,Housing Stock Accounts,Payments to Contractors External
Ashfield District Council,37UB,PWS (Protective Wear Supplies) Limited,V1018393,14/02/2023,165.24,Housing & Assets 2,Supplies & Services,T35026/D200008,Housing Stock Accounts,Payments to Contractors External
Ashfield District Council,37UB,PWS (Protective Wear Supplies) Limited,V1018393,14/02/2023,12.36,Housing & Assets 2,Supplies & Services,T35026/D200008,Housing Stock Accounts,Payments to Contractors External
Ashfield District Council,37UB,PWS (Protective Wear Supplies) Limited,V1018393,14/02/2023,87.90,Housing & Assets 2,Supplies & Services,T35026/D200008,Housing Stock Accounts,Payments to Contractors External
Ashfield District Council,37UB,PWS (Protective Wear Supplies) Limited,V1018790,20/02/2023,-24.00,Housing & Assets 2,Supplies & Services,T35026/D200008,Housing Stock Accounts,Payments to Contractors External
Ashfield District Council,37UB,PWS (Protective Wear Supplies) Limited,V1018832,20/02/2023,55.30,Housing & Assets 2,Supplies & Services,T35026/D200008,Housing Stock Accounts,Payments to Contractors External
Ashfield District Council,37UB,PWS (Protective Wear Supplies) Limited,V1018833,20/02/2023,11.64,Housing & Assets 2,Supplies & Services,T35026/D200008,Housing Stock Accounts,Payments to Contractors External
Ashfield District Council,37UB,PWS (Protective Wear Supplies) Limited,V1018833,20/02/2023,27.54,Housing & Assets 2,Supplies & Services,T35026/D200008,Housing Stock Accounts,Payments to Contractors External
Ashfield District Council,37UB,PWS (Protective Wear Supplies) Limited,V1018834,20/02/2023,238.00,Housing & Assets 2,Supplies & Services,T35026/D200008,Housing Stock Accounts,Payments to Contractors External
Ashfield District Council,37UB,PWS (Protective Wear Supplies) Limited,V1018835,20/02/2023,149.05,Housing & Assets 2,Supplies & Services,T35026/D200008,Housing Stock Accounts,Payments to Contractors External
Ashfield District Council,37UB,PWS (Protective Wear Supplies) Limited,V1018835,20/02/2023,204.72,Housing & Assets 2,Supplies & Services,T35026/D200008,Housing Stock Accounts,Payments to Contractors External
Ashfield District Council,37UB,PWS (Protective Wear Supplies) Limited,V1018835,20/02/2023,153.36,Housing & Assets 2,Supplies & Services,T35026/D200008,Housing Stock Accounts,Payments to Contractors External
Ashfield District Council,37UB,PWS (Protective Wear Supplies) Limited,V1019550,28/02/2023,-14.70,Housing & Assets 2,Supplies & Services,T35026/D200008,Housing Stock Accounts,Payments to Contractors External
Ashfield District Council,37UB,PWS (Protective Wear Supplies) Limited,V1019891,28/02/2023,106.30,Housing & Assets 2,Supplies & Services,T35026/D200008,Housing Stock Accounts,Payments to Contractors External
Ashfield District Council,37UB,PWS (Protective Wear Supplies) Limited,V1019892,28/02/2023,23.28,Housing & Assets 2,Supplies & Services,T35026/D200008,Housing Stock Accounts,Payments to Contractors External
Ashfield District Council,37UB,PWS (Protective Wear Supplies) Limited,V1019893,28/02/2023,88.00,Housing & Assets 2,Supplies & Services,T35026/D200008,Housing Stock Accounts,Payments to Contractors External
Ashfield District Council,37UB,PWS (Protective Wear Supplies) Limited,V1019893,28/02/2023,88.00,Housing & Assets 2,Supplies & Services,T35026/D200008,Housing Stock Accounts,Payments to Contractors External
Ashfield District Council,37UB,PWS (Protective Wear Supplies) Limited,V1019894,28/02/2023,80.00,Housing & Assets 2,Supplies & Services,T35026/D200008,Housing Stock Accounts,Payments to Contractors External
Ashfield District Council,37UB,PWS (Protective Wear Supplies) Limited,V1019894,28/02/2023,37.90,Housing & Assets 2,Supplies & Services,T35026/D200008,Housing Stock Accounts,Payments to Contractors External
Ashfield District Council,37UB,PWS (Protective Wear Supplies) Limited,V1019895,28/02/2023,25.07,Housing & Assets 2,Supplies & Services,T35026/D200008,Housing Stock Accounts,Payments to Contractors External
Ashfield District Council,37UB,PWS (Protective Wear Supplies) Limited,V1019896,28/02/2023,38.94,Housing & Assets 2,Supplies & Services,T35026/D200008,Housing Stock Accounts,Payments to Contractors External
Ashfield District Council,37UB,PWS (Protective Wear Supplies) Limited,V1019896,28/02/2023,116.82,Housing & Assets 2,Supplies & Services,T35026/D200008,Housing Stock Accounts,Payments to Contractors External
Ashfield District Council,37UB,PWS (Protective Wear Supplies) Limited,V1019896,28/02/2023,116.82,Housing & Assets 2,Supplies & Services,T35026/D200008,Housing Stock Accounts,Payments to Contractors External
Ashfield District Council,37UB,PWS (Protective Wear Supplies) Limited,V1019897,28/02/2023,17.76,Housing & Assets 2,Supplies & Services,T35026/D200008,Housing Stock Accounts,Payments to Contractors External
Ashfield District Council,37UB,PWS (Protective Wear Supplies) Limited,V1019898,28/02/2023,58.26,Housing & Assets 2,Supplies & Services,T35026/D200008,Housing Stock Accounts,Payments to Contractors External
Ashfield District Council,37UB,PWS (Protective Wear Supplies) Limited,V1019899,28/02/2023,56.96,Housing & Assets 2,Supplies & Services,T35026/D200008,Housing Stock Accounts,Payments to Contractors External
Ashfield District Council,37UB,PWS (Protective Wear Supplies) Limited,V1019899,28/02/2023,118.50,Housing & Assets 2,Supplies & Services,T35026/D200008,Housing Stock Accounts,Payments to Contractors External
Ashfield District Council,37UB,PWS (Protective Wear Supplies) Limited,V1019900,28/02/2023,15.78,Housing & Assets 2,Supplies & Services,T35026/D200008,Housing Stock Accounts,Payments to Contractors External
Ashfield District Council,37UB,PWS (Protective Wear Supplies) Limited,V1019900,28/02/2023,17.50,Housing & Assets 2,Supplies & Services,T35026/D200008,Housing Stock Accounts,Payments to Contractors External
Ashfield District Council,37UB,PWS (Protective Wear Supplies) Limited,V1019900,28/02/2023,29.52,Housing & Assets 2,Supplies & Services,T35026/D200008,Housing Stock Accounts,Payments to Contractors External
Ashfield District Council,37UB,PWS (Protective Wear Supplies) Limited,V1019901,28/02/2023,116.85,Housing & Assets 2,Supplies & Services,T35026/D200008,Housing Stock Accounts,Payments to Contractors External
Ashfield District Council,37UB,Rexel UK Limited,V1017848,06/02/2023,37.80,Housing & Assets 2,Supplies & Services,T35026/D200008,Housing Stock Accounts,Payments to Contractors External
Ashfield District Council,37UB,Rexel UK Limited,V1018414,14/02/2023,31.30,Housing & Assets 2,Supplies & Services,T35026/D200008,Housing Stock Accounts,Payments to Contractors External
Ashfield District Council,37UB,Rexel UK Limited,V1018414,14/02/2023,46.60,Housing & Assets 2,Supplies & Services,T35026/D200008,Housing Stock Accounts,Payments to Contractors External
Ashfield District Council,37UB,Rexel UK Limited,V1018414,14/02/2023,18.00,Housing & Assets 2,Supplies & Services,T35026/D200008,Housing Stock Accounts,Payments to Contractors External
Ashfield District Council,37UB,Rexel UK Limited,V1018414,14/02/2023,3.05,Housing & Assets 2,Supplies & Services,T35026/D200008,Housing Stock Accounts,Payments to Contractors External
Ashfield District Council,37UB,Rexel UK Limited,V1018414,14/02/2023,219.00,Housing & Assets 2,Supplies & Services,T35026/D200008,Housing Stock Accounts,Payments to Contractors External
Ashfield District Council,37UB,Rexel UK Limited,V1018414,14/02/2023,21.20,Housing & Assets 2,Supplies & Services,T35026/D200008,Housing Stock Accounts,Payments to Contractors External
Ashfield District Council,37UB,Rexel UK Limited,V1018414,14/02/2023,134.40,Housing & Assets 2,Supplies & Services,T35026/D200008,Housing Stock Accounts,Payments to Contractors External
Ashfield District Council,37UB,Rexel UK Limited,V1018450,14/02/2023,14.80,Housing & Assets 2,Supplies & Services,T35026/D200008,Housing Stock Accounts,Payments to Contractors External
Ashfield District Council,37UB,Rexel UK Limited,V1018451,14/02/2023,9.15,Housing & Assets 2,Supplies & Services,T35026/D200008,Housing Stock Accounts,Payments to Contractors External
Ashfield District Council,37UB,Rexel UK Limited,V1018452,14/02/2023,231.00,Housing & Assets 2,Supplies & Services,T35026/D200008,Housing Stock Accounts,Payments to Contractors External
Ashfield District Council,37UB,Rexel UK Limited,V1018453,14/02/2023,1500.00,Housing & Assets 2,Supplies & Services,T35026/D200008,Housing Stock Accounts,Payments to Contractors External
Ashfield District Council,37UB,Rexel UK Limited,V1018454,14/02/2023,33.00,Housing & Assets 2,Supplies & Services,T35026/D200008,Housing Stock Accounts,Payments to Contractors External
Ashfield District Council,37UB,Rexel UK Limited,V1018458,14/02/2023,20.25,Housing & Assets 2,Supplies & Services,T35026/D200008,Housing Stock Accounts,Payments to Contractors External
Ashfield District Council,37UB,Rexel UK Limited,V1018460,14/02/2023,22.50,Housing & Assets 2,Supplies & Services,T35026/D200008,Housing Stock Accounts,Payments to Contractors External
Ashfield District Council,37UB,Rexel UK Limited,V1018461,14/02/2023,60.66,Housing & Assets 2,Supplies & Services,T35026/D200008,Housing Stock Accounts,Payments to Contractors External
Ashfield District Council,37UB,Rexel UK Limited,V1018461,14/02/2023,20.10,Housing & Assets 2,Supplies & Services,T35026/D200008,Housing Stock Accounts,Payments to Contractors External
Ashfield District Council,37UB,Rexel UK Limited,V1018461,14/02/2023,9.00,Housing & Assets 2,Supplies & Services,T35026/D200008,Housing Stock Accounts,Payments to Contractors External
Ashfield District Council,37UB,Rexel UK Limited,V1018464,14/02/2023,81.00,Housing & Assets 2,Supplies & Services,T35026/D200008,Housing Stock Accounts,Payments to Contractors External
Ashfield District Council,37UB,Rexel UK Limited,V1018464,14/02/2023,6.80,Housing & Assets 2,Supplies & Services,T35026/D200008,Housing Stock Accounts,Payments to Contractors External
Ashfield District Council,37UB,Rexel UK Limited,V1018465,14/02/2023,380.00,Housing & Assets 2,Supplies & Services,T35026/D200008,Housing Stock Accounts,Payments to Contractors External
Ashfield District Council,37UB,Rexel UK Limited,V1018466,14/02/2023,312.91,Housing & Assets 2,Supplies & Services,T35026/D200008,Housing Stock Accounts,Payments to Contractors External
Ashfield District Council,37UB,Rexel UK Limited,V1018466,14/02/2023,251.93,Housing & Assets 2,Supplies & Services,T35026/D200008,Housing Stock Accounts,Payments to Contractors External
Ashfield District Council,37UB,Rexel UK Limited,V1018468,14/02/2023,46.00,Housing & Assets 2,Supplies & Services,T35026/D200008,Housing Stock Accounts,Payments to Contractors External
Ashfield District Council,37UB,Rexel UK Limited,V1018468,14/02/2023,190.00,Housing & Assets 2,Supplies & Services,T35026/D200008,Housing Stock Accounts,Payments to Contractors External
Ashfield District Council,37UB,Rexel UK Limited,V1018469,14/02/2023,13.00,Housing & Assets 2,Supplies & Services,T35026/D200008,Housing Stock Accounts,Payments to Contractors External
Ashfield District Council,37UB,Rexel UK Limited,V1018470,14/02/2023,2254.08,Housing & Assets 2,Supplies & Services,T35026/D200008,Housing Stock Accounts,Payments to Contractors External
Ashfield District Council,37UB,Rexel UK Limited,V1018471,14/02/2023,16.74,Housing & Assets 2,Supplies & Services,T35026/D200008,Housing Stock Accounts,Payments to Contractors External
Ashfield District Council,37UB,Rexel UK Limited,V1018472,14/02/2023,32.40,Housing & Assets 2,Supplies & Services,T35026/D200008,Housing Stock Accounts,Payments to Contractors External
Ashfield District Council,37UB,Rexel UK Limited,V1018473,14/02/2023,8.37,Housing & Assets 2,Supplies & Services,T35026/D200008,Housing Stock Accounts,Payments to Contractors External
Ashfield District Council,37UB,Rexel UK Limited,V1018474,14/02/2023,2.79,Housing & Assets 2,Supplies & Services,T35026/D200008,Housing Stock Accounts,Payments to Contractors External
Ashfield District Council,37UB,Rexel UK Limited,V1018475,14/02/2023,147.06,Housing & Assets 2,Supplies & Services,T35026/D200008,Housing Stock Accounts,Payments to Contractors External
Ashfield District Council,37UB,Rexel UK Limited,V1018476,14/02/2023,92.42,Housing & Assets 2,Supplies & Services,T35026/D200008,Housing Stock Accounts,Payments to Contractors External
Ashfield District Council,37UB,Rexel UK Limited,V1018476,14/02/2023,126.00,Housing & Assets 2,Supplies & Services,T35026/D200008,Housing Stock Accounts,Payments to Contractors External
Ashfield District Council,37UB,Rexel UK Limited,V1018476,14/02/2023,92.42,Housing & Assets 2,Supplies & Services,T35026/D200008,Housing Stock Accounts,Payments to Contractors External
Ashfield District Council,37UB,Rexel UK Limited,V1018476,14/02/2023,27.00,Housing & Assets 2,Supplies & Services,T35026/D200008,Housing Stock Accounts,Payments to Contractors External
Ashfield District Council,37UB,Rexel UK Limited,V1018476,14/02/2023,22.00,Housing & Assets 2,Supplies & Services,T35026/D200008,Housing Stock Accounts,Payments to Contractors External
Ashfield District Council,37UB,Rexel UK Limited,V1018476,14/02/2023,92.42,Housing & Assets 2,Supplies & Services,T35026/D200008,Housing Stock Accounts,Payments to Contractors External
Ashfield District Council,37UB,Rexel UK Limited,V1018477,14/02/2023,228.50,Housing & Assets 2,Supplies & Services,T35026/D200008,Housing Stock Accounts,Payments to Contractors External
Ashfield District Council,37UB,Rexel UK Limited,V1018478,14/02/2023,29.60,Housing & Assets 2,Supplies & Services,T35026/D200008,Housing Stock Accounts,Payments to Contractors External
Ashfield District Council,37UB,Rexel UK Limited,V1018479,14/02/2023,16.50,Housing & Assets 2,Supplies & Services,T35026/D200008,Housing Stock Accounts,Payments to Contractors External
Ashfield District Council,37UB,Rexel UK Limited,V1018480,14/02/2023,21.34,Housing & Assets 2,Supplies & Services,T35026/D200008,Housing Stock Accounts,Payments to Contractors External
Ashfield District Council,37UB,Rexel UK Limited,V1018480,14/02/2023,80.19,Housing & Assets 2,Supplies & Services,T35026/D200008,Housing Stock Accounts,Payments to Contractors External
Ashfield District Council,37UB,Rexel UK Limited,V1018480,14/02/2023,146.00,Housing & Assets 2,Supplies & Services,T35026/D200008,Housing Stock Accounts,Payments to Contractors External
Ashfield District Council,37UB,Rexel UK Limited,V1018481,14/02/2023,38.36,Housing & Assets 2,Supplies & Services,T35026/D200008,Housing Stock Accounts,Payments to Contractors External
Ashfield District Council,37UB,Rexel UK Limited,V1018482,14/02/2023,56.00,Housing & Assets 2,Supplies & Services,T35026/D200008,Housing Stock Accounts,Payments to Contractors External
Ashfield District Council,37UB,Rexel UK Limited,V1018482,14/02/2023,57.54,Housing & Assets 2,Supplies & Services,T35026/D200008,Housing Stock Accounts,Payments to Contractors External
Ashfield District Council,37UB,Rexel UK Limited,V1018482,14/02/2023,82.00,Housing & Assets 2,Supplies & Services,T35026/D200008,Housing Stock Accounts,Payments to Contractors External
Ashfield District Council,37UB,Rexel UK Limited,V1018482,14/02/2023,28.62,Housing & Assets 2,Supplies & Services,T35026/D200008,Housing Stock Accounts,Payments to Contractors External
Ashfield District Council,37UB,Rexel UK Limited,V1018482,14/02/2023,87.61,Housing & Assets 2,Supplies & Services,T35026/D200008,Housing Stock Accounts,Payments to Contractors External
Ashfield District Council,37UB,Rexel UK Limited,V1018482,14/02/2023,59.60,Housing & Assets 2,Supplies & Services,T35026/D200008,Housing Stock Accounts,Payments to Contractors External
Ashfield District Council,37UB,Rexel UK Limited,V1018482,14/02/2023,36.81,Housing & Assets 2,Supplies & Services,T35026/D200008,Housing Stock Accounts,Payments to Contractors External
Ashfield District Council,37UB,Rexel UK Limited,V1018482,14/02/2023,100.23,Housing & Assets 2,Supplies & Services,T35026/D200008,Housing Stock Accounts,Payments to Contractors External
Ashfield District Council,37UB,Rexel UK Limited,V1018484,14/02/2023,17.46,Housing & Assets 2,Supplies & Services,T35026/D200008,Housing Stock Accounts,Payments to Contractors External
Ashfield District Council,37UB,Rexel UK Limited,V1018484,14/02/2023,22.09,Housing & Assets 2,Supplies & Services,T35026/D200008,Housing Stock Accounts,Payments to Contractors External
Ashfield District Council,37UB,Rexel UK Limited,V1018485,14/02/2023,60.75,Housing & Assets 2,Supplies & Services,T35026/D200008,Housing Stock Accounts,Payments to Contractors External
Ashfield District Council,37UB,Rexel UK Limited,V1018793,28/02/2023,-1.20,Housing & Assets 2,Supplies & Services,T35026/D200008,Housing Stock Accounts,Payments to Contractors External
Ashfield District Council,37UB,Rexel UK Limited,V1019956,28/02/2023,231.00,Housing & Assets 2,Supplies & Services,T35026/D200008,Housing Stock Accounts,Payments to Contractors External
Ashfield District Council,37UB,Rexel UK Limited,V1019957,28/02/2023,28.54,Housing & Assets 2,Supplies & Services,T35026/D200008,Housing Stock Accounts,Payments to Contractors External
Ashfield District Council,37UB,Rexel UK Limited,V1019958,28/02/2023,42.80,Housing & Assets 2,Supplies & Services,T35026/D200008,Housing Stock Accounts,Payments to Contractors External
Ashfield District Council,37UB,Rexel UK Limited,V1019958,28/02/2023,2254.08,Housing & Assets 2,Supplies & Services,T35026/D200008,Housing Stock Accounts,Payments to Contractors External
Ashfield District Council,37UB,Rexel UK Limited,V1019958,28/02/2023,21.80,Housing & Assets 2,Supplies & Services,T35026/D200008,Housing Stock Accounts,Payments to Contractors External
Ashfield District Council,37UB,Rexel UK Limited,V1019958,28/02/2023,20.10,Housing & Assets 2,Supplies & Services,T35026/D200008,Housing Stock Accounts,Payments to Contractors External
Ashfield District Council,37UB,Rexel UK Limited,V1019958,28/02/2023,153.60,Housing & Assets 2,Supplies & Services,T35026/D200008,Housing Stock Accounts,Payments to Contractors External
Ashfield District Council,37UB,Rexel UK Limited,V1019958,28/02/2023,83.76,Housing & Assets 2,Supplies & Services,T35026/D200008,Housing Stock Accounts,Payments to Contractors External
Ashfield District Council,37UB,Rexel UK Limited,V1019959,28/02/2023,352.03,Housing & Assets 2,Supplies & Services,T35026/D200008,Housing Stock Accounts,Payments to Contractors External
Ashfield District Council,37UB,Rexel UK Limited,V1019960,28/02/2023,82.00,Housing & Assets 2,Supplies & Services,T35026/D200008,Housing Stock Accounts,Payments to Contractors External
Ashfield District Council,37UB,Rexel UK Limited,V1019961,28/02/2023,14.27,Housing & Assets 2,Supplies & Services,T35026/D200008,Housing Stock Accounts,Payments to Contractors External
Ashfield District Council,37UB,Rexel UK Limited,V1019961,28/02/2023,228.50,Housing & Assets 2,Supplies & Services,T35026/D200008,Housing Stock Accounts,Payments to Contractors External
Ashfield District Council,37UB,Rexel UK Limited,V1019962,28/02/2023,16.77,Housing & Assets 2,Supplies & Services,T35026/D200008,Housing Stock Accounts,Payments to Contractors External
Ashfield District Council,37UB,Rexel UK Limited,V1019963,28/02/2023,29.00,Housing & Assets 2,Supplies & Services,T35026/D200008,Housing Stock Accounts,Payments to Contractors External
Ashfield District Council,37UB,Rexel UK Limited,V1019964,28/02/2023,28.94,Housing & Assets 2,Supplies & Services,T35026/D200008,Housing Stock Accounts,Payments to Contractors External
Ashfield District Council,37UB,Rexel UK Limited,V1019965,28/02/2023,33.00,Housing & Assets 2,Supplies & Services,T35026/D200008,Housing Stock Accounts,Payments to Contractors External
Ashfield District Council,37UB,Rexel UK Limited,V1019966,28/02/2023,42.00,Housing & Assets 2,Supplies & Services,T35026/D200008,Housing Stock Accounts,Payments to Contractors External
Ashfield District Council,37UB,Rexel UK Limited,V1019967,28/02/2023,16.77,Housing & Assets 2,Supplies & Services,T35026/D200008,Housing Stock Accounts,Payments to Contractors External
Ashfield District Council,37UB,Rexel UK Limited,V1019967,28/02/2023,397.15,Housing & Assets 2,Supplies & Services,T35026/D200008,Housing Stock Accounts,Payments to Contractors External
Ashfield District Council,37UB,Rexel UK Limited,V1019967,28/02/2023,123.20,Housing & Assets 2,Supplies & Services,T35026/D200008,Housing Stock Accounts,Payments to Contractors External
Ashfield District Council,37UB,Rexel UK Limited,V1019968,28/02/2023,199.50,Housing & Assets 2,Supplies & Services,T35026/D200008,Housing Stock Accounts,Payments to Contractors External
Ashfield District Council,37UB,Snickers Original Ltd,V1018839,20/02/2023,213.33,Housing & Assets 2,Supplies & Services,T35026/D200008,Housing Stock Accounts,Payments to Contractors External
Ashfield District Council,37UB,Summit Creative Ltd,V1019868,28/02/2023,544.00,Housing & Assets 2,Supplies & Services,T35026/D200008,Housing Stock Accounts,Payments to Contractors External
Ashfield District Council,37UB,Supra UK Ltd t/a The Key Safe Company,V1017844,06/02/2023,999.00,Housing & Assets 2,Supplies & Services,T35026/D200008,Housing Stock Accounts,Payments to Contractors External
Ashfield District Council,37UB,Symphony Group,V1017841,06/02/2023,119.20,Housing & Assets 2,Supplies & Services,T35026/D200008,Housing Stock Accounts,Payments to Contractors External
Ashfield District Council,37UB,Symphony Group,V1017841,06/02/2023,157.85,Housing & Assets 2,Supplies & Services,T35026/D200008,Housing Stock Accounts,Payments to Contractors External
Ashfield District Council,37UB,Symphony Group,V1017841,06/02/2023,181.20,Housing & Assets 2,Supplies & Services,T35026/D200008,Housing Stock Accounts,Payments to Contractors External
Ashfield District Council,37UB,Symphony Group,V1017841,06/02/2023,191.20,Housing & Assets 2,Supplies & Services,T35026/D200008,Housing Stock Accounts,Payments to Contractors External
Ashfield District Council,37UB,Symphony Group,V1017841,06/02/2023,275.20,Housing & Assets 2,Supplies & Services,T35026/D200008,Housing Stock Accounts,Payments to Contractors External
Ashfield District Council,37UB,Symphony Group,V1017841,06/02/2023,210.72,Housing & Assets 2,Supplies & Services,T35026/D200008,Housing Stock Accounts,Payments to Contractors External
Ashfield District Council,37UB,Symphony Group,V1017842,06/02/2023,170.80,Housing & Assets 2,Supplies & Services,T35026/D200008,Housing Stock Accounts,Payments to Contractors External
Ashfield District Council,37UB,Symphony Group,V1017842,06/02/2023,322.00,Housing & Assets 2,Supplies & Services,T35026/D200008,Housing Stock Accounts,Payments to Contractors External
Ashfield District Council,37UB,Symphony Group,V1017842,06/02/2023,412.80,Housing & Assets 2,Supplies & Services,T35026/D200008,Housing Stock Accounts,Payments to Contractors External
Ashfield District Council,37UB,Symphony Group,V1017842,06/02/2023,532.80,Housing & Assets 2,Supplies & Services,T35026/D200008,Housing Stock Accounts,Payments to Contractors External
Ashfield District Council,37UB,Symphony Group,V1019903,28/02/2023,1525.60,Housing & Assets 2,Supplies & Services,T35026/D200008,Housing Stock Accounts,Payments to Contractors External
Ashfield District Council,37UB,Wolseley UK Limited,V1017642,06/02/2023,-260.16,Housing & Assets 2,Supplies & Services,T35026/D200008,Housing Stock Accounts,Payments to Contractors External
Ashfield District Council,37UB,Wolseley UK Limited,V1017643,06/02/2023,-50.79,Housing & Assets 2,Supplies & Services,T35026/D200008,Housing Stock Accounts,Payments to Contractors External
Ashfield District Council,37UB,Wolseley UK Limited,V1017851,06/02/2023,401.17,Housing & Assets 2,Supplies & Services,T35026/D200008,Housing Stock Accounts,Payments to Contractors External
Ashfield District Council,37UB,Wolseley UK Limited,V1017859,06/02/2023,136.68,Housing & Assets 2,Supplies & Services,T35026/D200008,Housing Stock Accounts,Payments to Contractors External
Ashfield District Council,37UB,Wolseley UK Limited,V1017861,06/02/2023,285.16,Housing & Assets 2,Supplies & Services,T35026/D200008,Housing Stock Accounts,Payments to Contractors External
Ashfield District Council,37UB,Wolseley UK Limited,V1017863,06/02/2023,173.30,Housing & Assets 2,Supplies & Services,T35026/D200008,Housing Stock Accounts,Payments to Contractors External
Ashfield District Council,37UB,Wolseley UK Limited,V1017863,06/02/2023,76.18,Housing & Assets 2,Supplies & Services,T35026/D200008,Housing Stock Accounts,Payments to Contractors External
Ashfield District Council,37UB,Wolseley UK Limited,V1017863,06/02/2023,169.36,Housing & Assets 2,Supplies & Services,T35026/D200008,Housing Stock Accounts,Payments to Contractors External
Ashfield District Council,37UB,Wolseley UK Limited,V1017863,06/02/2023,113.90,Housing & Assets 2,Supplies & Services,T35026/D200008,Housing Stock Accounts,Payments to Contractors External
Ashfield District Council,37UB,Wolseley UK Limited,V1018008,14/02/2023,608.04,Housing & Assets 2,Supplies & Services,T35026/D200008,Housing Stock Accounts,Payments to Contractors External
Ashfield District Council,37UB,Wolseley UK Limited,V1018008,14/02/2023,596.60,Housing & Assets 2,Supplies & Services,T35026/D200008,Housing Stock Accounts,Payments to Contractors External
Ashfield District Council,37UB,Wolseley UK Limited,V1018009,14/02/2023,334.05,Housing & Assets 2,Supplies & Services,T35026/D200008,Housing Stock Accounts,Payments to Contractors External
Ashfield District Council,37UB,Wolseley UK Limited,V1018011,14/02/2023,64.40,Housing & Assets 2,Supplies & Services,T35026/D200008,Housing Stock Accounts,Payments to Contractors External
Ashfield District Council,37UB,Wolseley UK Limited,V1018012,14/02/2023,83.72,Housing & Assets 2,Supplies & Services,T35026/D200008,Housing Stock Accounts,Payments to Contractors External
Ashfield District Council,37UB,Wolseley UK Limited,V1018017,14/02/2023,1216.08,Housing & Assets 2,Supplies & Services,T35026/D200008,Housing Stock Accounts,Payments to Contractors External
Ashfield District Council,37UB,Wolseley UK Limited,V1018018,14/02/2023,64.00,Housing & Assets 2,Supplies & Services,T35026/D200008,Housing Stock Accounts,Payments to Contractors External
Ashfield District Council,37UB,Wolseley UK Limited,V1018018,14/02/2023,5.10,Housing & Assets 2,Supplies & Services,T35026/D200008,Housing Stock Accounts,Payments to Contractors External
Ashfield District Council,37UB,Wolseley UK Limited,V1018018,14/02/2023,146.81,Housing & Assets 2,Supplies & Services,T35026/D200008,Housing Stock Accounts,Payments to Contractors External
Ashfield District Council,37UB,Wolseley UK Limited,V1018018,14/02/2023,18.10,Housing & Assets 2,Supplies & Services,T35026/D200008,Housing Stock Accounts,Payments to Contractors External
Ashfield District Council,37UB,Wolseley UK Limited,V1018018,14/02/2023,13.20,Housing & Assets 2,Supplies & Services,T35026/D200008,Housing Stock Accounts,Payments to Contractors External
Ashfield District Council,37UB,Wolseley UK Limited,V1018018,14/02/2023,18.99,Housing & Assets 2,Supplies & Services,T35026/D200008,Housing Stock Accounts,Payments to Contractors External
Ashfield District Council,37UB,Wolseley UK Limited,V1018018,14/02/2023,42.40,Housing & Assets 2,Supplies & Services,T35026/D200008,Housing Stock Accounts,Payments to Contractors External
Ashfield District Council,37UB,Wolseley UK Limited,V1018018,14/02/2023,35.20,Housing & Assets 2,Supplies & Services,T35026/D200008,Housing Stock Accounts,Payments to Contractors External
Ashfield District Council,37UB,Wolseley UK Limited,V1018018,14/02/2023,52.84,Housing & Assets 2,Supplies & Services,T35026/D200008,Housing Stock Accounts,Payments to Contractors External
Ashfield District Council,37UB,Wolseley UK Limited,V1018019,14/02/2023,1195.75,Housing & Assets 2,Supplies & Services,T35026/D200008,Housing Stock Accounts,Payments to Contractors External
Ashfield District Council,37UB,Wolseley UK Limited,V1018020,14/02/2023,71.80,Housing & Assets 2,Supplies & Services,T35026/D200008,Housing Stock Accounts,Payments to Contractors External
Ashfield District Council,37UB,Wolseley UK Limited,V1018021,14/02/2023,369.20,Housing & Assets 2,Supplies & Services,T35026/D200008,Housing Stock Accounts,Payments to Contractors External
Ashfield District Council,37UB,Wolseley UK Limited,V1018021,14/02/2023,57.12,Housing & Assets 2,Supplies & Services,T35026/D200008,Housing Stock Accounts,Payments to Contractors External
Ashfield District Council,37UB,Wolseley UK Limited,V1018021,14/02/2023,19.09,Housing & Assets 2,Supplies & Services,T35026/D200008,Housing Stock Accounts,Payments to Contractors External
Ashfield District Council,37UB,Wolseley UK Limited,V1018021,14/02/2023,39.72,Housing & Assets 2,Supplies & Services,T35026/D200008,Housing Stock Accounts,Payments to Contractors External
Ashfield District Council,37UB,Wolseley UK Limited,V1018021,14/02/2023,42.18,Housing & Assets 2,Supplies & Services,T35026/D200008,Housing Stock Accounts,Payments to Contractors External
Ashfield District Council,37UB,Wolseley UK Limited,V1018022,14/02/2023,128.00,Housing & Assets 2,Supplies & Services,T35026/D200008,Housing Stock Accounts,Payments to Contractors External
Ashfield District Council,37UB,Wolseley UK Limited,V1018027,14/02/2023,25.80,Housing & Assets 2,Supplies & Services,T35026/D200008,Housing Stock Accounts,Payments to Contractors External
Ashfield District Council,37UB,Wolseley UK Limited,V1018027,14/02/2023,214.80,Housing & Assets 2,Supplies & Services,T35026/D200008,Housing Stock Accounts,Payments to Contractors External
Ashfield District Council,37UB,Wolseley UK Limited,V1018027,14/02/2023,29.58,Housing & Assets 2,Supplies & Services,T35026/D200008,Housing Stock Accounts,Payments to Contractors External
Ashfield District Council,37UB,Wolseley UK Limited,V1018027,14/02/2023,315.92,Housing & Assets 2,Supplies & Services,T35026/D200008,Housing Stock Accounts,Payments to Contractors External
Ashfield District Council,37UB,Wolseley UK Limited,V1018027,14/02/2023,369.44,Housing & Assets 2,Supplies & Services,T35026/D200008,Housing Stock Accounts,Payments to Contractors External
Ashfield District Council,37UB,Wolseley UK Limited,V1018027,14/02/2023,284.80,Housing & Assets 2,Supplies & Services,T35026/D200008,Housing Stock Accounts,Payments to Contractors External
Ashfield District Council,37UB,Wolseley UK Limited,V1018027,14/02/2023,333.68,Housing & Assets 2,Supplies & Services,T35026/D200008,Housing Stock Accounts,Payments to Contractors External
Ashfield District Council,37UB,Wolseley UK Limited,V1018027,14/02/2023,318.33,Housing & Assets 2,Supplies & Services,T35026/D200008,Housing Stock Accounts,Payments to Contractors External
Ashfield District Council,37UB,Wolseley UK Limited,V1018027,14/02/2023,306.18,Housing & Assets 2,Supplies & Services,T35026/D200008,Housing Stock Accounts,Payments to Contractors External
Ashfield District Council,37UB,Wolseley UK Limited,V1018027,14/02/2023,96.76,Housing & Assets 2,Supplies & Services,T35026/D200008,Housing Stock Accounts,Payments to Contractors External
Ashfield District Council,37UB,Wolseley UK Limited,V1018028,14/02/2023,188.80,Housing & Assets 2,Supplies & Services,T35026/D200008,Housing Stock Accounts,Payments to Contractors External
Ashfield District Council,37UB,Wolseley UK Limited,V1018033,14/02/2023,472.40,Housing & Assets 2,Supplies & Services,T35026/D200008,Housing Stock Accounts,Payments to Contractors External
Ashfield District Council,37UB,Wolseley UK Limited,V1018034,14/02/2023,163.20,Housing & Assets 2,Supplies & Services,T35026/D200008,Housing Stock Accounts,Payments to Contractors External
Ashfield District Council,37UB,Wolseley UK Limited,V1018034,14/02/2023,255.15,Housing & Assets 2,Supplies & Services,T35026/D200008,Housing Stock Accounts,Payments to Contractors External
Ashfield District Council,37UB,Wolseley UK Limited,V1018034,14/02/2023,85.92,Housing & Assets 2,Supplies & Services,T35026/D200008,Housing Stock Accounts,Payments to Contractors External
Ashfield District Council,37UB,Wolseley UK Limited,V1018034,14/02/2023,66.60,Housing & Assets 2,Supplies & Services,T35026/D200008,Housing Stock Accounts,Payments to Contractors External
Ashfield District Council,37UB,Wolseley UK Limited,V1018034,14/02/2023,333.68,Housing & Assets 2,Supplies & Services,T35026/D200008,Housing Stock Accounts,Payments to Contractors External
Ashfield District Council,37UB,Wolseley UK Limited,V1018034,14/02/2023,312.73,Housing & Assets 2,Supplies & Services,T35026/D200008,Housing Stock Accounts,Payments to Contractors External
Ashfield District Council,37UB,Wolseley UK Limited,V1018034,14/02/2023,84.39,Housing & Assets 2,Supplies & Services,T35026/D200008,Housing Stock Accounts,Payments to Contractors External
Ashfield District Council,37UB,Wolseley UK Limited,V1018034,14/02/2023,121.76,Housing & Assets 2,Supplies & Services,T35026/D200008,Housing Stock Accounts,Payments to Contractors External
Ashfield District Council,37UB,Wolseley UK Limited,V1018035,14/02/2023,166.20,Housing & Assets 2,Supplies & Services,T35026/D200008,Housing Stock Accounts,Payments to Contractors External
Ashfield District Council,37UB,Wolseley UK Limited,V1018039,14/02/2023,545.80,Housing & Assets 2,Supplies & Services,T35026/D200008,Housing Stock Accounts,Payments to Contractors External
Ashfield District Council,37UB,Wolseley UK Limited,V1018040,14/02/2023,16.80,Housing & Assets 2,Supplies & Services,T35026/D200008,Housing Stock Accounts,Payments to Contractors External
Ashfield District Council,37UB,Wolseley UK Limited,V1018324,14/02/2023,-6.00,Housing & Assets 2,Supplies & Services,T35026/D200008,Housing Stock Accounts,Payments to Contractors External
Ashfield District Council,37UB,Wolseley UK Limited,V1018325,14/02/2023,-18.81,Housing & Assets 2,Supplies & Services,T35026/D200008,Housing Stock Accounts,Payments to Contractors External
Ashfield District Council,37UB,Wolseley UK Limited,V1018326,14/02/2023,-8.05,Housing & Assets 2,Supplies & Services,T35026/D200008,Housing Stock Accounts,Payments to Contractors External
Ashfield District Council,37UB,Wolseley UK Limited,V1018327,14/02/2023,-49.00,Housing & Assets 2,Supplies & Services,T35026/D200008,Housing Stock Accounts,Payments to Contractors External
Ashfield District Council,37UB,Wolseley UK Limited,V1018328,14/02/2023,-54.32,Housing & Assets 2,Supplies & Services,T35026/D200008,Housing Stock Accounts,Payments to Contractors External
Ashfield District Council,37UB,Wolseley UK Limited,V1018329,14/02/2023,-0.65,Housing & Assets 2,Supplies & Services,T35026/D200008,Housing Stock Accounts,Payments to Contractors External
Ashfield District Council,37UB,Wolseley UK Limited,V1018415,14/02/2023,100.45,Housing & Assets 2,Supplies & Services,T35026/D200008,Housing Stock Accounts,Payments to Contractors External
Ashfield District Council,37UB,Wolseley UK Limited,V1018415,14/02/2023,177.75,Housing & Assets 2,Supplies & Services,T35026/D200008,Housing Stock Accounts,Payments to Contractors External
Ashfield District Council,37UB,Wolseley UK Limited,V1018417,14/02/2023,38.15,Housing & Assets 2,Supplies & Services,T35026/D200008,Housing Stock Accounts,Payments to Contractors External
Ashfield District Council,37UB,Wolseley UK Limited,V1018418,14/02/2023,18.54,Housing & Assets 2,Supplies & Services,T35026/D200008,Housing Stock Accounts,Payments to Contractors External
Ashfield District Council,37UB,Wolseley UK Limited,V1018418,14/02/2023,9.82,Housing & Assets 2,Supplies & Services,T35026/D200008,Housing Stock Accounts,Payments to Contractors External
Ashfield District Council,37UB,Wolseley UK Limited,V1018419,14/02/2023,352.05,Housing & Assets 2,Supplies & Services,T35026/D200008,Housing Stock Accounts,Payments to Contractors External
Ashfield District Council,37UB,Wolseley UK Limited,V1018419,14/02/2023,383.08,Housing & Assets 2,Supplies & Services,T35026/D200008,Housing Stock Accounts,Payments to Contractors External
Ashfield District Council,37UB,Wolseley UK Limited,V1018419,14/02/2023,84.36,Housing & Assets 2,Supplies & Services,T35026/D200008,Housing Stock Accounts,Payments to Contractors External
Ashfield District Council,37UB,Wolseley UK Limited,V1018419,14/02/2023,33.00,Housing & Assets 2,Supplies & Services,T35026/D200008,Housing Stock Accounts,Payments to Contractors External
Ashfield District Council,37UB,Wolseley UK Limited,V1018421,14/02/2023,128.88,Housing & Assets 2,Supplies & Services,T35026/D200008,Housing Stock Accounts,Payments to Contractors External
Ashfield District Council,37UB,Wolseley UK Limited,V1018421,14/02/2023,118.22,Housing & Assets 2,Supplies & Services,T35026/D200008,Housing Stock Accounts,Payments to Contractors External
Ashfield District Council,37UB,Wolseley UK Limited,V1018421,14/02/2023,121.76,Housing & Assets 2,Supplies & Services,T35026/D200008,Housing Stock Accounts,Payments to Contractors External
Ashfield District Council,37UB,Wolseley UK Limited,V1018421,14/02/2023,75.20,Housing & Assets 2,Supplies & Services,T35026/D200008,Housing Stock Accounts,Payments to Contractors External
Ashfield District Council,37UB,Wolseley UK Limited,V1018421,14/02/2023,315.92,Housing & Assets 2,Supplies & Services,T35026/D200008,Housing Stock Accounts,Payments to Contractors External
Ashfield District Council,37UB,Wolseley UK Limited,V1018421,14/02/2023,81.10,Housing & Assets 2,Supplies & Services,T35026/D200008,Housing Stock Accounts,Payments to Contractors External
Ashfield District Council,37UB,Wolseley UK Limited,V1018421,14/02/2023,107.70,Housing & Assets 2,Supplies & Services,T35026/D200008,Housing Stock Accounts,Payments to Contractors External
Ashfield District Council,37UB,Wolseley UK Limited,V1018422,14/02/2023,63.95,Housing & Assets 2,Supplies & Services,T35026/D200008,Housing Stock Accounts,Payments to Contractors External
Ashfield District Council,37UB,Wolseley UK Limited,V1018423,14/02/2023,165.00,Housing & Assets 2,Supplies & Services,T35026/D200008,Housing Stock Accounts,Payments to Contractors External
Ashfield District Council,37UB,Wolseley UK Limited,V1018425,14/02/2023,58.51,Housing & Assets 2,Supplies & Services,T35026/D200008,Housing Stock Accounts,Payments to Contractors External
Ashfield District Council,37UB,Wolseley UK Limited,V1018425,14/02/2023,185.98,Housing & Assets 2,Supplies & Services,T35026/D200008,Housing Stock Accounts,Payments to Contractors External
Ashfield District Council,37UB,Wolseley UK Limited,V1018427,14/02/2023,267.24,Housing & Assets 2,Supplies & Services,T35026/D200008,Housing Stock Accounts,Payments to Contractors External
Ashfield District Council,37UB,Wolseley UK Limited,V1018428,14/02/2023,193.22,Housing & Assets 2,Supplies & Services,T35026/D200008,Housing Stock Accounts,Payments to Contractors External
Ashfield District Council,37UB,Wolseley UK Limited,V1018428,14/02/2023,58.51,Housing & Assets 2,Supplies & Services,T35026/D200008,Housing Stock Accounts,Payments to Contractors External
Ashfield District Council,37UB,Wolseley UK Limited,V1018441,14/02/2023,168.22,Housing & Assets 2,Supplies & Services,T35026/D200008,Housing Stock Accounts,Payments to Contractors External
Ashfield District Council,37UB,Wolseley UK Limited,V1018442,14/02/2023,8.77,Housing & Assets 2,Supplies & Services,T35026/D200008,Housing Stock Accounts,Payments to Contractors External
Ashfield District Council,37UB,Wolseley UK Limited,V1018442,14/02/2023,472.89,Housing & Assets 2,Supplies & Services,T35026/D200008,Housing Stock Accounts,Payments to Contractors External
Ashfield District Council,37UB,Wolseley UK Limited,V1018442,14/02/2023,118.23,Housing & Assets 2,Supplies & Services,T35026/D200008,Housing Stock Accounts,Payments to Contractors External
Ashfield District Council,37UB,Wolseley UK Limited,V1018443,14/02/2023,26.05,Housing & Assets 2,Supplies & Services,T35026/D200008,Housing Stock Accounts,Payments to Contractors External
Ashfield District Council,37UB,Wolseley UK Limited,V1018443,14/02/2023,137.04,Housing & Assets 2,Supplies & Services,T35026/D200008,Housing Stock Accounts,Payments to Contractors External
Ashfield District Council,37UB,Wolseley UK Limited,V1018443,14/02/2023,102.38,Housing & Assets 2,Supplies & Services,T35026/D200008,Housing Stock Accounts,Payments to Contractors External
Ashfield District Council,37UB,Wolseley UK Limited,V1018443,14/02/2023,201.00,Housing & Assets 2,Supplies & Services,T35026/D200008,Housing Stock Accounts,Payments to Contractors External
Ashfield District Council,37UB,Wolseley UK Limited,V1018443,14/02/2023,54.42,Housing & Assets 2,Supplies & Services,T35026/D200008,Housing Stock Accounts,Payments to Contractors External
Ashfield District Council,37UB,Wolseley UK Limited,V1018443,14/02/2023,219.63,Housing & Assets 2,Supplies & Services,T35026/D200008,Housing Stock Accounts,Payments to Contractors External
Ashfield District Council,37UB,Wolseley UK Limited,V1018443,14/02/2023,461.80,Housing & Assets 2,Supplies & Services,T35026/D200008,Housing Stock Accounts,Payments to Contractors External
Ashfield District Council,37UB,Wolseley UK Limited,V1018443,14/02/2023,24.64,Housing & Assets 2,Supplies & Services,T35026/D200008,Housing Stock Accounts,Payments to Contractors External
Ashfield District Council,37UB,Wolseley UK Limited,V1018443,14/02/2023,48.80,Housing & Assets 2,Supplies & Services,T35026/D200008,Housing Stock Accounts,Payments to Contractors External
Ashfield District Council,37UB,Wolseley UK Limited,V1018443,14/02/2023,20.25,Housing & Assets 2,Supplies & Services,T35026/D200008,Housing Stock Accounts,Payments to Contractors External
Ashfield District Council,37UB,Wolseley UK Limited,V1018443,14/02/2023,827.25,Housing & Assets 2,Supplies & Services,T35026/D200008,Housing Stock Accounts,Payments to Contractors External
Ashfield District Council,37UB,Wolseley UK Limited,V1018443,14/02/2023,8.77,Housing & Assets 2,Supplies & Services,T35026/D200008,Housing Stock Accounts,Payments to Contractors External
Ashfield District Council,37UB,Wolseley UK Limited,V1018443,14/02/2023,89.60,Housing & Assets 2,Supplies & Services,T35026/D200008,Housing Stock Accounts,Payments to Contractors External
Ashfield District Council,37UB,Wolseley UK Limited,V1018443,14/02/2023,68.50,Housing & Assets 2,Supplies & Services,T35026/D200008,Housing Stock Accounts,Payments to Contractors External
Ashfield District Council,37UB,Wolseley UK Limited,V1018443,14/02/2023,149.44,Housing & Assets 2,Supplies & Services,T35026/D200008,Housing Stock Accounts,Payments to Contractors External
Ashfield District Council,37UB,Wolseley UK Limited,V1018443,14/02/2023,85.92,Housing & Assets 2,Supplies & Services,T35026/D200008,Housing Stock Accounts,Payments to Contractors External
Ashfield District Council,37UB,Wolseley UK Limited,V1018443,14/02/2023,25.80,Housing & Assets 2,Supplies & Services,T35026/D200008,Housing Stock Accounts,Payments to Contractors External
Ashfield District Council,37UB,Wolseley UK Limited,V1018444,14/02/2023,41.10,Housing & Assets 2,Supplies & Services,T35026/D200008,Housing Stock Accounts,Payments to Contractors External
Ashfield District Council,37UB,Wolseley UK Limited,V1018444,14/02/2023,64.00,Housing & Assets 2,Supplies & Services,T35026/D200008,Housing Stock Accounts,Payments to Contractors External
Ashfield District Council,37UB,Wolseley UK Limited,V1018444,14/02/2023,233.16,Housing & Assets 2,Supplies & Services,T35026/D200008,Housing Stock Accounts,Payments to Contractors External
Ashfield District Council,37UB,Wolseley UK Limited,V1018444,14/02/2023,93.19,Housing & Assets 2,Supplies & Services,T35026/D200008,Housing Stock Accounts,Payments to Contractors External
Ashfield District Council,37UB,Wolseley UK Limited,V1018445,14/02/2023,110.80,Housing & Assets 2,Supplies & Services,T35026/D200008,Housing Stock Accounts,Payments to Contractors External
Ashfield District Council,37UB,Wolseley UK Limited,V1018445,14/02/2023,70.50,Housing & Assets 2,Supplies & Services,T35026/D200008,Housing Stock Accounts,Payments to Contractors External
Ashfield District Council,37UB,Wolseley UK Limited,V1018445,14/02/2023,201.53,Housing & Assets 2,Supplies & Services,T35026/D200008,Housing Stock Accounts,Payments to Contractors External
Ashfield District Council,37UB,Wolseley UK Limited,V1018445,14/02/2023,41.00,Housing & Assets 2,Supplies & Services,T35026/D200008,Housing Stock Accounts,Payments to Contractors External
Ashfield District Council,37UB,Wolseley UK Limited,V1018445,14/02/2023,73.60,Housing & Assets 2,Supplies & Services,T35026/D200008,Housing Stock Accounts,Payments to Contractors External
Ashfield District Council,37UB,Wolseley UK Limited,V1018445,14/02/2023,9.45,Housing & Assets 2,Supplies & Services,T35026/D200008,Housing Stock Accounts,Payments to Contractors External
Ashfield District Council,37UB,Wolseley UK Limited,V1018446,14/02/2023,20.25,Housing & Assets 2,Supplies & Services,T35026/D200008,Housing Stock Accounts,Payments to Contractors External
Ashfield District Council,37UB,Wolseley UK Limited,V1018446,14/02/2023,227.00,Housing & Assets 2,Supplies & Services,T35026/D200008,Housing Stock Accounts,Payments to Contractors External
Ashfield District Council,37UB,Wolseley UK Limited,V1018446,14/02/2023,69.70,Housing & Assets 2,Supplies & Services,T35026/D200008,Housing Stock Accounts,Payments to Contractors External
Ashfield District Council,37UB,Wolseley UK Limited,V1018446,14/02/2023,77.60,Housing & Assets 2,Supplies & Services,T35026/D200008,Housing Stock Accounts,Payments to Contractors External
Ashfield District Council,37UB,Wolseley UK Limited,V1018446,14/02/2023,29.40,Housing & Assets 2,Supplies & Services,T35026/D200008,Housing Stock Accounts,Payments to Contractors External
Ashfield District Council,37UB,Wolseley UK Limited,V1018446,14/02/2023,125.73,Housing & Assets 2,Supplies & Services,T35026/D200008,Housing Stock Accounts,Payments to Contractors External
Ashfield District Council,37UB,Wolseley UK Limited,V1018446,14/02/2023,163.80,Housing & Assets 2,Supplies & Services,T35026/D200008,Housing Stock Accounts,Payments to Contractors External
Ashfield District Council,37UB,Wolseley UK Limited,V1018446,14/02/2023,195.36,Housing & Assets 2,Supplies & Services,T35026/D200008,Housing Stock Accounts,Payments to Contractors External
Ashfield District Council,37UB,Wolseley UK Limited,V1018446,14/02/2023,133.44,Housing & Assets 2,Supplies & Services,T35026/D200008,Housing Stock Accounts,Payments to Contractors External
Ashfield District Council,37UB,Wolseley UK Limited,V1018446,14/02/2023,88.60,Housing & Assets 2,Supplies & Services,T35026/D200008,Housing Stock Accounts,Payments to Contractors External
Ashfield District Council,37UB,Wolseley UK Limited,V1018446,14/02/2023,21.10,Housing & Assets 2,Supplies & Services,T35026/D200008,Housing Stock Accounts,Payments to Contractors External
Ashfield District Council,37UB,Wolseley UK Limited,V1018446,14/02/2023,36.06,Housing & Assets 2,Supplies & Services,T35026/D200008,Housing Stock Accounts,Payments to Contractors External
Ashfield District Council,37UB,Wolseley UK Limited,V1018446,14/02/2023,24.60,Housing & Assets 2,Supplies & Services,T35026/D200008,Housing Stock Accounts,Payments to Contractors External
Ashfield District Council,37UB,Wolseley UK Limited,V1018447,14/02/2023,36.00,Housing & Assets 2,Supplies & Services,T35026/D200008,Housing Stock Accounts,Payments to Contractors External
Ashfield District Council,37UB,Wolseley UK Limited,V1018447,14/02/2023,28.80,Housing & Assets 2,Supplies & Services,T35026/D200008,Housing Stock Accounts,Payments to Contractors External
Ashfield District Council,37UB,Wolseley UK Limited,V1018447,14/02/2023,30.06,Housing & Assets 2,Supplies & Services,T35026/D200008,Housing Stock Accounts,Payments to Contractors External
Ashfield District Council,37UB,Wolseley UK Limited,V1018447,14/02/2023,89.90,Housing & Assets 2,Supplies & Services,T35026/D200008,Housing Stock Accounts,Payments to Contractors External
Ashfield District Council,37UB,Wolseley UK Limited,V1018447,14/02/2023,62.48,Housing & Assets 2,Supplies & Services,T35026/D200008,Housing Stock Accounts,Payments to Contractors External
Ashfield District Council,37UB,Wolseley UK Limited,V1018447,14/02/2023,86.44,Housing & Assets 2,Supplies & Services,T35026/D200008,Housing Stock Accounts,Payments to Contractors External
Ashfield District Council,37UB,Wolseley UK Limited,V1018447,14/02/2023,28.56,Housing & Assets 2,Supplies & Services,T35026/D200008,Housing Stock Accounts,Payments to Contractors External
Ashfield District Council,37UB,Wolseley UK Limited,V1018447,14/02/2023,39.24,Housing & Assets 2,Supplies & Services,T35026/D200008,Housing Stock Accounts,Payments to Contractors External
Ashfield District Council,37UB,Wolseley UK Limited,V1018447,14/02/2023,32.48,Housing & Assets 2,Supplies & Services,T35026/D200008,Housing Stock Accounts,Payments to Contractors External
Ashfield District Council,37UB,Wolseley UK Limited,V1018447,14/02/2023,319.20,Housing & Assets 2,Supplies & Services,T35026/D200008,Housing Stock Accounts,Payments to Contractors External
Ashfield District Council,37UB,Wolseley UK Limited,V1018447,14/02/2023,35.45,Housing & Assets 2,Supplies & Services,T35026/D200008,Housing Stock Accounts,Payments to Contractors External
Ashfield District Council,37UB,Wolseley UK Limited,V1018447,14/02/2023,236.30,Housing & Assets 2,Supplies & Services,T35026/D200008,Housing Stock Accounts,Payments to Contractors External
Ashfield District Council,37UB,Wolseley UK Limited,V1018447,14/02/2023,64.96,Housing & Assets 2,Supplies & Services,T35026/D200008,Housing Stock Accounts,Payments to Contractors External
Ashfield District Council,37UB,Wolseley UK Limited,V1018447,14/02/2023,8.50,Housing & Assets 2,Supplies & Services,T35026/D200008,Housing Stock Accounts,Payments to Contractors External
Ashfield District Council,37UB,Wolseley UK Limited,V1018448,14/02/2023,47.02,Housing & Assets 2,Supplies & Services,T35026/D200008,Housing Stock Accounts,Payments to Contractors External
Ashfield District Council,37UB,Wolseley UK Limited,V1018449,14/02/2023,18.00,Housing & Assets 2,Supplies & Services,T35026/D200008,Housing Stock Accounts,Payments to Contractors External
Ashfield District Council,37UB,Wolseley UK Limited,V1018449,14/02/2023,15.80,Housing & Assets 2,Supplies & Services,T35026/D200008,Housing Stock Accounts,Payments to Contractors External
Ashfield District Council,37UB,Wolseley UK Limited,V1018449,14/02/2023,84.90,Housing & Assets 2,Supplies & Services,T35026/D200008,Housing Stock Accounts,Payments to Contractors External
Ashfield District Council,37UB,Wolseley UK Limited,V1018449,14/02/2023,19.00,Housing & Assets 2,Supplies & Services,T35026/D200008,Housing Stock Accounts,Payments to Contractors External
Ashfield District Council,37UB,Wolseley UK Limited,V1018449,14/02/2023,24.40,Housing & Assets 2,Supplies & Services,T35026/D200008,Housing Stock Accounts,Payments to Contractors External
Ashfield District Council,37UB,Wolseley UK Limited,V1018449,14/02/2023,27.30,Housing & Assets 2,Supplies & Services,T35026/D200008,Housing Stock Accounts,Payments to Contractors External
Ashfield District Council,37UB,Wolseley UK Limited,V1018449,14/02/2023,63.00,Housing & Assets 2,Supplies & Services,T35026/D200008,Housing Stock Accounts,Payments to Contractors External
Ashfield District Council,37UB,Wolseley UK Limited,V1018449,14/02/2023,99.46,Housing & Assets 2,Supplies & Services,T35026/D200008,Housing Stock Accounts,Payments to Contractors External
Ashfield District Council,37UB,Wolseley UK Limited,V1018449,14/02/2023,27.40,Housing & Assets 2,Supplies & Services,T35026/D200008,Housing Stock Accounts,Payments to Contractors External
Ashfield District Council,37UB,Wolseley UK Limited,V1018449,14/02/2023,15.90,Housing & Assets 2,Supplies & Services,T35026/D200008,Housing Stock Accounts,Payments to Contractors External
Ashfield District Council,37UB,Wolseley UK Limited,V1018449,14/02/2023,34.20,Housing & Assets 2,Supplies & Services,T35026/D200008,Housing Stock Accounts,Payments to Contractors External
Ashfield District Council,37UB,Wolseley UK Limited,V1018449,14/02/2023,16.60,Housing & Assets 2,Supplies & Services,T35026/D200008,Housing Stock Accounts,Payments to Contractors External
Ashfield District Council,37UB,Wolseley UK Limited,V1018449,14/02/2023,30.78,Housing & Assets 2,Supplies & Services,T35026/D200008,Housing Stock Accounts,Payments to Contractors External
Ashfield District Council,37UB,Wolseley UK Limited,V1018784,20/02/2023,-2.12,Housing & Assets 2,Supplies & Services,T35026/D200008,Housing Stock Accounts,Payments to Contractors External
Ashfield District Council,37UB,Wolseley UK Limited,V1018785,20/02/2023,-2.11,Housing & Assets 2,Supplies & Services,T35026/D200008,Housing Stock Accounts,Payments to Contractors External
Ashfield District Council,37UB,Wolseley UK Limited,V1018786,20/02/2023,-44.48,Housing & Assets 2,Supplies & Services,T35026/D200008,Housing Stock Accounts,Payments to Contractors External
Ashfield District Council,37UB,Wolseley UK Limited,V1018787,20/02/2023,-12.45,Housing & Assets 2,Supplies & Services,T35026/D200008,Housing Stock Accounts,Payments to Contractors External
Ashfield District Council,37UB,Wolseley UK Limited,V1018788,20/02/2023,-291.76,Housing & Assets 2,Supplies & Services,T35026/D200008,Housing Stock Accounts,Payments to Contractors External
Ashfield District Council,37UB,Wolseley UK Limited,V1018789,20/02/2023,-16.10,Housing & Assets 2,Supplies & Services,T35026/D200008,Housing Stock Accounts,Payments to Contractors External
Ashfield District Council,37UB,Wolseley UK Limited,V1018802,20/02/2023,1013.40,Housing & Assets 2,Supplies & Services,T35026/D200008,Housing Stock Accounts,Payments to Contractors External
Ashfield District Council,37UB,Wolseley UK Limited,V1018802,20/02/2023,2391.50,Housing & Assets 2,Supplies & Services,T35026/D200008,Housing Stock Accounts,Payments to Contractors External
Ashfield District Council,37UB,Wolseley UK Limited,V1018804,20/02/2023,22.50,Housing & Assets 2,Supplies & Services,T35026/D200008,Housing Stock Accounts,Payments to Contractors External
Ashfield District Council,37UB,Wolseley UK Limited,V1018807,20/02/2023,66.81,Housing & Assets 2,Supplies & Services,T35026/D200008,Housing Stock Accounts,Payments to Contractors External
Ashfield District Council,37UB,Wolseley UK Limited,V1018808,20/02/2023,328.23,Housing & Assets 2,Supplies & Services,T35026/D200008,Housing Stock Accounts,Payments to Contractors External
Ashfield District Council,37UB,Wolseley UK Limited,V1018809,20/02/2023,409.54,Housing & Assets 2,Supplies & Services,T35026/D200008,Housing Stock Accounts,Payments to Contractors External
Ashfield District Council,37UB,Wolseley UK Limited,V1018810,20/02/2023,1013.40,Housing & Assets 2,Supplies & Services,T35026/D200008,Housing Stock Accounts,Payments to Contractors External
Ashfield District Council,37UB,Wolseley UK Limited,V1018811,20/02/2023,20.01,Housing & Assets 2,Supplies & Services,T35026/D200008,Housing Stock Accounts,Payments to Contractors External
Ashfield District Council,37UB,Wolseley UK Limited,V1018814,20/02/2023,32.70,Housing & Assets 2,Supplies & Services,T35026/D200008,Housing Stock Accounts,Payments to Contractors External
Ashfield District Council,37UB,Wolseley UK Limited,V1018815,20/02/2023,18.90,Housing & Assets 2,Supplies & Services,T35026/D200008,Housing Stock Accounts,Payments to Contractors External
Ashfield District Council,37UB,Wolseley UK Limited,V1018815,20/02/2023,41.00,Housing & Assets 2,Supplies & Services,T35026/D200008,Housing Stock Accounts,Payments to Contractors External
Ashfield District Council,37UB,Wolseley UK Limited,V1018815,20/02/2023,227.00,Housing & Assets 2,Supplies & Services,T35026/D200008,Housing Stock Accounts,Payments to Contractors External
Ashfield District Council,37UB,Wolseley UK Limited,V1018815,20/02/2023,16.90,Housing & Assets 2,Supplies & Services,T35026/D200008,Housing Stock Accounts,Payments to Contractors External
Ashfield District Council,37UB,Wolseley UK Limited,V1018815,20/02/2023,76.36,Housing & Assets 2,Supplies & Services,T35026/D200008,Housing Stock Accounts,Payments to Contractors External
Ashfield District Council,37UB,Wolseley UK Limited,V1018815,20/02/2023,13.20,Housing & Assets 2,Supplies & Services,T35026/D200008,Housing Stock Accounts,Payments to Contractors External
Ashfield District Council,37UB,Wolseley UK Limited,V1018815,20/02/2023,170.04,Housing & Assets 2,Supplies & Services,T35026/D200008,Housing Stock Accounts,Payments to Contractors External
Ashfield District Council,37UB,Wolseley UK Limited,V1018815,20/02/2023,72.40,Housing & Assets 2,Supplies & Services,T35026/D200008,Housing Stock Accounts,Payments to Contractors External
Ashfield District Council,37UB,Wolseley UK Limited,V1018815,20/02/2023,23.30,Housing & Assets 2,Supplies & Services,T35026/D200008,Housing Stock Accounts,Payments to Contractors External
Ashfield District Council,37UB,Wolseley UK Limited,V1018815,20/02/2023,36.47,Housing & Assets 2,Supplies & Services,T35026/D200008,Housing Stock Accounts,Payments to Contractors External
Ashfield District Council,37UB,Wolseley UK Limited,V1018815,20/02/2023,165.00,Housing & Assets 2,Supplies & Services,T35026/D200008,Housing Stock Accounts,Payments to Contractors External
Ashfield District Council,37UB,Wolseley UK Limited,V1018815,20/02/2023,30.90,Housing & Assets 2,Supplies & Services,T35026/D200008,Housing Stock Accounts,Payments to Contractors External
Ashfield District Council,37UB,Wolseley UK Limited,V1018815,20/02/2023,68.50,Housing & Assets 2,Supplies & Services,T35026/D200008,Housing Stock Accounts,Payments to Contractors External
Ashfield District Council,37UB,Wolseley UK Limited,V1018815,20/02/2023,52.38,Housing & Assets 2,Supplies & Services,T35026/D200008,Housing Stock Accounts,Payments to Contractors External
Ashfield District Council,37UB,Wolseley UK Limited,V1018815,20/02/2023,59.58,Housing & Assets 2,Supplies & Services,T35026/D200008,Housing Stock Accounts,Payments to Contractors External
Ashfield District Council,37UB,Wolseley UK Limited,V1018815,20/02/2023,79.26,Housing & Assets 2,Supplies & Services,T35026/D200008,Housing Stock Accounts,Payments to Contractors External
Ashfield District Council,37UB,Wolseley UK Limited,V1018816,20/02/2023,34.70,Housing & Assets 2,Supplies & Services,T35026/D200008,Housing Stock Accounts,Payments to Contractors External
Ashfield District Council,37UB,Wolseley UK Limited,V1018816,20/02/2023,229.90,Housing & Assets 2,Supplies & Services,T35026/D200008,Housing Stock Accounts,Payments to Contractors External
Ashfield District Council,37UB,Wolseley UK Limited,V1018816,20/02/2023,25.96,Housing & Assets 2,Supplies & Services,T35026/D200008,Housing Stock Accounts,Payments to Contractors External
Ashfield District Council,37UB,Wolseley UK Limited,V1018816,20/02/2023,221.60,Housing & Assets 2,Supplies & Services,T35026/D200008,Housing Stock Accounts,Payments to Contractors External
Ashfield District Council,37UB,Wolseley UK Limited,V1018816,20/02/2023,176.80,Housing & Assets 2,Supplies & Services,T35026/D200008,Housing Stock Accounts,Payments to Contractors External
Ashfield District Council,37UB,Wolseley UK Limited,V1018816,20/02/2023,63.30,Housing & Assets 2,Supplies & Services,T35026/D200008,Housing Stock Accounts,Payments to Contractors External
Ashfield District Council,37UB,Wolseley UK Limited,V1018817,20/02/2023,61.44,Housing & Assets 2,Supplies & Services,T35026/D200008,Housing Stock Accounts,Payments to Contractors External
Ashfield District Council,37UB,Wolseley UK Limited,V1018817,20/02/2023,475.00,Housing & Assets 2,Supplies & Services,T35026/D200008,Housing Stock Accounts,Payments to Contractors External
Ashfield District Council,37UB,Wolseley UK Limited,V1018817,20/02/2023,188.00,Housing & Assets 2,Supplies & Services,T35026/D200008,Housing Stock Accounts,Payments to Contractors External
Ashfield District Council,37UB,Wolseley UK Limited,V1018817,20/02/2023,63.30,Housing & Assets 2,Supplies & Services,T35026/D200008,Housing Stock Accounts,Payments to Contractors External
Ashfield District Council,37UB,Wolseley UK Limited,V1018817,20/02/2023,45.08,Housing & Assets 2,Supplies & Services,T35026/D200008,Housing Stock Accounts,Payments to Contractors External
Ashfield District Council,37UB,Wolseley UK Limited,V1018817,20/02/2023,48.35,Housing & Assets 2,Supplies & Services,T35026/D200008,Housing Stock Accounts,Payments to Contractors External
Ashfield District Council,37UB,Wolseley UK Limited,V1018817,20/02/2023,340.50,Housing & Assets 2,Supplies & Services,T35026/D200008,Housing Stock Accounts,Payments to Contractors External
Ashfield District Council,37UB,Wolseley UK Limited,V1018818,20/02/2023,318.44,Housing & Assets 2,Supplies & Services,T35026/D200008,Housing Stock Accounts,Payments to Contractors External
Ashfield District Council,37UB,Wolseley UK Limited,V1018819,20/02/2023,318.44,Housing & Assets 2,Supplies & Services,T35026/D200008,Housing Stock Accounts,Payments to Contractors External
Ashfield District Council,37UB,Wolseley UK Limited,V1018819,20/02/2023,496.35,Housing & Assets 2,Supplies & Services,T35026/D200008,Housing Stock Accounts,Payments to Contractors External
Ashfield District Council,37UB,Wolseley UK Limited,V1018819,20/02/2023,227.00,Housing & Assets 2,Supplies & Services,T35026/D200008,Housing Stock Accounts,Payments to Contractors External
Ashfield District Council,37UB,Wolseley UK Limited,V1018820,20/02/2023,55.58,Housing & Assets 2,Supplies & Services,T35026/D200008,Housing Stock Accounts,Payments to Contractors External
Ashfield District Council,37UB,Wolseley UK Limited,V1018820,20/02/2023,18.90,Housing & Assets 2,Supplies & Services,T35026/D200008,Housing Stock Accounts,Payments to Contractors External
Ashfield District Council,37UB,Wolseley UK Limited,V1018820,20/02/2023,52.56,Housing & Assets 2,Supplies & Services,T35026/D200008,Housing Stock Accounts,Payments to Contractors External
Ashfield District Council,37UB,Wolseley UK Limited,V1018820,20/02/2023,14.43,Housing & Assets 2,Supplies & Services,T35026/D200008,Housing Stock Accounts,Payments to Contractors External
Ashfield District Council,37UB,Wolseley UK Limited,V1018821,20/02/2023,129.20,Housing & Assets 2,Supplies & Services,T35026/D200008,Housing Stock Accounts,Payments to Contractors External
Ashfield District Council,37UB,Wolseley UK Limited,V1018821,20/02/2023,79.50,Housing & Assets 2,Supplies & Services,T35026/D200008,Housing Stock Accounts,Payments to Contractors External
Ashfield District Council,37UB,Wolseley UK Limited,V1018821,20/02/2023,84.80,Housing & Assets 2,Supplies & Services,T35026/D200008,Housing Stock Accounts,Payments to Contractors External
Ashfield District Council,37UB,Wolseley UK Limited,V1018821,20/02/2023,22.82,Housing & Assets 2,Supplies & Services,T35026/D200008,Housing Stock Accounts,Payments to Contractors External
Ashfield District Council,37UB,Wolseley UK Limited,V1018821,20/02/2023,62.96,Housing & Assets 2,Supplies & Services,T35026/D200008,Housing Stock Accounts,Payments to Contractors External
Ashfield District Council,37UB,Wolseley UK Limited,V1019290,20/02/2023,52.73,Housing & Assets 2,Supplies & Services,T35026/D200008,Housing Stock Accounts,Payments to Contractors External
Ashfield District Council,37UB,Wolseley UK Limited,V1019293,20/02/2023,136.34,Housing & Assets 2,Supplies & Services,T35026/D200008,Housing Stock Accounts,Payments to Contractors External
Ashfield District Council,37UB,Wolseley UK Limited,V1019294,20/02/2023,136.34,Housing & Assets 2,Supplies & Services,T35026/D200008,Housing Stock Accounts,Payments to Contractors External
Ashfield District Council,37UB,Wolseley UK Limited,V1019295,20/02/2023,50.40,Housing & Assets 2,Supplies & Services,T35026/D200008,Housing Stock Accounts,Payments to Contractors External
Ashfield District Council,37UB,Wolseley UK Limited,V1019295,20/02/2023,70.41,Housing & Assets 2,Supplies & Services,T35026/D200008,Housing Stock Accounts,Payments to Contractors External
Ashfield District Council,37UB,Wolseley UK Limited,V1019551,28/02/2023,-2.47,Housing & Assets 2,Supplies & Services,T35026/D200008,Housing Stock Accounts,Payments to Contractors External
Ashfield District Council,37UB,Wolseley UK Limited,V1019552,28/02/2023,-20.90,Housing & Assets 2,Supplies & Services,T35026/D200008,Housing Stock Accounts,Payments to Contractors External
Ashfield District Council,37UB,Wolseley UK Limited,V1019562,28/02/2023,153.40,Housing & Assets 2,Supplies & Services,T35026/D200008,Housing Stock Accounts,Payments to Contractors External
Ashfield District Council,37UB,Wolseley UK Limited,V1019562,28/02/2023,1434.90,Housing & Assets 2,Supplies & Services,T35026/D200008,Housing Stock Accounts,Payments to Contractors External
Ashfield District Council,37UB,Wolseley UK Limited,V1019562,28/02/2023,94.50,Housing & Assets 2,Supplies & Services,T35026/D200008,Housing Stock Accounts,Payments to Contractors External
Ashfield District Council,37UB,Wolseley UK Limited,V1019562,28/02/2023,193.52,Housing & Assets 2,Supplies & Services,T35026/D200008,Housing Stock Accounts,Payments to Contractors External
Ashfield District Council,37UB,Wolseley UK Limited,V1019562,28/02/2023,177.33,Housing & Assets 2,Supplies & Services,T35026/D200008,Housing Stock Accounts,Payments to Contractors External
Ashfield District Council,37UB,Wolseley UK Limited,V1019562,28/02/2023,146.42,Housing & Assets 2,Supplies & Services,T35026/D200008,Housing Stock Accounts,Payments to Contractors External
Ashfield District Council,37UB,Wolseley UK Limited,V1019564,28/02/2023,208.20,Housing & Assets 2,Supplies & Services,T35026/D200008,Housing Stock Accounts,Payments to Contractors External
Ashfield District Council,37UB,Wolseley UK Limited,V1019565,28/02/2023,188.80,Housing & Assets 2,Supplies & Services,T35026/D200008,Housing Stock Accounts,Payments to Contractors External
Ashfield District Council,37UB,Wolseley UK Limited,V1019565,28/02/2023,2.11,Housing & Assets 2,Supplies & Services,T35026/D200008,Housing Stock Accounts,Payments to Contractors External
Ashfield District Council,37UB,Wolseley UK Limited,V1019565,28/02/2023,35.20,Housing & Assets 2,Supplies & Services,T35026/D200008,Housing Stock Accounts,Payments to Contractors External
Ashfield District Council,37UB,Wolseley UK Limited,V1019565,28/02/2023,30.90,Housing & Assets 2,Supplies & Services,T35026/D200008,Housing Stock Accounts,Payments to Contractors External
Ashfield District Council,37UB,Wolseley UK Limited,V1019565,28/02/2023,11.80,Housing & Assets 2,Supplies & Services,T35026/D200008,Housing Stock Accounts,Payments to Contractors External
Ashfield District Council,37UB,Wolseley UK Limited,V1019565,28/02/2023,92.70,Housing & Assets 2,Supplies & Services,T35026/D200008,Housing Stock Accounts,Payments to Contractors External
Ashfield District Council,37UB,Wolseley UK Limited,V1019566,28/02/2023,27.36,Housing & Assets 2,Supplies & Services,T35026/D200008,Housing Stock Accounts,Payments to Contractors External
Ashfield District Council,37UB,Wolseley UK Limited,V1019569,28/02/2023,44.06,Housing & Assets 2,Supplies & Services,T35026/D200008,Housing Stock Accounts,Payments to Contractors External
Ashfield District Council,37UB,Wolseley UK Limited,V1019570,28/02/2023,87.80,Housing & Assets 2,Supplies & Services,T35026/D200008,Housing Stock Accounts,Payments to Contractors External
Ashfield District Council,37UB,Wolseley UK Limited,V1019571,28/02/2023,62.08,Housing & Assets 2,Supplies & Services,T35026/D200008,Housing Stock Accounts,Payments to Contractors External
Ashfield District Council,37UB,Wolseley UK Limited,V1019573,28/02/2023,96.76,Housing & Assets 2,Supplies & Services,T35026/D200008,Housing Stock Accounts,Payments to Contractors External
Ashfield District Council,37UB,Wolseley UK Limited,V1019574,28/02/2023,66.81,Housing & Assets 2,Supplies & Services,T35026/D200008,Housing Stock Accounts,Payments to Contractors External
Ashfield District Council,37UB,Wolseley UK Limited,V1019575,28/02/2023,138.00,Housing & Assets 2,Supplies & Services,T35026/D200008,Housing Stock Accounts,Payments to Contractors External
Ashfield District Council,37UB,Wolseley UK Limited,V1019576,28/02/2023,19.09,Housing & Assets 2,Supplies & Services,T35026/D200008,Housing Stock Accounts,Payments to Contractors External
Ashfield District Council,37UB,Wolseley UK Limited,V1019577,28/02/2023,597.40,Housing & Assets 2,Supplies & Services,T35026/D200008,Housing Stock Accounts,Payments to Contractors External
Ashfield District Council,37UB,Wolseley UK Limited,V1019577,28/02/2023,62.64,Housing & Assets 2,Supplies & Services,T35026/D200008,Housing Stock Accounts,Payments to Contractors External
Ashfield District Council,37UB,Wolseley UK Limited,V1019577,28/02/2023,41.76,Housing & Assets 2,Supplies & Services,T35026/D200008,Housing Stock Accounts,Payments to Contractors External
Ashfield District Council,37UB,Wolseley UK Limited,V1019578,28/02/2023,136.34,Housing & Assets 2,Supplies & Services,T35026/D200008,Housing Stock Accounts,Payments to Contractors External
Ashfield District Council,37UB,Wolseley UK Limited,V1019581,28/02/2023,238.96,Housing & Assets 2,Supplies & Services,T35026/D200008,Housing Stock Accounts,Payments to Contractors External
Ashfield District Council,37UB,Wolseley UK Limited,V1019590,28/02/2023,42.60,Housing & Assets 2,Supplies & Services,T35026/D200008,Housing Stock Accounts,Payments to Contractors External
Ashfield District Council,37UB,Wolseley UK Limited,V1019591,28/02/2023,265.20,Housing & Assets 2,Supplies & Services,T35026/D200008,Housing Stock Accounts,Payments to Contractors External
Ashfield District Council,37UB,Wolseley UK Limited,V1019591,28/02/2023,33.30,Housing & Assets 2,Supplies & Services,T35026/D200008,Housing Stock Accounts,Payments to Contractors External
Ashfield District Council,37UB,Wolseley UK Limited,V1019591,28/02/2023,86.67,Housing & Assets 2,Supplies & Services,T35026/D200008,Housing Stock Accounts,Payments to Contractors External
Ashfield District Council,37UB,Wolseley UK Limited,V1019591,28/02/2023,454.00,Housing & Assets 2,Supplies & Services,T35026/D200008,Housing Stock Accounts,Payments to Contractors External
Ashfield District Council,37UB,Wolseley UK Limited,V1019591,28/02/2023,31.65,Housing & Assets 2,Supplies & Services,T35026/D200008,Housing Stock Accounts,Payments to Contractors External
Ashfield District Council,37UB,Wolseley UK Limited,V1019591,28/02/2023,31.00,Housing & Assets 2,Supplies & Services,T35026/D200008,Housing Stock Accounts,Payments to Contractors External
Ashfield District Council,37UB,Wolseley UK Limited,V1019591,28/02/2023,41.00,Housing & Assets 2,Supplies & Services,T35026/D200008,Housing Stock Accounts,Payments to Contractors External
Ashfield District Council,37UB,Wolseley UK Limited,V1019591,28/02/2023,51.20,Housing & Assets 2,Supplies & Services,T35026/D200008,Housing Stock Accounts,Payments to Contractors External
Ashfield District Council,37UB,Wolseley UK Limited,V1019591,28/02/2023,33.00,Housing & Assets 2,Supplies & Services,T35026/D200008,Housing Stock Accounts,Payments to Contractors External
Ashfield District Council,37UB,Wolseley UK Limited,V1019591,28/02/2023,18.50,Housing & Assets 2,Supplies & Services,T35026/D200008,Housing Stock Accounts,Payments to Contractors External
Ashfield District Council,37UB,Wolseley UK Limited,V1019592,28/02/2023,35.20,Housing & Assets 2,Supplies & Services,T35026/D200008,Housing Stock Accounts,Payments to Contractors External
Ashfield District Council,37UB,Wolseley UK Limited,V1019592,28/02/2023,472.89,Housing & Assets 2,Supplies & Services,T35026/D200008,Housing Stock Accounts,Payments to Contractors External
Ashfield District Council,37UB,Wolseley UK Limited,V1019592,28/02/2023,485.45,Housing & Assets 2,Supplies & Services,T35026/D200008,Housing Stock Accounts,Payments to Contractors External
Ashfield District Council,37UB,Wolseley UK Limited,V1019592,28/02/2023,74.72,Housing & Assets 2,Supplies & Services,T35026/D200008,Housing Stock Accounts,Payments to Contractors External
Ashfield District Council,37UB,Wolseley UK Limited,V1019592,28/02/2023,137.04,Housing & Assets 2,Supplies & Services,T35026/D200008,Housing Stock Accounts,Payments to Contractors External
Ashfield District Council,37UB,Wolseley UK Limited,V1019592,28/02/2023,65.60,Housing & Assets 2,Supplies & Services,T35026/D200008,Housing Stock Accounts,Payments to Contractors External
Ashfield District Council,37UB,Wolseley UK Limited,V1019592,28/02/2023,12.00,Housing & Assets 2,Supplies & Services,T35026/D200008,Housing Stock Accounts,Payments to Contractors External
Ashfield District Council,37UB,Wolseley UK Limited,V1019592,28/02/2023,469.40,Housing & Assets 2,Supplies & Services,T35026/D200008,Housing Stock Accounts,Payments to Contractors External
Ashfield District Council,37UB,Wolseley UK Limited,V1019592,28/02/2023,74.00,Housing & Assets 2,Supplies & Services,T35026/D200008,Housing Stock Accounts,Payments to Contractors External
Ashfield District Council,37UB,Wolseley UK Limited,V1019592,28/02/2023,41.80,Housing & Assets 2,Supplies & Services,T35026/D200008,Housing Stock Accounts,Payments to Contractors External
Ashfield District Council,37UB,Wolseley UK Limited,V1019592,28/02/2023,74.72,Housing & Assets 2,Supplies & Services,T35026/D200008,Housing Stock Accounts,Payments to Contractors External
Ashfield District Council,37UB,Wolseley UK Limited,V1019592,28/02/2023,227.00,Housing & Assets 2,Supplies & Services,T35026/D200008,Housing Stock Accounts,Payments to Contractors External
Ashfield District Council,37UB,Wolseley UK Limited,V1019592,28/02/2023,236.46,Housing & Assets 2,Supplies & Services,T35026/D200008,Housing Stock Accounts,Payments to Contractors External
Ashfield District Council,37UB,Wolseley UK Limited,V1019593,28/02/2023,15.52,Housing & Assets 2,Supplies & Services,T35026/D200008,Housing Stock Accounts,Payments to Contractors External
Ashfield District Council,37UB,Wolseley UK Limited,V1019594,28/02/2023,13.32,Housing & Assets 2,Supplies & Services,T35026/D200008,Housing Stock Accounts,Payments to Contractors External
Ashfield District Council,37UB,Wolseley UK Limited,V1019595,28/02/2023,1013.40,Housing & Assets 2,Supplies & Services,T35026/D200008,Housing Stock Accounts,Payments to Contractors External
Ashfield District Council,37UB,Wolseley UK Limited,V1019596,28/02/2023,6.40,Housing & Assets 2,Supplies & Services,T35026/D200008,Housing Stock Accounts,Payments to Contractors External
Ashfield District Council,37UB,Wolseley UK Limited,V1019596,28/02/2023,9.80,Housing & Assets 2,Supplies & Services,T35026/D200008,Housing Stock Accounts,Payments to Contractors External
Ashfield District Council,37UB,Wolseley UK Limited,V1019596,28/02/2023,83.78,Housing & Assets 2,Supplies & Services,T35026/D200008,Housing Stock Accounts,Payments to Contractors External
Ashfield District Council,37UB,Wolseley UK Limited,V1019597,28/02/2023,209.40,Housing & Assets 2,Supplies & Services,T35026/D200008,Housing Stock Accounts,Payments to Contractors External
Ashfield District Council,37UB,Wolseley UK Limited,V1019597,28/02/2023,260.80,Housing & Assets 2,Supplies & Services,T35026/D200008,Housing Stock Accounts,Payments to Contractors External
Ashfield District Council,37UB,Wolseley UK Limited,V1019597,28/02/2023,227.84,Housing & Assets 2,Supplies & Services,T35026/D200008,Housing Stock Accounts,Payments to Contractors External
Ashfield District Council,37UB,Wolseley UK Limited,V1019598,28/02/2023,104.10,Housing & Assets 2,Supplies & Services,T35026/D200008,Housing Stock Accounts,Payments to Contractors External
Ashfield District Council,37UB,Wolseley UK Limited,V1019598,28/02/2023,206.04,Housing & Assets 2,Supplies & Services,T35026/D200008,Housing Stock Accounts,Payments to Contractors External
Ashfield District Council,37UB,Wolseley UK Limited,V1019599,28/02/2023,71.80,Housing & Assets 2,Supplies & Services,T35026/D200008,Housing Stock Accounts,Payments to Contractors External
Ashfield District Council,37UB,Wolseley UK Limited,V1019600,28/02/2023,1013.40,Housing & Assets 2,Supplies & Services,T35026/D200008,Housing Stock Accounts,Payments to Contractors External
Ashfield District Council,37UB,Wolseley UK Limited,V1019601,28/02/2023,146.16,Housing & Assets 2,Supplies & Services,T35026/D200008,Housing Stock Accounts,Payments to Contractors External
Ashfield District Council,37UB,Wolseley UK Limited,V1019602,28/02/2023,716.88,Housing & Assets 2,Supplies & Services,T35026/D200008,Housing Stock Accounts,Payments to Contractors External
Ashfield District Council,37UB,Wolseley UK Limited,V1019603,28/02/2023,1013.40,Housing & Assets 2,Supplies & Services,T35026/D200008,Housing Stock Accounts,Payments to Contractors External
Ashfield District Council,37UB,Wolseley UK Limited,V1019606,28/02/2023,79.26,Housing & Assets 2,Supplies & Services,T35026/D200008,Housing Stock Accounts,Payments to Contractors External
Ashfield District Council,37UB,Wolseley UK Limited,V1019606,28/02/2023,100.45,Housing & Assets 2,Supplies & Services,T35026/D200008,Housing Stock Accounts,Payments to Contractors External
Ashfield District Council,37UB,Wolseley UK Limited,V1019606,28/02/2023,367.62,Housing & Assets 2,Supplies & Services,T35026/D200008,Housing Stock Accounts,Payments to Contractors External
Ashfield District Council,37UB,Wolseley UK Limited,V1019606,28/02/2023,180.40,Housing & Assets 2,Supplies & Services,T35026/D200008,Housing Stock Accounts,Payments to Contractors External
Ashfield District Council,37UB,Wolseley UK Limited,V1019606,28/02/2023,76.18,Housing & Assets 2,Supplies & Services,T35026/D200008,Housing Stock Accounts,Payments to Contractors External
Ashfield District Council,37UB,Wolseley UK Limited,V1019606,28/02/2023,77.40,Housing & Assets 2,Supplies & Services,T35026/D200008,Housing Stock Accounts,Payments to Contractors External
Ashfield District Council,37UB,Wolseley UK Limited,V1019607,28/02/2023,255.15,Housing & Assets 2,Supplies & Services,T35026/D200008,Housing Stock Accounts,Payments to Contractors External
Ashfield District Council,37UB,Wolseley UK Limited,V1019607,28/02/2023,12.60,Housing & Assets 2,Supplies & Services,T35026/D200008,Housing Stock Accounts,Payments to Contractors External
Ashfield District Council,37UB,Wolseley UK Limited,V1019607,28/02/2023,203.90,Housing & Assets 2,Supplies & Services,T35026/D200008,Housing Stock Accounts,Payments to Contractors External
Ashfield District Council,37UB,Wolseley UK Limited,V1019607,28/02/2023,221.00,Housing & Assets 2,Supplies & Services,T35026/D200008,Housing Stock Accounts,Payments to Contractors External
Ashfield District Council,37UB,Wolseley UK Limited,V1019607,28/02/2023,225.50,Housing & Assets 2,Supplies & Services,T35026/D200008,Housing Stock Accounts,Payments to Contractors External
Ashfield District Council,37UB,Wolseley UK Limited,V1019607,28/02/2023,1213.63,Housing & Assets 2,Supplies & Services,T35026/D200008,Housing Stock Accounts,Payments to Contractors External
Ashfield District Council,37UB,Wolseley UK Limited,V1019607,28/02/2023,112.80,Housing & Assets 2,Supplies & Services,T35026/D200008,Housing Stock Accounts,Payments to Contractors External
Ashfield District Council,37UB,Wolseley UK Limited,V1019607,28/02/2023,227.80,Housing & Assets 2,Supplies & Services,T35026/D200008,Housing Stock Accounts,Payments to Contractors External
Ashfield District Council,37UB,Wolseley UK Limited,V1019607,28/02/2023,171.84,Housing & Assets 2,Supplies & Services,T35026/D200008,Housing Stock Accounts,Payments to Contractors External
Ashfield District Council,37UB,Wolseley UK Limited,V1019607,28/02/2023,352.05,Housing & Assets 2,Supplies & Services,T35026/D200008,Housing Stock Accounts,Payments to Contractors External
Ashfield District Council,37UB,Wolseley UK Limited,V1019608,28/02/2023,52.38,Housing & Assets 2,Supplies & Services,T35026/D200008,Housing Stock Accounts,Payments to Contractors External
Ashfield District Council,37UB,Wolseley UK Limited,V1019608,28/02/2023,105.68,Housing & Assets 2,Supplies & Services,T35026/D200008,Housing Stock Accounts,Payments to Contractors External
Ashfield District Council,37UB,Wolseley UK Limited,V1019608,28/02/2023,57.12,Housing & Assets 2,Supplies & Services,T35026/D200008,Housing Stock Accounts,Payments to Contractors External
Ashfield District Council,37UB,Wolseley UK Limited,V1019608,28/02/2023,182.40,Housing & Assets 2,Supplies & Services,T35026/D200008,Housing Stock Accounts,Payments to Contractors External
Ashfield District Council,37UB,Wolseley UK Limited,V1019608,28/02/2023,227.80,Housing & Assets 2,Supplies & Services,T35026/D200008,Housing Stock Accounts,Payments to Contractors External
Ashfield District Council,37UB,Wolseley UK Limited,V1019608,28/02/2023,265.20,Housing & Assets 2,Supplies & Services,T35026/D200008,Housing Stock Accounts,Payments to Contractors External
Ashfield District Council,37UB,Wolseley UK Limited,V1019608,28/02/2023,130.08,Housing & Assets 2,Supplies & Services,T35026/D200008,Housing Stock Accounts,Payments to Contractors External
Ashfield District Council,37UB,Wolseley UK Limited,V1019608,28/02/2023,225.50,Housing & Assets 2,Supplies & Services,T35026/D200008,Housing Stock Accounts,Payments to Contractors External
Ashfield District Council,37UB,Wolseley UK Limited,V1019608,28/02/2023,35.40,Housing & Assets 2,Supplies & Services,T35026/D200008,Housing Stock Accounts,Payments to Contractors External
Ashfield District Council,37UB,Wolseley UK Limited,V1019610,28/02/2023,31.65,Housing & Assets 2,Supplies & Services,T35026/D200008,Housing Stock Accounts,Payments to Contractors External
Ashfield District Council,37UB,Wolseley UK Limited,V1019610,28/02/2023,62.50,Housing & Assets 2,Supplies & Services,T35026/D200008,Housing Stock Accounts,Payments to Contractors External
Ashfield District Council,37UB,Wolseley UK Limited,V1019610,28/02/2023,41.00,Housing & Assets 2,Supplies & Services,T35026/D200008,Housing Stock Accounts,Payments to Contractors External
Ashfield District Council,37UB,Wolseley UK Limited,V1019610,28/02/2023,122.00,Housing & Assets 2,Supplies & Services,T35026/D200008,Housing Stock Accounts,Payments to Contractors External
Ashfield District Council,37UB,Wolseley UK Limited,V1019610,28/02/2023,49.50,Housing & Assets 2,Supplies & Services,T35026/D200008,Housing Stock Accounts,Payments to Contractors External
Ashfield District Council,37UB,Wolseley UK Limited,V1019610,28/02/2023,62.70,Housing & Assets 2,Supplies & Services,T35026/D200008,Housing Stock Accounts,Payments to Contractors External
Ashfield District Council,37UB,Wolseley UK Limited,V1019610,28/02/2023,90.00,Housing & Assets 2,Supplies & Services,T35026/D200008,Housing Stock Accounts,Payments to Contractors External
Ashfield District Council,37UB,Wolseley UK Limited,V1019610,28/02/2023,152.20,Housing & Assets 2,Supplies & Services,T35026/D200008,Housing Stock Accounts,Payments to Contractors External
Ashfield District Council,37UB,Wolseley UK Limited,V1019611,28/02/2023,244.80,Housing & Assets 2,Supplies & Services,T35026/D200008,Housing Stock Accounts,Payments to Contractors External
Ashfield District Council,37UB,Wolseley UK Limited,V1019611,28/02/2023,282.60,Housing & Assets 2,Supplies & Services,T35026/D200008,Housing Stock Accounts,Payments to Contractors External
Ashfield District Council,37UB,Wolseley UK Limited,V1019611,28/02/2023,500.52,Housing & Assets 2,Supplies & Services,T35026/D200008,Housing Stock Accounts,Payments to Contractors External
Ashfield District Council,37UB,Wolseley UK Limited,V1019611,28/02/2023,72.60,Housing & Assets 2,Supplies & Services,T35026/D200008,Housing Stock Accounts,Payments to Contractors External
Ashfield District Council,37UB,Wolseley UK Limited,V1019611,28/02/2023,268.00,Housing & Assets 2,Supplies & Services,T35026/D200008,Housing Stock Accounts,Payments to Contractors External
Ashfield District Council,37UB,Wolseley UK Limited,V1019611,28/02/2023,128.88,Housing & Assets 2,Supplies & Services,T35026/D200008,Housing Stock Accounts,Payments to Contractors External
Ashfield District Council,37UB,Wolseley UK Limited,V1019611,28/02/2023,369.44,Housing & Assets 2,Supplies & Services,T35026/D200008,Housing Stock Accounts,Payments to Contractors External
Ashfield District Council,37UB,Wolseley UK Limited,V1019611,28/02/2023,214.80,Housing & Assets 2,Supplies & Services,T35026/D200008,Housing Stock Accounts,Payments to Contractors External
Ashfield District Council,37UB,Wolseley UK Limited,V1019611,28/02/2023,74.10,Housing & Assets 2,Supplies & Services,T35026/D200008,Housing Stock Accounts,Payments to Contractors External
Ashfield District Council,37UB,Wolseley UK Limited,V1019619,28/02/2023,412.76,Housing & Assets 2,Supplies & Services,T35026/D200008,Housing Stock Accounts,Payments to Contractors External
Ashfield District Council,37UB,Wolseley UK Limited,V1019619,28/02/2023,461.80,Housing & Assets 2,Supplies & Services,T35026/D200008,Housing Stock Accounts,Payments to Contractors External
Ashfield District Council,37UB,Wolseley UK Limited,V1019619,28/02/2023,945.78,Housing & Assets 2,Supplies & Services,T35026/D200008,Housing Stock Accounts,Payments to Contractors External
Ashfield District Council,37UB,Wolseley UK Limited,V1019619,28/02/2023,242.55,Housing & Assets 2,Supplies & Services,T35026/D200008,Housing Stock Accounts,Payments to Contractors External
Ashfield District Council,37UB,Wolseley UK Limited,V1019619,28/02/2023,489.60,Housing & Assets 2,Supplies & Services,T35026/D200008,Housing Stock Accounts,Payments to Contractors External
Ashfield District Council,37UB,Wolseley UK Limited,V1019619,28/02/2023,112.80,Housing & Assets 2,Supplies & Services,T35026/D200008,Housing Stock Accounts,Payments to Contractors External
Ashfield District Council,37UB,Wolseley UK Limited,V1019619,28/02/2023,182.72,Housing & Assets 2,Supplies & Services,T35026/D200008,Housing Stock Accounts,Payments to Contractors External
Ashfield District Council,37UB,Wolseley UK Limited,V1019619,28/02/2023,268.00,Housing & Assets 2,Supplies & Services,T35026/D200008,Housing Stock Accounts,Payments to Contractors External
Ashfield District Council,37UB,Wood Lane Timber Merchants Ltd,V1018397,14/02/2023,326.00,Housing & Assets 2,Supplies & Services,T35026/D200008,Housing Stock Accounts,Payments to Contractors External
Ashfield District Council,37UB,Wood Lane Timber Merchants Ltd,V1018397,14/02/2023,133.60,Housing & Assets 2,Supplies & Services,T35026/D200008,Housing Stock Accounts,Payments to Contractors External
Ashfield District Council,37UB,Wood Lane Timber Merchants Ltd,V1018397,14/02/2023,1407.00,Housing & Assets 2,Supplies & Services,T35026/D200008,Housing Stock Accounts,Payments to Contractors External
Ashfield District Council,37UB,Wood Lane Timber Merchants Ltd,V1018397,14/02/2023,124.40,Housing & Assets 2,Supplies & Services,T35026/D200008,Housing Stock Accounts,Payments to Contractors External
Ashfield District Council,37UB,Wood Lane Timber Merchants Ltd,V1019916,28/02/2023,186.60,Housing & Assets 2,Supplies & Services,T35026/D200008,Housing Stock Accounts,Payments to Contractors External
Ashfield District Council,37UB,Wood Lane Timber Merchants Ltd,V1019916,28/02/2023,200.40,Housing & Assets 2,Supplies & Services,T35026/D200008,Housing Stock Accounts,Payments to Contractors External
Ashfield District Council,37UB,ATE (UK) Ltd,V1014107,09/02/2023,152.65,Place & Communities 2,Transport Related Expenses,T35002/C011,Stock Account,Parts
Ashfield District Council,37UB,ATE (UK) Ltd,V1014487,09/02/2023,-152.65,Place & Communities 2,Transport Related Expenses,T35002/C011,Stock Account,Parts
Ashfield District Council,37UB,ATE (UK) Ltd,V1018237,09/02/2023,77.10,Place & Communities 2,Transport Related Expenses,T35002/C011,Stock Account,Parts
Ashfield District Council,37UB,ATE (UK) Ltd,V1018237,09/02/2023,11.50,Place & Communities 2,Transport Related Expenses,T35002/C011,Stock Account,Parts
Ashfield District Council,37UB,ATE (UK) Ltd,V1018653,16/02/2023,9.40,Place & Communities 2,Transport Related Expenses,T35002/C011,Stock Account,Parts
Ashfield District Council,37UB,ATE (UK) Ltd,V1018653,16/02/2023,11.50,Place & Communities 2,Transport Related Expenses,T35002/C011,Stock Account,Parts
Ashfield District Council,37UB,ATE (UK) Ltd,V1018653,16/02/2023,84.95,Place & Communities 2,Transport Related Expenses,T35002/C011,Stock Account,Parts
Ashfield District Council,37UB,B & B Tractors,V1019452,23/02/2023,4.97,Place & Communities 2,Transport Related Expenses,T35002/C011,Stock Account,Parts
Ashfield District Council,37UB,B & B Tractors,V1019452,23/02/2023,17.87,Place & Communities 2,Transport Related Expenses,T35002/C011,Stock Account,Parts
Ashfield District Council,37UB,Bapp Industrial Supplies (Mansfield) Ltd,V1018588,23/02/2023,4.00,Place & Communities 2,Transport Related Expenses,T35002/C011,Stock Account,Parts
Ashfield District Council,37UB,Bucher Municipal Limited,V1019451,23/02/2023,14.22,Place & Communities 2,Transport Related Expenses,T35002/C011,Stock Account,Parts
Ashfield District Council,37UB,Bucher Municipal Limited,V1019451,23/02/2023,259.72,Place & Communities 2,Transport Related Expenses,T35002/C011,Stock Account,Parts
Ashfield District Council,37UB,Bucher Municipal Limited,V1019451,23/02/2023,200.73,Place & Communities 2,Transport Related Expenses,T35002/C011,Stock Account,Parts
Ashfield District Council,37UB,Bucher Municipal Limited,V1019451,23/02/2023,239.27,Place & Communities 2,Transport Related Expenses,T35002/C011,Stock Account,Parts
Ashfield District Council,37UB,Bucher Municipal Limited,V1019451,23/02/2023,89.98,Place & Communities 2,Transport Related Expenses,T35002/C011,Stock Account,Parts
Ashfield District Council,37UB,Bucher Municipal Limited,V1019451,23/02/2023,49.36,Place & Communities 2,Transport Related Expenses,T35002/C011,Stock Account,Parts
Ashfield District Council,37UB,Bucher Municipal Limited,V1019532,23/02/2023,39.10,Place & Communities 2,Transport Related Expenses,T35002/C011,Stock Account,Parts
Ashfield District Council,37UB,Bucher Municipal Limited,V1019532,23/02/2023,8.50,Place & Communities 2,Transport Related Expenses,T35002/C011,Stock Account,Parts
Ashfield District Council,37UB,Bucher Municipal Limited,V1019532,23/02/2023,73.40,Place & Communities 2,Transport Related Expenses,T35002/C011,Stock Account,Parts
Ashfield District Council,37UB,Bucher Municipal Limited,V1019532,23/02/2023,2.58,Place & Communities 2,Transport Related Expenses,T35002/C011,Stock Account,Parts
Ashfield District Council,37UB,Bucher Municipal Limited,V1019532,23/02/2023,20.78,Place & Communities 2,Transport Related Expenses,T35002/C011,Stock Account,Parts
Ashfield District Council,37UB,Bucher Municipal Limited,V1019532,23/02/2023,8.04,Place & Communities 2,Transport Related Expenses,T35002/C011,Stock Account,Parts
Ashfield District Council,37UB,Bunce Ashbury Ltd,V1017413,16/02/2023,13.79,Place & Communities 2,Transport Related Expenses,T35002/C011,Stock Account,Parts
Ashfield District Council,37UB,Bunce Ashbury Ltd,V1017413,16/02/2023,114.44,Place & Communities 2,Transport Related Expenses,T35002/C011,Stock Account,Parts
Ashfield District Council,37UB,Bunce Ashbury Ltd,V1017413,16/02/2023,353.85,Place & Communities 2,Transport Related Expenses,T35002/C011,Stock Account,Parts
Ashfield District Council,37UB,Burrows Recovery,V1018567,16/02/2023,111.25,Place & Communities 2,Transport Related Expenses,T35002/C011,Stock Account,Parts
Ashfield District Council,37UB,Burrows Recovery,V1018591,16/02/2023,97.50,Place & Communities 2,Transport Related Expenses,T35002/C011,Stock Account,Parts
Ashfield District Council,37UB,Certas Energy UK Ltd t/a Pace Fuelcare,V1017468,02/02/2023,18370.80,Place & Communities 2,Supplies & Services,T35001/D001004,Stock Account,Chemicals and Materials Purchase
Ashfield District Council,37UB,Certas Energy UK Ltd t/a Pace Fuelcare,V1018618,16/02/2023,17563.00,Place & Communities 2,Supplies & Services,T35001/D001004,Stock Account,Chemicals and Materials Purchase
Ashfield District Council,37UB,Certas Energy UK Ltd t/a Pace Fuelcare,V1019456,23/02/2023,14749.20,Place & Communities 2,Supplies & Services,T35001/D001004,Stock Account,Chemicals and Materials Purchase
Ashfield District Council,37UB,Chemodex Ltd,V1017891,09/02/2023,47.88,Place & Communities 2,Transport Related Expenses,T35004/C005,Stock Account,Lubricants
Ashfield District Council,37UB,Chemodex Ltd,V1018157,09/02/2023,680.00,Place & Communities 2,Supplies & Services,T35001/D001004,Stock Account,Chemicals and Materials Purchase
Ashfield District Council,37UB,Chemodex Ltd,V1020077,23/02/2023,71.50,Place & Communities 2,Transport Related Expenses,T35002/C011,Stock Account,Parts
Ashfield District Council,37UB,County Battery Services Ltd,V1017399,02/02/2023,41.66,Place & Communities 2,Transport Related Expenses,T35002/C011,Stock Account,Parts
Ashfield District Council,37UB,County Battery Services Ltd,V1018152,09/02/2023,41.66,Place & Communities 2,Transport Related Expenses,T35002/C011,Stock Account,Parts
Ashfield District Council,37UB,County Battery Services Ltd,V1018608,16/02/2023,94.89,Place & Communities 2,Transport Related Expenses,T35002/C011,Stock Account,Parts
Ashfield District Council,37UB,County Battery Services Ltd,V1018712,23/02/2023,41.66,Place & Communities 2,Transport Related Expenses,T35002/C011,Stock Account,Parts
Ashfield District Council,37UB,County Battery Services Ltd,V1018712,23/02/2023,41.66,Place & Communities 2,Transport Related Expenses,T35002/C011,Stock Account,Parts
Ashfield District Council,37UB,County Battery Services Ltd,V1018712,23/02/2023,41.66,Place & Communities 2,Transport Related Expenses,T35002/C011,Stock Account,Parts
Ashfield District Council,37UB,Davmac Spares Ltd,V1017476,02/02/2023,68.80,Place & Communities 2,Transport Related Expenses,T35002/C011,Stock Account,Parts
Ashfield District Council,37UB,Davmac Spares Ltd,V1017582,02/02/2023,21.20,Place & Communities 2,Transport Related Expenses,T35002/C011,Stock Account,Parts
Ashfield District Council,37UB,Davmac Spares Ltd,V1018161,09/02/2023,65.13,Place & Communities 2,Transport Related Expenses,T35002/C011,Stock Account,Parts
Ashfield District Council,37UB,Davmac Spares Ltd,V1018281,16/02/2023,31.59,Place & Communities 2,Transport Related Expenses,T35002/C011,Stock Account,Parts
Ashfield District Council,37UB,Davmac Spares Ltd,V1018281,16/02/2023,35.29,Place & Communities 2,Transport Related Expenses,T35002/C011,Stock Account,Parts
Ashfield District Council,37UB,Davmac Spares Ltd,V1018281,16/02/2023,3.91,Place & Communities 2,Transport Related Expenses,T35002/C011,Stock Account,Parts
Ashfield District Council,37UB,Davmac Spares Ltd,V1018595,16/02/2023,6.99,Place & Communities 2,Transport Related Expenses,T35002/C011,Stock Account,Parts
Ashfield District Council,37UB,Davmac Spares Ltd,V1018597,16/02/2023,-6.99,Place & Communities 2,Transport Related Expenses,T35002/C011,Stock Account,Parts
Ashfield District Council,37UB,Davmac Spares Ltd,V1018610,16/02/2023,6.99,Place & Communities 2,Transport Related Expenses,T35002/C011,Stock Account,Parts
Ashfield District Council,37UB,Davmac Spares Ltd,V1018666,16/02/2023,31.60,Place & Communities 2,Transport Related Expenses,T35002/C011,Stock Account,Parts
Ashfield District Council,37UB,Dennis Eagle Limited,V1017388,02/02/2023,38.81,Place & Communities 2,Transport Related Expenses,T35002/C011,Stock Account,Parts
Ashfield District Council,37UB,Dennis Eagle Limited,V1017388,02/02/2023,51.96,Place & Communities 2,Transport Related Expenses,T35002/C011,Stock Account,Parts
Ashfield District Council,37UB,Dennis Eagle Limited,V1017388,02/02/2023,50.05,Place & Communities 2,Transport Related Expenses,T35002/C011,Stock Account,Parts
Ashfield District Council,37UB,Dennis Eagle Limited,V1017388,02/02/2023,47.36,Place & Communities 2,Transport Related Expenses,T35002/C011,Stock Account,Parts
Ashfield District Council,37UB,Dennis Eagle Limited,V1017388,02/02/2023,7.96,Place & Communities 2,Transport Related Expenses,T35002/C011,Stock Account,Parts
Ashfield District Council,37UB,Dennis Eagle Limited,V1017464,09/02/2023,78.38,Place & Communities 2,Transport Related Expenses,T35002/C011,Stock Account,Parts
Ashfield District Council,37UB,Dennis Eagle Limited,V1017464,09/02/2023,34.44,Place & Communities 2,Transport Related Expenses,T35002/C011,Stock Account,Parts
Ashfield District Council,37UB,Dennis Eagle Limited,V1017464,09/02/2023,23.36,Place & Communities 2,Transport Related Expenses,T35002/C011,Stock Account,Parts
Ashfield District Council,37UB,Dennis Eagle Limited,V1017464,09/02/2023,20.36,Place & Communities 2,Transport Related Expenses,T35002/C011,Stock Account,Parts
Ashfield District Council,37UB,Dennis Eagle Limited,V1017896,09/02/2023,34.44,Place & Communities 2,Transport Related Expenses,T35002/C011,Stock Account,Parts
Ashfield District Council,37UB,Dennis Eagle Limited,V1017896,09/02/2023,311.56,Place & Communities 2,Transport Related Expenses,T35002/C011,Stock Account,Parts
Ashfield District Council,37UB,Dennis Eagle Limited,V1017897,09/02/2023,34.44,Place & Communities 2,Transport Related Expenses,T35002/C011,Stock Account,Parts
Ashfield District Council,37UB,Dennis Eagle Limited,V1017934,09/02/2023,238.61,Place & Communities 2,Transport Related Expenses,T35002/C011,Stock Account,Parts
Ashfield District Council,37UB,Dennis Eagle Limited,V1017934,09/02/2023,38.81,Place & Communities 2,Transport Related Expenses,T35002/C011,Stock Account,Parts
Ashfield District Council,37UB,Dennis Eagle Limited,V1018579,16/02/2023,34.67,Place & Communities 2,Transport Related Expenses,T35002/C011,Stock Account,Parts
Ashfield District Council,37UB,Dennis Eagle Limited,V1018579,16/02/2023,539.06,Place & Communities 2,Transport Related Expenses,T35002/C011,Stock Account,Parts
Ashfield District Council,37UB,Dennis Eagle Limited,V1018579,16/02/2023,121.32,Place & Communities 2,Transport Related Expenses,T35002/C011,Stock Account,Parts
Ashfield District Council,37UB,Dennis Eagle Limited,V1018579,16/02/2023,694.38,Place & Communities 2,Transport Related Expenses,T35002/C011,Stock Account,Parts
Ashfield District Council,37UB,Dennis Eagle Limited,V1018579,16/02/2023,694.38,Place & Communities 2,Transport Related Expenses,T35002/C011,Stock Account,Parts
Ashfield District Council,37UB,Dennis Eagle Limited,V1018652,23/02/2023,386.12,Place & Communities 2,Transport Related Expenses,T35002/C011,Stock Account,Parts
Ashfield District Council,37UB,Dennis Eagle Limited,V1018652,23/02/2023,184.32,Place & Communities 2,Transport Related Expenses,T35002/C011,Stock Account,Parts
Ashfield District Council,37UB,Dennis Eagle Limited,V1018652,23/02/2023,42.13,Place & Communities 2,Transport Related Expenses,T35002/C011,Stock Account,Parts
Ashfield District Council,37UB,Dennis Eagle Limited,V1018652,23/02/2023,391.52,Place & Communities 2,Transport Related Expenses,T35002/C011,Stock Account,Parts
Ashfield District Council,37UB,Dennis Eagle Limited,V1018652,23/02/2023,99.75,Place & Communities 2,Transport Related Expenses,T35002/C011,Stock Account,Parts
Ashfield District Council,37UB,Dennis Eagle Limited,V1018652,23/02/2023,69.12,Place & Communities 2,Transport Related Expenses,T35002/C011,Stock Account,Parts
Ashfield District Council,37UB,Dennis Eagle Limited,V1019355,23/02/2023,91.73,Place & Communities 2,Transport Related Expenses,T35002/C011,Stock Account,Parts
Ashfield District Council,37UB,Dennis Eagle Limited,V1019355,23/02/2023,105.71,Place & Communities 2,Transport Related Expenses,T35002/C011,Stock Account,Parts
Ashfield District Council,37UB,Dennis Eagle Limited,V1019355,23/02/2023,179.57,Place & Communities 2,Transport Related Expenses,T35002/C011,Stock Account,Parts
Ashfield District Council,37UB,Dennis Eagle Limited,V1019432,23/02/2023,165.90,Place & Communities 2,Transport Related Expenses,T35002/C011,Stock Account,Parts
Ashfield District Council,37UB,Dennis Eagle Limited,V1019437,23/02/2023,269.53,Place & Communities 2,Transport Related Expenses,T35002/C011,Stock Account,Parts
Ashfield District Council,37UB,Dennis Eagle Limited,V1019437,23/02/2023,694.38,Place & Communities 2,Transport Related Expenses,T35002/C011,Stock Account,Parts
Ashfield District Council,37UB,Dennis Eagle Limited,V1019437,23/02/2023,17.33,Place & Communities 2,Transport Related Expenses,T35002/C011,Stock Account,Parts
Ashfield District Council,37UB,Dennis Eagle Limited,V1019437,23/02/2023,88.78,Place & Communities 2,Transport Related Expenses,T35002/C011,Stock Account,Parts
Ashfield District Council,37UB,Dennis Eagle Limited,V1019437,23/02/2023,60.66,Place & Communities 2,Transport Related Expenses,T35002/C011,Stock Account,Parts
Ashfield District Council,37UB,Dennis Eagle Limited,V1019437,23/02/2023,134.58,Place & Communities 2,Transport Related Expenses,T35002/C011,Stock Account,Parts
Ashfield District Council,37UB,Dennis Eagle Limited,V1019460,23/02/2023,134.58,Place & Communities 2,Transport Related Expenses,T35002/C011,Stock Account,Parts
Ashfield District Council,37UB,Eurotrucks (Mansfield) Ltd,V1018177,09/02/2023,10.25,Place & Communities 2,Transport Related Expenses,T35002/C011,Stock Account,Parts
Ashfield District Council,37UB,Eurotrucks (Mansfield) Ltd,V1018177,09/02/2023,28.00,Place & Communities 2,Transport Related Expenses,T35002/C011,Stock Account,Parts
Ashfield District Council,37UB,Eurotrucks (Mansfield) Ltd,V1018177,09/02/2023,28.00,Place & Communities 2,Transport Related Expenses,T35002/C011,Stock Account,Parts
Ashfield District Council,37UB,Eurotrucks (Mansfield) Ltd,V1018177,09/02/2023,85.00,Place & Communities 2,Transport Related Expenses,T35002/C011,Stock Account,Parts
Ashfield District Council,37UB,Ford Motor Company T/A Parts Plus,V1017568,02/02/2023,53.98,Place & Communities 2,Transport Related Expenses,T35002/C011,Stock Account,Parts
Ashfield District Council,37UB,Ford Motor Company T/A Parts Plus,V1017583,02/02/2023,69.17,Place & Communities 2,Transport Related Expenses,T35002/C011,Stock Account,Parts
Ashfield District Council,37UB,Ford Motor Company T/A Parts Plus,V1017908,09/02/2023,44.44,Place & Communities 2,Transport Related Expenses,T35002/C011,Stock Account,Parts
Ashfield District Council,37UB,Ford Motor Company T/A Parts Plus,V1017908,09/02/2023,19.11,Place & Communities 2,Transport Related Expenses,T35002/C011,Stock Account,Parts
Ashfield District Council,37UB,Ford Motor Company T/A Parts Plus,V1017908,09/02/2023,22.56,Place & Communities 2,Transport Related Expenses,T35002/C011,Stock Account,Parts
Ashfield District Council,37UB,Ford Motor Company T/A Parts Plus,V1017908,09/02/2023,20.47,Place & Communities 2,Transport Related Expenses,T35002/C011,Stock Account,Parts
Ashfield District Council,37UB,Ford Motor Company T/A Parts Plus,V1018168,09/02/2023,9.36,Place & Communities 2,Transport Related Expenses,T35002/C011,Stock Account,Parts
Ashfield District Council,37UB,Ford Motor Company T/A Parts Plus,V1018245,09/02/2023,15.39,Place & Communities 2,Transport Related Expenses,T35002/C011,Stock Account,Parts
Ashfield District Council,37UB,Ford Motor Company T/A Parts Plus,V1018245,09/02/2023,75.46,Place & Communities 2,Transport Related Expenses,T35002/C011,Stock Account,Parts
Ashfield District Council,37UB,Ford Motor Company T/A Parts Plus,V1018592,16/02/2023,32.49,Place & Communities 2,Transport Related Expenses,T35002/C011,Stock Account,Parts
Ashfield District Council,37UB,Ford Motor Company T/A Parts Plus,V1018592,16/02/2023,16.44,Place & Communities 2,Transport Related Expenses,T35002/C011,Stock Account,Parts
Ashfield District Council,37UB,Ford Motor Company T/A Parts Plus,V1018596,16/02/2023,13.65,Place & Communities 2,Transport Related Expenses,T35002/C011,Stock Account,Parts
Ashfield District Council,37UB,Ford Motor Company T/A Parts Plus,V1018596,16/02/2023,33.95,Place & Communities 2,Transport Related Expenses,T35002/C011,Stock Account,Parts
Ashfield District Council,37UB,Ford Motor Company T/A Parts Plus,V1018596,16/02/2023,0.01,Place & Communities 2,Transport Related Expenses,T35002/C011,Stock Account,Parts
Ashfield District Council,37UB,Ford Motor Company T/A Parts Plus,V1018596,16/02/2023,19.11,Place & Communities 2,Transport Related Expenses,T35002/C011,Stock Account,Parts
Ashfield District Council,37UB,Ford Motor Company T/A Parts Plus,V1018596,16/02/2023,19.11,Place & Communities 2,Transport Related Expenses,T35002/C011,Stock Account,Parts
Ashfield District Council,37UB,Ford Motor Company T/A Parts Plus,V1018612,16/02/2023,24.66,Place & Communities 2,Transport Related Expenses,T35002/C011,Stock Account,Parts
Ashfield District Council,37UB,Ford Motor Company T/A Parts Plus,V1018613,16/02/2023,9.56,Place & Communities 2,Transport Related Expenses,T35002/C011,Stock Account,Parts
Ashfield District Council,37UB,Ford Motor Company T/A Parts Plus,V1018659,23/02/2023,2.15,Place & Communities 2,Transport Related Expenses,T35002/C011,Stock Account,Parts
Ashfield District Council,37UB,Ford Motor Company T/A Parts Plus,V1018660,23/02/2023,102.51,Place & Communities 2,Transport Related Expenses,T35002/C011,Stock Account,Parts
Ashfield District Council,37UB,Ford Motor Company T/A Parts Plus,V1018661,23/02/2023,0.81,Place & Communities 2,Transport Related Expenses,T35002/C011,Stock Account,Parts
Ashfield District Council,37UB,Ford Motor Company T/A Parts Plus,V1018662,23/02/2023,547.00,Place & Communities 2,Transport Related Expenses,T35002/C011,Stock Account,Parts
Ashfield District Council,37UB,Ford Motor Company T/A Parts Plus,V1018693,23/02/2023,32.62,Place & Communities 2,Transport Related Expenses,T35002/C011,Stock Account,Parts
Ashfield District Council,37UB,Ford Motor Company T/A Parts Plus,V1018694,23/02/2023,33.76,Place & Communities 2,Transport Related Expenses,T35002/C011,Stock Account,Parts
Ashfield District Council,37UB,Ford Motor Company T/A Parts Plus,V1018695,23/02/2023,52.25,Place & Communities 2,Transport Related Expenses,T35002/C011,Stock Account,Parts
Ashfield District Council,37UB,Ford Motor Company T/A Parts Plus,V1020078,23/02/2023,421.75,Place & Communities 2,Transport Related Expenses,T35002/C011,Stock Account,Parts
Ashfield District Council,37UB,Ford Motor Company T/A Parts Plus,V1020079,23/02/2023,-25.00,Place & Communities 2,Transport Related Expenses,T35002/C011,Stock Account,Parts
Ashfield District Council,37UB,Ford Motor Company T/A Parts Plus,V1020080,23/02/2023,9.56,Place & Communities 2,Transport Related Expenses,T35002/C011,Stock Account,Parts
Ashfield District Council,37UB,Ford Motor Company T/A Parts Plus,V1020080,23/02/2023,5.68,Place & Communities 2,Transport Related Expenses,T35002/C011,Stock Account,Parts
Ashfield District Council,37UB,Ford Motor Company T/A Parts Plus,V1020080,23/02/2023,6.83,Place & Communities 2,Transport Related Expenses,T35002/C011,Stock Account,Parts
Ashfield District Council,37UB,Ford Motor Company T/A Parts Plus,V1020080,23/02/2023,9.56,Place & Communities 2,Transport Related Expenses,T35002/C011,Stock Account,Parts
Ashfield District Council,37UB,Ford Motor Company T/A Parts Plus,V1020081,23/02/2023,9.56,Place & Communities 2,Transport Related Expenses,T35002/C011,Stock Account,Parts
Ashfield District Council,37UB,Hucknall Bypass Filling Station Ltd,V1019317,16/02/2023,26.02,Place & Communities 2,Supplies & Services,T35001/D001004,Stock Account,Chemicals and Materials Purchase
Ashfield District Council,37UB,Humberside Tail Lifts,V1018568,16/02/2023,58.66,Place & Communities 2,Transport Related Expenses,T35002/C011,Stock Account,Parts
Ashfield District Council,37UB,Humberside Tail Lifts,V1018568,16/02/2023,16.50,Place & Communities 2,Transport Related Expenses,T35002/C011,Stock Account,Parts
Ashfield District Council,37UB,Lodge Tyre Co Ltd,V1017438,02/02/2023,143.00,Place & Communities 2,Transport Related Expenses,T35003/C070,Stock Account,Tyres
Ashfield District Council,37UB,Lodge Tyre Co Ltd,V1017438,02/02/2023,114.00,Place & Communities 2,Transport Related Expenses,T35003/C070,Stock Account,Tyres
Ashfield District Council,37UB,Lodge Tyre Co Ltd,V1017438,02/02/2023,114.00,Place & Communities 2,Transport Related Expenses,T35003/C070,Stock Account,Tyres
Ashfield District Council,37UB,Lodge Tyre Co Ltd,V1017438,02/02/2023,30.00,Place & Communities 2,Transport Related Expenses,T35003/C070,Stock Account,Tyres
Ashfield District Council,37UB,Lodge Tyre Co Ltd,V1017438,02/02/2023,50.00,Place & Communities 2,Transport Related Expenses,T35003/C070,Stock Account,Tyres
Ashfield District Council,37UB,Lodge Tyre Co Ltd,V1017438,02/02/2023,25.00,Place & Communities 2,Transport Related Expenses,T35003/C070,Stock Account,Tyres
Ashfield District Council,37UB,Lodge Tyre Co Ltd,V1017438,02/02/2023,506.00,Place & Communities 2,Transport Related Expenses,T35003/C070,Stock Account,Tyres
Ashfield District Council,37UB,Lodge Tyre Co Ltd,V1017438,02/02/2023,25.00,Place & Communities 2,Transport Related Expenses,T35003/C070,Stock Account,Tyres
Ashfield District Council,37UB,Lodge Tyre Co Ltd,V1017438,02/02/2023,25.00,Place & Communities 2,Transport Related Expenses,T35003/C070,Stock Account,Tyres
Ashfield District Council,37UB,Lodge Tyre Co Ltd,V1017438,02/02/2023,15.00,Place & Communities 2,Transport Related Expenses,T35003/C070,Stock Account,Tyres
Ashfield District Council,37UB,Lodge Tyre Co Ltd,V1017438,02/02/2023,506.00,Place & Communities 2,Transport Related Expenses,T35003/C070,Stock Account,Tyres
Ashfield District Council,37UB,Lodge Tyre Co Ltd,V1017438,02/02/2023,15.00,Place & Communities 2,Transport Related Expenses,T35003/C070,Stock Account,Tyres
Ashfield District Council,37UB,Lodge Tyre Co Ltd,V1017438,02/02/2023,45.00,Place & Communities 2,Transport Related Expenses,T35003/C070,Stock Account,Tyres
Ashfield District Council,37UB,Lodge Tyre Co Ltd,V1017438,02/02/2023,105.00,Place & Communities 2,Transport Related Expenses,T35003/C070,Stock Account,Tyres
Ashfield District Council,37UB,Lodge Tyre Co Ltd,V1017438,02/02/2023,66.00,Place & Communities 2,Transport Related Expenses,T35003/C070,Stock Account,Tyres
Ashfield District Council,37UB,Lodge Tyre Co Ltd,V1017553,09/02/2023,55.00,Place & Communities 2,Transport Related Expenses,T35003/C070,Stock Account,Tyres
Ashfield District Council,37UB,Lodge Tyre Co Ltd,V1017553,09/02/2023,30.00,Place & Communities 2,Transport Related Expenses,T35003/C070,Stock Account,Tyres
Ashfield District Council,37UB,Lodge Tyre Co Ltd,V1017553,09/02/2023,66.00,Place & Communities 2,Transport Related Expenses,T35003/C070,Stock Account,Tyres
Ashfield District Council,37UB,Lodge Tyre Co Ltd,V1017553,09/02/2023,30.00,Place & Communities 2,Transport Related Expenses,T35003/C070,Stock Account,Tyres
Ashfield District Council,37UB,Lodge Tyre Co Ltd,V1017553,09/02/2023,45.00,Place & Communities 2,Transport Related Expenses,T35003/C070,Stock Account,Tyres
Ashfield District Council,37UB,Maurice Hill Transport Ltd,V1017390,02/02/2023,137.00,Place & Communities 2,Transport Related Expenses,T35002/C011,Stock Account,Parts
Ashfield District Council,37UB,Maurice Hill Transport Ltd,V1017390,02/02/2023,40.00,Place & Communities 2,Transport Related Expenses,T35002/C011,Stock Account,Parts
Ashfield District Council,37UB,Maurice Hill Transport Ltd,V1018719,23/02/2023,65.00,Place & Communities 2,Transport Related Expenses,T35002/C011,Stock Account,Parts
Ashfield District Council,37UB,Maurice Hill Transport Ltd,V1018719,23/02/2023,88.00,Place & Communities 2,Transport Related Expenses,T35002/C011,Stock Account,Parts
Ashfield District Council,37UB,Maurice Hill Transport Ltd,V1018719,23/02/2023,91.00,Place & Communities 2,Transport Related Expenses,T35002/C011,Stock Account,Parts
Ashfield District Council,37UB,Maurice Hill Transport Ltd,V1018719,23/02/2023,137.00,Place & Communities 2,Transport Related Expenses,T35002/C011,Stock Account,Parts
Ashfield District Council,37UB,Maurice Hill Transport Ltd,V1018719,23/02/2023,25.00,Place & Communities 2,Transport Related Expenses,T35002/C011,Stock Account,Parts
Ashfield District Council,37UB,Maurice Hill Transport Ltd,V1018719,23/02/2023,30.00,Place & Communities 2,Transport Related Expenses,T35002/C011,Stock Account,Parts
Ashfield District Council,37UB,MOTUS Commercials,V1018274,16/02/2023,73.31,Place & Communities 2,Transport Related Expenses,T35002/C011,Stock Account,Parts
Ashfield District Council,37UB,MOTUS Commercials,V1018274,16/02/2023,424.57,Place & Communities 2,Transport Related Expenses,T35002/C011,Stock Account,Parts
Ashfield District Council,37UB,MOTUS Commercials,V1018274,16/02/2023,25.59,Place & Communities 2,Transport Related Expenses,T35002/C011,Stock Account,Parts
Ashfield District Council,37UB,MOTUS Commercials,V1018294,16/02/2023,8.36,Place & Communities 2,Transport Related Expenses,T35002/C011,Stock Account,Parts
Ashfield District Council,37UB,MOTUS Commercials,V1018294,16/02/2023,135.00,Place & Communities 2,Transport Related Expenses,T35002/C011,Stock Account,Parts
Ashfield District Council,37UB,MOTUS Commercials,V1018294,16/02/2023,185.00,Place & Communities 2,Transport Related Expenses,T35002/C011,Stock Account,Parts
Ashfield District Council,37UB,MOTUS Commercials,V1018294,16/02/2023,95.00,Place & Communities 2,Transport Related Expenses,T35002/C011,Stock Account,Parts
Ashfield District Council,37UB,MOTUS Commercials,V1018294,16/02/2023,154.95,Place & Communities 2,Transport Related Expenses,T35002/C011,Stock Account,Parts
Ashfield District Council,37UB,MOTUS Commercials,V1018294,16/02/2023,4.40,Place & Communities 2,Transport Related Expenses,T35002/C011,Stock Account,Parts
Ashfield District Council,37UB,MOTUS Commercials,V1018593,16/02/2023,19.10,Place & Communities 2,Transport Related Expenses,T35002/C011,Stock Account,Parts
Ashfield District Council,37UB,MOTUS Commercials,V1018593,16/02/2023,135.39,Place & Communities 2,Transport Related Expenses,T35002/C011,Stock Account,Parts
Ashfield District Council,37UB,MOTUS Commercials,V1018594,16/02/2023,161.85,Place & Communities 2,Transport Related Expenses,T35002/C011,Stock Account,Parts
Ashfield District Council,37UB,MOTUS Commercials,V1018594,16/02/2023,62.22,Place & Communities 2,Transport Related Expenses,T35002/C011,Stock Account,Parts
Ashfield District Council,37UB,MOTUS Commercials,V1018594,16/02/2023,48.18,Place & Communities 2,Transport Related Expenses,T35002/C011,Stock Account,Parts
Ashfield District Council,37UB,MOTUS Commercials,V1018594,16/02/2023,213.90,Place & Communities 2,Transport Related Expenses,T35002/C011,Stock Account,Parts
Ashfield District Council,37UB,MOTUS Commercials,V1018594,16/02/2023,71.22,Place & Communities 2,Transport Related Expenses,T35002/C011,Stock Account,Parts
Ashfield District Council,37UB,P S Marsden (Lawnmower Services) Ltd,V1017515,02/02/2023,12.75,Place & Communities 2,Transport Related Expenses,T35002/C011,Stock Account,Parts
Ashfield District Council,37UB,P S Marsden (Lawnmower Services) Ltd,V1017515,02/02/2023,52.87,Place & Communities 2,Transport Related Expenses,T35002/C011,Stock Account,Parts
Ashfield District Council,37UB,P S Marsden (Lawnmower Services) Ltd,V1017515,02/02/2023,8.75,Place & Communities 2,Transport Related Expenses,T35002/C011,Stock Account,Parts
Ashfield District Council,37UB,P S Marsden (Lawnmower Services) Ltd,V1017515,02/02/2023,23.63,Place & Communities 2,Transport Related Expenses,T35002/C011,Stock Account,Parts
Ashfield District Council,37UB,P S Marsden (Lawnmower Services) Ltd,V1017515,02/02/2023,70.48,Place & Communities 2,Transport Related Expenses,T35002/C011,Stock Account,Parts
Ashfield District Council,37UB,P S Marsden (Lawnmower Services) Ltd,V1017904,09/02/2023,83.46,Place & Communities 2,Transport Related Expenses,T35002/C011,Stock Account,Parts
Ashfield District Council,37UB,P S Marsden (Lawnmower Services) Ltd,V1017904,09/02/2023,3.31,Place & Communities 2,Transport Related Expenses,T35002/C011,Stock Account,Parts
Ashfield District Council,37UB,P S Marsden (Lawnmower Services) Ltd,V1017904,09/02/2023,1.12,Place & Communities 2,Transport Related Expenses,T35002/C011,Stock Account,Parts
Ashfield District Council,37UB,P S Marsden (Lawnmower Services) Ltd,V1017905,09/02/2023,197.94,Place & Communities 2,Transport Related Expenses,T35002/C011,Stock Account,Parts
Ashfield District Council,37UB,P S Marsden (Lawnmower Services) Ltd,V1017909,09/02/2023,90.00,Place & Communities 2,Transport Related Expenses,T35002/C011,Stock Account,Parts
Ashfield District Council,37UB,P S Marsden (Lawnmower Services) Ltd,V1017910,09/02/2023,13.85,Place & Communities 2,Transport Related Expenses,T35002/C011,Stock Account,Parts
Ashfield District Council,37UB,P S Marsden (Lawnmower Services) Ltd,V1018243,09/02/2023,9.00,Place & Communities 2,Transport Related Expenses,T35002/C011,Stock Account,Parts
Ashfield District Council,37UB,P S Marsden (Lawnmower Services) Ltd,V1018243,09/02/2023,10.28,Place & Communities 2,Transport Related Expenses,T35002/C011,Stock Account,Parts
Ashfield District Council,37UB,P S Marsden (Lawnmower Services) Ltd,V1018272,09/02/2023,213.80,Place & Communities 2,Transport Related Expenses,T35002/C011,Stock Account,Parts
Ashfield District Council,37UB,P S Marsden (Lawnmower Services) Ltd,V1018272,09/02/2023,12.00,Place & Communities 2,Transport Related Expenses,T35002/C011,Stock Account,Parts
Ashfield District Council,37UB,P S Marsden (Lawnmower Services) Ltd,V1018272,09/02/2023,111.72,Place & Communities 2,Transport Related Expenses,T35002/C011,Stock Account,Parts
Ashfield District Council,37UB,P S Marsden (Lawnmower Services) Ltd,V1018272,09/02/2023,50.26,Place & Communities 2,Transport Related Expenses,T35002/C011,Stock Account,Parts
Ashfield District Council,37UB,P S Marsden (Lawnmower Services) Ltd,V1018271,16/02/2023,12.00,Place & Communities 2,Transport Related Expenses,T35002/C011,Stock Account,Parts
Ashfield District Council,37UB,P S Marsden (Lawnmower Services) Ltd,V1018271,16/02/2023,132.13,Place & Communities 2,Transport Related Expenses,T35002/C011,Stock Account,Parts
Ashfield District Council,37UB,P S Marsden (Lawnmower Services) Ltd,V1018598,16/02/2023,403.34,Place & Communities 2,Transport Related Expenses,T35002/C011,Stock Account,Parts
Ashfield District Council,37UB,P S Marsden (Lawnmower Services) Ltd,V1019385,23/02/2023,15.54,Place & Communities 2,Transport Related Expenses,T35002/C011,Stock Account,Parts
Ashfield District Council,37UB,P S Marsden (Lawnmower Services) Ltd,V1019464,23/02/2023,34.89,Place & Communities 2,Transport Related Expenses,T35002/C011,Stock Account,Parts
Ashfield District Council,37UB,P S Marsden (Lawnmower Services) Ltd,V1019464,23/02/2023,14.50,Place & Communities 2,Transport Related Expenses,T35002/C011,Stock Account,Parts
Ashfield District Council,37UB,P S Marsden (Lawnmower Services) Ltd,V1019526,23/02/2023,175.98,Place & Communities 2,Transport Related Expenses,T35002/C011,Stock Account,Parts
Ashfield District Council,37UB,P S Marsden (Lawnmower Services) Ltd,V1019526,23/02/2023,351.94,Place & Communities 2,Transport Related Expenses,T35002/C011,Stock Account,Parts
Ashfield District Council,37UB,PB Auto Electrics Ltd,V1017414,02/02/2023,510.00,Place & Communities 2,Transport Related Expenses,T35002/C011,Stock Account,Parts
Ashfield District Council,37UB,PB Auto Electrics Ltd,V1018158,09/02/2023,121.00,Place & Communities 2,Transport Related Expenses,T35002/C011,Stock Account,Parts
Ashfield District Council,37UB,PB Auto Electrics Ltd,V1018159,09/02/2023,121.00,Place & Communities 2,Transport Related Expenses,T35002/C011,Stock Account,Parts
Ashfield District Council,37UB,PB Auto Electrics Ltd,V1018160,09/02/2023,121.00,Place & Communities 2,Transport Related Expenses,T35002/C011,Stock Account,Parts
Ashfield District Council,37UB,PB Auto Electrics Ltd,V1018711,16/02/2023,37.31,Place & Communities 2,Transport Related Expenses,T35002/C011,Stock Account,Parts
Ashfield District Council,37UB,PB Auto Electrics Ltd,V1019413,23/02/2023,362.50,Place & Communities 2,Transport Related Expenses,T35002/C011,Stock Account,Parts
Ashfield District Council,37UB,PB Auto Electrics Ltd,V1019418,23/02/2023,362.50,Place & Communities 2,Transport Related Expenses,T35002/C011,Stock Account,Parts
Ashfield District Council,37UB,PB Auto Electrics Ltd,V1019419,23/02/2023,362.50,Place & Communities 2,Transport Related Expenses,T35002/C011,Stock Account,Parts
Ashfield District Council,37UB,PB Auto Electrics Ltd,V1019420,23/02/2023,362.50,Place & Communities 2,Transport Related Expenses,T35002/C011,Stock Account,Parts
Ashfield District Council,37UB,PB Auto Electrics Ltd,V1019421,23/02/2023,362.50,Place & Communities 2,Transport Related Expenses,T35002/C011,Stock Account,Parts
Ashfield District Council,37UB,PB Auto Electrics Ltd,V1019530,23/02/2023,60.00,Place & Communities 2,Transport Related Expenses,T35002/C011,Stock Account,Parts
Ashfield District Council,37UB,PB Auto Electrics Ltd,V1019530,23/02/2023,60.00,Place & Communities 2,Transport Related Expenses,T35002/C011,Stock Account,Parts
Ashfield District Council,37UB,PB Auto Electrics Ltd,V1019530,23/02/2023,60.00,Place & Communities 2,Transport Related Expenses,T35002/C011,Stock Account,Parts
Ashfield District Council,37UB,Pirtek Mansfield,V1017591,02/02/2023,273.52,Place & Communities 2,Transport Related Expenses,T35002/C011,Stock Account,Parts
Ashfield District Council,37UB,Seton (a division of Brady Corporation Ltd),V1018184,09/02/2023,6.95,Place & Communities 2,Transport Related Expenses,T35002/C011,Stock Account,Parts
Ashfield District Council,37UB,Seton (a division of Brady Corporation Ltd),V1018184,09/02/2023,69.50,Place & Communities 2,Transport Related Expenses,T35002/C011,Stock Account,Parts
Ashfield District Council,37UB,Sherwood Truck & Van Ltd,V1018163,09/02/2023,61.42,Place & Communities 2,Transport Related Expenses,T35002/C011,Stock Account,Parts
Ashfield District Council,37UB,Spaldings UK Ltd,V1018769,16/02/2023,99.40,Place & Communities 2,Transport Related Expenses,T35002/C011,Stock Account,Parts
Ashfield District Council,37UB,Spaldings UK Ltd,V1018769,16/02/2023,97.30,Place & Communities 2,Transport Related Expenses,T35002/C011,Stock Account,Parts
Ashfield District Council,37UB,Spaldings UK Ltd,V1016983,23/02/2023,72.00,Place & Communities 2,Transport Related Expenses,T35002/C011,Stock Account,Parts
Ashfield District Council,37UB,Spaldings UK Ltd,V1016983,23/02/2023,47.40,Place & Communities 2,Transport Related Expenses,T35002/C011,Stock Account,Parts
Ashfield District Council,37UB,Spaldings UK Ltd,V1016983,23/02/2023,44.00,Place & Communities 2,Transport Related Expenses,T35002/C011,Stock Account,Parts
Ashfield District Council,37UB,Spaldings UK Ltd,V1016983,23/02/2023,85.50,Place & Communities 2,Transport Related Expenses,T35002/C011,Stock Account,Parts
Ashfield District Council,37UB,Spaldings UK Ltd,V1019444,23/02/2023,44.00,Place & Communities 2,Transport Related Expenses,T35002/C011,Stock Account,Parts
Ashfield District Council,37UB,Spaldings UK Ltd,V1019444,23/02/2023,15.50,Place & Communities 2,Transport Related Expenses,T35002/C011,Stock Account,Parts
Ashfield District Council,37UB,Storm Environmental Ltd,V1018723,16/02/2023,8970.00,Place & Communities 2,Supplies & Services,T35006/D001004,Stock Account,Chemicals and Materials Purchase
Ashfield District Council,37UB,T C Harrison JCB,V1017470,02/02/2023,97.53,Place & Communities 2,Transport Related Expenses,T35002/C011,Stock Account,Parts
Ashfield District Council,37UB,T C Harrison JCB,V1017471,02/02/2023,30.96,Place & Communities 2,Transport Related Expenses,T35002/C011,Stock Account,Parts
Ashfield District Council,37UB,T C Harrison JCB,V1017471,02/02/2023,118.57,Place & Communities 2,Transport Related Expenses,T35002/C011,Stock Account,Parts
Ashfield District Council,37UB,Terberg Matec UK,V1017469,02/02/2023,42.23,Place & Communities 2,Transport Related Expenses,T35002/C011,Stock Account,Parts
Ashfield District Council,37UB,Terberg Matec UK,V1017469,02/02/2023,550.85,Place & Communities 2,Transport Related Expenses,T35002/C011,Stock Account,Parts
Ashfield District Council,37UB,Terberg Matec UK,V1017565,02/02/2023,60.00,Place & Communities 2,Transport Related Expenses,T35002/C011,Stock Account,Parts
Ashfield District Council,37UB,Terberg Matec UK,V1017574,02/02/2023,60.00,Place & Communities 2,Transport Related Expenses,T35002/C011,Stock Account,Parts
Ashfield District Council,37UB,Terberg Matec UK,V1020085,23/02/2023,65.00,Place & Communities 2,Transport Related Expenses,T35002/C011,Stock Account,Parts
Ashfield District Council,37UB,The Lock Shop (SIA) Ltd,V1018582,16/02/2023,210.00,Place & Communities 2,Transport Related Expenses,T35002/C011,Stock Account,Parts
Ashfield District Council,37UB,Vehicle Weighing Solutions Ltd,V1017637,02/02/2023,612.45,Place & Communities 2,Transport Related Expenses,T35002/C011,Stock Account,Parts
Ashfield District Council,37UB,,JV292266,08/02/2023,870592.00,R & B Transformation 2,Supplies & Services,T07018/D600002,Sundry Debtors Total Account,Reimbursements
Ashfield District Council,37UB,,JV292266,08/02/2023,289598.00,R & B Transformation 2,Supplies & Services,T07020/D600002,Sundry Debtors Total Account,Reimbursements
Ashfield District Council,37UB,,JV292266,08/02/2023,5629403.80,R & B Transformation 2,Supplies & Services,T07015/D600002,Sundry Debtors Total Account,Reimbursements
Ashfield District Council,37UB,"Department for Levelling Up, Housing & Communities",V1017562,21/02/2023,3745527.00,R & B Transformation 2,Supplies & Services,T07074/D400,Sundry Debtors Total Account,Internal Expenses
Ashfield District Council,37UB,WJB Welding & Fabrication Ltd,V1008053,09/02/2023,-418.00,R & B Transformation 2,Income,T07019002/J106,Sundry Debtors Total Account,Deductions
Ashfield District Council,37UB,Orbis Property Protection Ltd,V1017418,16/02/2023,58.60,Housing & Assets 2,Supplies & Services,T36006008/D200008,Work in Progress,Payments to Contractors External
Ashfield District Council,37UB,Orbis Property Protection Ltd,V1018717,16/02/2023,900.00,Housing & Assets 2,Supplies & Services,T36006006/D200008,Work in Progress,Payments to Contractors External
Ashfield District Council,37UB,Eastern Shires Purchasing Organisation,V1019400,23/02/2023,35.66,Housing & Assets 2,Supplies & Services,g58000/d103,Assets & Investments (HRA),Printing & stationery
Ashfield District Council,37UB,Hays,V1017932,09/02/2023,2000.00,Housing & Assets 2,Employee Expenses,G58000/A200004,Assets & Investments (HRA),Agency Staff
Ashfield District Council,37UB,Hays,V1018167,09/02/2023,1992.00,Housing & Assets 2,Employee Expenses,G58000/A200004,Assets & Investments (HRA),Agency Staff
Ashfield District Council,37UB,Hays,V1008682,16/02/2023,2000.00,Housing & Assets 2,Employee Expenses,G58000/A200004,Assets & Investments (HRA),Agency Staff
Ashfield District Council,37UB,James Andrews Recruitment Solutions Ltd,V1016995,02/02/2023,496.00,Housing & Assets 2,Employee Expenses,G58000/A200004,Assets & Investments (HRA),Agency Staff
Ashfield District Council,37UB,James Andrews Recruitment Solutions Ltd,V1018270,09/02/2023,744.00,Housing & Assets 2,Employee Expenses,G58000/A200004,Assets & Investments (HRA),Agency Staff
Ashfield District Council,37UB,James Andrews Recruitment Solutions Ltd,V1018270,09/02/2023,7.65,Housing & Assets 2,Employee Expenses,G58000/A200004,Assets & Investments (HRA),Agency Staff
Ashfield District Council,37UB,James Andrews Recruitment Solutions Ltd,V1019314,23/02/2023,744.00,Housing & Assets 2,Employee Expenses,G58000/A200004,Assets & Investments (HRA),Agency Staff
Ashfield District Council,37UB,Niyaa People,V1017015,02/02/2023,22.50,Housing & Assets 2,Employee Expenses,G58000/A200004,Assets & Investments (HRA),Agency Staff
Ashfield District Council,37UB,Niyaa People,V1017016,02/02/2023,4.50,Housing & Assets 2,Employee Expenses,G58000/A200004,Assets & Investments (HRA),Agency Staff
Ashfield District Council,37UB,Niyaa People,V1017457,02/02/2023,1312.50,Housing & Assets 2,Employee Expenses,G58000/A200004,Assets & Investments (HRA),Agency Staff
Ashfield District Council,37UB,Niyaa People,V1017458,02/02/2023,18.45,Housing & Assets 2,Employee Expenses,G58000/A200004,Assets & Investments (HRA),Agency Staff
Ashfield District Council,37UB,Niyaa People,V1018194,09/02/2023,1312.50,Housing & Assets 2,Employee Expenses,G58000/A200004,Assets & Investments (HRA),Agency Staff
Ashfield District Council,37UB,Niyaa People,V1018195,09/02/2023,19.80,Housing & Assets 2,Employee Expenses,G58000/A200004,Assets & Investments (HRA),Agency Staff
Ashfield District Council,37UB,Niyaa People,V1019404,23/02/2023,455.00,Housing & Assets 2,Employee Expenses,G58000/A200004,Assets & Investments (HRA),Agency Staff
Ashfield District Council,37UB,Niyaa People,V1019486,23/02/2023,988.75,Housing & Assets 2,Employee Expenses,G58000/A200004,Assets & Investments (HRA),Agency Staff
Ashfield District Council,37UB,TB Davies (Cardiff) Ltd,V1019371,23/02/2023,198.33,Housing & Assets 2,Supplies & Services,G58000/D001001,Assets & Investments (HRA),Equipment Purchase
Ashfield District Council,37UB,James Andrews Recruitment Solutions Ltd,V1017571,09/02/2023,744.00,Place & Communities 2,Employee Expenses,G58000/A200004,Assets & Investments (HRA),Agency Staff
Ashfield District Council,37UB,James Andrews Recruitment Solutions Ltd,V1017571,09/02/2023,9.00,Place & Communities 2,Employee Expenses,G58000/A200004,Assets & Investments (HRA),Agency Staff
Ashfield District Council,37UB,Excel Cleaning Solutions Ltd,V1018551,16/02/2023,21.00,Housing & Assets 2,Premises Expenses,G51029/B003005,Housing OP and SN,Window Cleaning
Ashfield District Council,37UB,Excel Cleaning Solutions Ltd,V1018551,16/02/2023,47.25,Housing & Assets 2,Premises Expenses,G51049/B003005,Housing OP and SN,Window Cleaning
Ashfield District Council,37UB,Excel Cleaning Solutions Ltd,V1018551,16/02/2023,15.75,Housing & Assets 2,Premises Expenses,G51065/B003005,Housing OP and SN,Window Cleaning
Ashfield District Council,37UB,Excel Cleaning Solutions Ltd,V1018551,16/02/2023,63.00,Housing & Assets 2,Premises Expenses,G51039/B003005,Housing OP and SN,Window Cleaning
Ashfield District Council,37UB,Excel Cleaning Solutions Ltd,V1018551,16/02/2023,15.75,Housing & Assets 2,Premises Expenses,G51041/B003005,Housing OP and SN,Window Cleaning
Ashfield District Council,37UB,Excel Cleaning Solutions Ltd,V1018551,16/02/2023,21.00,Housing & Assets 2,Premises Expenses,G51029/B003005,Housing OP and SN,Window Cleaning
Ashfield District Council,37UB,Excel Cleaning Solutions Ltd,V1018551,16/02/2023,42.00,Housing & Assets 2,Premises Expenses,G51029/B003005,Housing OP and SN,Window Cleaning
Ashfield District Council,37UB,Excel Cleaning Solutions Ltd,V1018551,16/02/2023,63.00,Housing & Assets 2,Premises Expenses,G51046/B003005,Housing OP and SN,Window Cleaning
Ashfield District Council,37UB,Excel Cleaning Solutions Ltd,V1018551,16/02/2023,21.00,Housing & Assets 2,Premises Expenses,G51029/B003005,Housing OP and SN,Window Cleaning
Ashfield District Council,37UB,Excel Cleaning Solutions Ltd,V1018551,16/02/2023,42.00,Housing & Assets 2,Premises Expenses,G51042/B003005,Housing OP and SN,Window Cleaning
Ashfield District Council,37UB,Excel Cleaning Solutions Ltd,V1018552,16/02/2023,56.70,Housing & Assets 2,Premises Expenses,G51008/B003005,Housing OP and SN,Window Cleaning
Ashfield District Council,37UB,Excel Cleaning Solutions Ltd,V1018552,16/02/2023,15.75,Housing & Assets 2,Premises Expenses,G51047/B003005,Housing OP and SN,Window Cleaning
Ashfield District Council,37UB,Excel Cleaning Solutions Ltd,V1018552,16/02/2023,18.90,Housing & Assets 2,Premises Expenses,G51038/B003005,Housing OP and SN,Window Cleaning
Ashfield District Council,37UB,Excel Cleaning Solutions Ltd,V1018552,16/02/2023,31.50,Housing & Assets 2,Premises Expenses,G51024/B003005,Housing OP and SN,Window Cleaning
Ashfield District Council,37UB,Excel Cleaning Solutions Ltd,V1018552,16/02/2023,26.25,Housing & Assets 2,Premises Expenses,G51060/B003005,Housing OP and SN,Window Cleaning
Ashfield District Council,37UB,Excel Cleaning Solutions Ltd,V1018552,16/02/2023,42.00,Housing & Assets 2,Premises Expenses,G51021/B003005,Housing OP and SN,Window Cleaning
Ashfield District Council,37UB,Excel Cleaning Solutions Ltd,V1018552,16/02/2023,63.00,Housing & Assets 2,Premises Expenses,G51026/B003005,Housing OP and SN,Window Cleaning
Ashfield District Council,37UB,Excel Cleaning Solutions Ltd,V1018552,16/02/2023,21.00,Housing & Assets 2,Premises Expenses,G51007/B003005,Housing OP and SN,Window Cleaning
Ashfield District Council,37UB,Excel Cleaning Solutions Ltd,V1018552,16/02/2023,99.75,Housing & Assets 2,Premises Expenses,G51022/B003005,Housing OP and SN,Window Cleaning
Ashfield District Council,37UB,Excel Cleaning Solutions Ltd,V1018552,16/02/2023,16.80,Housing & Assets 2,Premises Expenses,G51040/B003005,Housing OP and SN,Window Cleaning
Ashfield District Council,37UB,Excel Cleaning Solutions Ltd,V1018553,16/02/2023,7.88,Housing & Assets 2,Premises Expenses,G51017/B003005,Housing OP and SN,Window Cleaning
Ashfield District Council,37UB,Excel Cleaning Solutions Ltd,V1018554,16/02/2023,23.10,Housing & Assets 2,Premises Expenses,G51028/B003005,Housing OP and SN,Window Cleaning
Ashfield District Council,37UB,First Testing Limited,V1018765,16/02/2023,532.40,Housing & Assets 2,Premises Expenses,G51001/B003001,Housing OP and SN,Internal Decoration
Ashfield District Council,37UB,First Testing Limited,V1018767,16/02/2023,296.45,Housing & Assets 2,Premises Expenses,G51001/B003001,Housing OP and SN,Internal Decoration
Ashfield District Council,37UB,First Testing Limited,V1018768,16/02/2023,257.40,Housing & Assets 2,Premises Expenses,G51001/B003001,Housing OP and SN,Internal Decoration
Ashfield District Council,37UB,Hoot Fire & Security Ltd,V1017447,02/02/2023,56.00,Housing & Assets 2,Premises Expenses,G51009/B003011,Housing OP and SN,Fire Alarms
Ashfield District Council,37UB,Hoot Fire & Security Ltd,V1017453,02/02/2023,77.00,Housing & Assets 2,Premises Expenses,G51013/B003011,Housing OP and SN,Fire Alarms
Ashfield District Council,37UB,Hoot Fire & Security Ltd,V1018181,09/02/2023,55.00,Housing & Assets 2,Premises Expenses,G51026/B003011,Housing OP and SN,Fire Alarms
Ashfield District Council,37UB,Hoot Fire & Security Ltd,V1018182,09/02/2023,100.00,Housing & Assets 2,Premises Expenses,G51007/B003011,Housing OP and SN,Fire Alarms
Ashfield District Council,37UB,Hoot Fire & Security Ltd,V1018560,16/02/2023,55.00,Housing & Assets 2,Premises Expenses,G51027/B003011,Housing OP and SN,Fire Alarms
Ashfield District Council,37UB,Hoot Fire & Security Ltd,V1018561,16/02/2023,40.00,Housing & Assets 2,Premises Expenses,G51020/B003011,Housing OP and SN,Fire Alarms
Ashfield District Council,37UB,Hoot Fire & Security Ltd,V1018562,16/02/2023,55.00,Housing & Assets 2,Premises Expenses,G51030/B003011,Housing OP and SN,Fire Alarms
Ashfield District Council,37UB,Hoot Fire & Security Ltd,V1018563,16/02/2023,80.00,Housing & Assets 2,Premises Expenses,G51015/B003011,Housing OP and SN,Fire Alarms
Ashfield District Council,37UB,Hoot Fire & Security Ltd,V1018564,16/02/2023,55.00,Housing & Assets 2,Premises Expenses,G51021/B003011,Housing OP and SN,Fire Alarms
Ashfield District Council,37UB,Hoot Fire & Security Ltd,V1019406,23/02/2023,442.00,Housing & Assets 2,Premises Expenses,G51013/B003011,Housing OP and SN,Fire Alarms
Ashfield District Council,37UB,Hoot Fire & Security Ltd,V1019407,23/02/2023,259.00,Housing & Assets 2,Premises Expenses,G51007/B003011,Housing OP and SN,Fire Alarms
Ashfield District Council,37UB,Hoot Fire & Security Ltd,V1019448,23/02/2023,390.00,Housing & Assets 2,Premises Expenses,G51013/B003011,Housing OP and SN,Fire Alarms
Ashfield District Council,37UB,Hoot Fire & Security Ltd,V1019449,23/02/2023,55.00,Housing & Assets 2,Premises Expenses,G51013/B003011,Housing OP and SN,Fire Alarms
Ashfield District Council,37UB,Hoot Fire & Security Ltd,V1019468,23/02/2023,77.00,Housing & Assets 2,Premises Expenses,G51013/B003011,Housing OP and SN,Fire Alarms
Ashfield District Council,37UB,Morris Vermaport Ltd,V1017392,02/02/2023,67.50,Housing & Assets 2,Premises Expenses,G51013/B003006,Housing OP and SN,Lift
Ashfield District Council,37UB,Morris Vermaport Ltd,V1017393,02/02/2023,225.00,Housing & Assets 2,Premises Expenses,G51007/B003006,Housing OP and SN,Lift
Ashfield District Council,37UB,Morris Vermaport Ltd,V1017394,02/02/2023,45.00,Housing & Assets 2,Premises Expenses,G51027/B003006,Housing OP and SN,Lift
Ashfield District Council,37UB,Morris Vermaport Ltd,V1017475,02/02/2023,135.00,Housing & Assets 2,Premises Expenses,G51013/B003006,Housing OP and SN,Lift
Ashfield District Council,37UB,Morris Vermaport Ltd,V1017480,02/02/2023,245.15,Housing & Assets 2,Premises Expenses,G51028/B003006,Housing OP and SN,Lift
Ashfield District Council,37UB,Morris Vermaport Ltd,V1018241,09/02/2023,45.00,Housing & Assets 2,Premises Expenses,G51007/B003006,Housing OP and SN,Lift
Ashfield District Council,37UB,Morris Vermaport Ltd,V1018638,16/02/2023,725.00,Housing & Assets 2,Premises Expenses,G51007/B003006,Housing OP and SN,Lift
Ashfield District Council,37UB,Morris Vermaport Ltd,V1018681,16/02/2023,540.00,Housing & Assets 2,Premises Expenses,G51027/B003006,Housing OP and SN,Lift
Ashfield District Council,37UB,Morris Vermaport Ltd,V1018697,16/02/2023,292.00,Housing & Assets 2,Premises Expenses,G51027/B003006,Housing OP and SN,Lift
Ashfield District Council,37UB,Morris Vermaport Ltd,V1019408,23/02/2023,245.00,Housing & Assets 2,Premises Expenses,G51013/B003006,Housing OP and SN,Lift
Ashfield District Council,37UB,Morris Vermaport Ltd,V1019422,23/02/2023,56.25,Housing & Assets 2,Premises Expenses,G51013/B003006,Housing OP and SN,Lift
Ashfield District Council,37UB,Morris Vermaport Ltd,V1019423,23/02/2023,146.25,Housing & Assets 2,Premises Expenses,g51013/B003006,Housing OP and SN,Lift
Ashfield District Council,37UB,Nottingham City Homes,V1018306,09/02/2023,589.03,Housing & Assets 2,Premises Expenses,G51001/B003011,Housing OP and SN,Fire Alarms
Ashfield District Council,37UB,Nottingham City Homes,V1018309,23/02/2023,565.11,Housing & Assets 2,Premises Expenses,G51001/B003011,Housing OP and SN,Fire Alarms
Ashfield District Council,37UB,Stannah Lift Services Ltd,V1017559,02/02/2023,1394.48,Housing & Assets 2,Premises Expenses,G51026/B003006,Housing OP and SN,Lift
Ashfield District Council,37UB,British Telecom PLC,V1018205,09/02/2023,289.69,R & B Transformation 2,Supplies & Services,G51007/D301002,Housing OP and SN,Telephones
Ashfield District Council,37UB,Castle Water Ltd,V1018230,09/02/2023,16.45,R & B Transformation 2,Premises Expenses,G51022/B401,Housing OP and SN,Water rates
Ashfield District Council,37UB,Castle Water Ltd,V1018230,09/02/2023,76.71,R & B Transformation 2,Premises Expenses,G51027/B401,Housing OP and SN,Water rates
Ashfield District Council,37UB,Castle Water Ltd,V1018230,09/02/2023,-7.64,R & B Transformation 2,Premises Expenses,G51027/B401,Housing OP and SN,Water rates
Ashfield District Council,37UB,Castle Water Ltd,V1018230,09/02/2023,76.71,R & B Transformation 2,Premises Expenses,G51027/B401,Housing OP and SN,Water rates
Ashfield District Council,37UB,Castle Water Ltd,V1018230,09/02/2023,24.88,R & B Transformation 2,Premises Expenses,G51015/B401,Housing OP and SN,Water rates
Ashfield District Council,37UB,Castle Water Ltd,V1018230,09/02/2023,13.64,R & B Transformation 2,Premises Expenses,G51022/B401,Housing OP and SN,Water rates
Ashfield District Council,37UB,Castle Water Ltd,V1018230,09/02/2023,-36.87,R & B Transformation 2,Premises Expenses,G51027/B401,Housing OP and SN,Water rates
Ashfield District Council,37UB,Castle Water Ltd,V1018230,09/02/2023,-7.40,R & B Transformation 2,Premises Expenses,G51027/B401,Housing OP and SN,Water rates
Ashfield District Council,37UB,Castle Water Ltd,V1018230,09/02/2023,79.26,R & B Transformation 2,Premises Expenses,G51027/B401,Housing OP and SN,Water rates
Ashfield District Council,37UB,Castle Water Ltd,V1018230,09/02/2023,81.66,R & B Transformation 2,Premises Expenses,G51008/B401,Housing OP and SN,Water rates
Ashfield District Council,37UB,Castle Water Ltd,V1018230,09/02/2023,82.46,R & B Transformation 2,Premises Expenses,G51008/B401,Housing OP and SN,Water rates
Ashfield District Council,37UB,Castle Water Ltd,V1018230,09/02/2023,5.20,R & B Transformation 2,Premises Expenses,G51015/B401,Housing OP and SN,Water rates
Ashfield District Council,37UB,Castle Water Ltd,V1018230,09/02/2023,12.24,R & B Transformation 2,Premises Expenses,G51021/B401,Housing OP and SN,Water rates
Ashfield District Council,37UB,Castle Water Ltd,V1018230,09/02/2023,-7.64,R & B Transformation 2,Premises Expenses,G51027/B401,Housing OP and SN,Water rates
Ashfield District Council,37UB,Castle Water Ltd,V1018230,09/02/2023,-40.70,R & B Transformation 2,Premises Expenses,G51008/B401,Housing OP and SN,Water rates
Ashfield District Council,37UB,Castle Water Ltd,V1018230,09/02/2023,10.15,R & B Transformation 2,Premises Expenses,G51015/B401,Housing OP and SN,Water rates
Ashfield District Council,37UB,Castle Water Ltd,V1018230,09/02/2023,37.55,R & B Transformation 2,Premises Expenses,G51026/B401,Housing OP and SN,Water rates
Ashfield District Council,37UB,Castle Water Ltd,V1018230,09/02/2023,-7.64,R & B Transformation 2,Premises Expenses,G51027/B401,Housing OP and SN,Water rates
Ashfield District Council,37UB,Castle Water Ltd,V1018230,09/02/2023,80.04,R & B Transformation 2,Premises Expenses,G51027/B401,Housing OP and SN,Water rates
Ashfield District Council,37UB,Castle Water Ltd,V1018230,09/02/2023,23.49,R & B Transformation 2,Premises Expenses,G51020/B401,Housing OP and SN,Water rates
Ashfield District Council,37UB,Castle Water Ltd,V1018230,09/02/2023,-35.68,R & B Transformation 2,Premises Expenses,G51027/B401,Housing OP and SN,Water rates
Ashfield District Council,37UB,Castle Water Ltd,V1018230,09/02/2023,76.71,R & B Transformation 2,Premises Expenses,G51027/B401,Housing OP and SN,Water rates
Ashfield District Council,37UB,Castle Water Ltd,V1018230,09/02/2023,79.26,R & B Transformation 2,Premises Expenses,G51027/B401,Housing OP and SN,Water rates
Ashfield District Council,37UB,Castle Water Ltd,V1018230,09/02/2023,80.04,R & B Transformation 2,Premises Expenses,G51027/B401,Housing OP and SN,Water rates
Ashfield District Council,37UB,Castle Water Ltd,V1018230,09/02/2023,-3.57,R & B Transformation 2,Premises Expenses,G51008/B401,Housing OP and SN,Water rates
Ashfield District Council,37UB,Castle Water Ltd,V1018230,09/02/2023,79.03,R & B Transformation 2,Premises Expenses,G51008/B401,Housing OP and SN,Water rates
Ashfield District Council,37UB,Castle Water Ltd,V1018230,09/02/2023,81.66,R & B Transformation 2,Premises Expenses,G51008/B401,Housing OP and SN,Water rates
Ashfield District Council,37UB,Castle Water Ltd,V1018230,09/02/2023,8.02,R & B Transformation 2,Premises Expenses,G51028/B401,Housing OP and SN,Water rates
Ashfield District Council,37UB,Castle Water Ltd,V1018230,09/02/2023,27.70,R & B Transformation 2,Premises Expenses,G51028/B401,Housing OP and SN,Water rates
Ashfield District Council,37UB,Castle Water Ltd,V1018230,09/02/2023,-3.57,R & B Transformation 2,Premises Expenses,G51008/B401,Housing OP and SN,Water rates
Ashfield District Council,37UB,Castle Water Ltd,V1018230,09/02/2023,82.46,R & B Transformation 2,Premises Expenses,G51008/B401,Housing OP and SN,Water rates
Ashfield District Council,37UB,Castle Water Ltd,V1018230,09/02/2023,82.46,R & B Transformation 2,Premises Expenses,G51008/B401,Housing OP and SN,Water rates
